{"text_format":"3","workbook":"xlsx","n_sheets":4,"sheets":["Instructions","Data","Hypothesis 1","Hypothesis 2"],"not_rendered":{"pivot_tables":2},"read":"whole","date_system":"1900"}

{"sheet":"Instructions","index":0,"n_rows":17,"n_cols":4,"rows_kept":17}
{"$rows_empty":14}
[null,null,"f and then t test-","categorical data"]
[null,null,"chi square"]
[null,null,"z-test compared to proportion"]

{"sheet":"Data","index":1,"n_rows":1001,"n_cols":20,"rows_kept":1001}
["Patient ID","Age","Gender","Race","Marital status","Discharge month","Discharge status","Days of care","Region","Beds","Ownership","DX code 1","PX code 1","Principal payer","DRG","Type admission","Referral source","Satisfaction score","Severity","Charges"]
[1,36,"Male","Other","Married","May","Routine discharge",6,"Northeast","500 or over","Not-for-profit","07054","","Workers Comp",205,"Emergency","Emergency room",5,8,{"v":6995,"d":"$6,995"}]
[2,67,"Female","Other","Single","Mar","Routine discharge",1,"Northeast","500 or over","Not-for-profit","4241-","3723","HMO",125,"Emergency","Physician",3,4,{"v":3328,"d":"$3,328"}]
[3,54,"Male","Black","Not stated","Aug","Discharged to short-term facility",27,"Northeast","500 or over","Not-for-profit","431--","8622","Medicare",7,"Emergency","Emergency room",4,6,{"v":5175,"d":"$5,175"}]
[4,72,"Female","Not stated","Married","Sep","Discharged to short-term facility",4,"Northeast","500 or over","Not-for-profit","71536","8154","HMO",209,"Elective","Physician",4,2,{"v":1997,"d":"$1,997"}]
[5,5,"Male","Black","Married","Jun","Routine discharge",2,"Northeast","500 or over","Not-for-profit","95909","","Medicaid",446,"Emergency","Emergency room",4,6,{"v":5019,"d":"$5,019"}]
[6,30,"Female","White","Married","Mar","Routine discharge",2,"Northeast","500 or over","Not-for-profit","V270-","7301","HMO",373,"Not reported","Physician",5,2,{"v":2194,"d":"$2,194"}]
[7,38,"Female","Black","Single","Jun","Routine discharge",4,"Northeast","500 or over","Not-for-profit","V270-","741-","Other private insurance",371,"Emergency","Transfer from other health facility",5,8,{"v":6787,"d":"$6,787"}]
[8,37,"Male","Black","Single","Aug","Routine discharge",3,"Northeast","500 or over","Not-for-profit","29530","9425","Medicaid",430,"Emergency","Emergency room",5,3,{"v":3021,"d":"$3,021"}]
[9,89,"Female","White","Widowed","Mar","Routine discharge",20,"Northeast","500 or over","Not-for-profit","5750-","5122","Medicare",197,"Emergency","Emergency room",5,5,{"v":4254,"d":"$4,254"}]
[10,46,"Female","White","Single","Sep","Routine discharge",5,"Northeast","500 or over","Not-for-profit","042--","","Medicaid",489,"Emergency","Emergency room",4,1,{"v":1591,"d":"$1,591"}]
[11,58,"Male","White","Married","Jan","Routine discharge",1,"Northeast","500 or over","Not-for-profit","43310","3812","Self pay",5,"Elective","Physician",5,1,{"v":1413,"d":"$1,413"}]
[12,74,"Male","Other","Single","Feb","Routine discharge",1,"Northeast","500 or over","Not-for-profit","496--","","Medicare",88,"Emergency","Emergency room",5,2,{"v":2159,"d":"$2,159"}]
[13,32,"Female","Not stated","Married","Jan","Routine discharge",4,"Northeast","500 or over","Not-for-profit","64303","","HMO",383,"Emergency","Emergency room",5,6,{"v":5094,"d":"$5,094"}]
[14,79,"Male","White","Married","Jan","Routine discharge",4,"Northeast","500 or over","Not-for-profit","72402","0309","Medicare",500,"Elective","Physician",5,1,{"v":1763,"d":"$1,763"}]
[15,44,"Male","White","Married","Mar","Routine discharge",1,"Northeast","500 or over","Not-for-profit","7220-","8102","HMO",520,"Elective","Physician",5,3,{"v":2819,"d":"$2,819"}]
[16,34,"Male","White","Married","Mar","Alive, disposition not stated",4,"Northeast","500 or over","Not-for-profit","82300","7936","Other private insurance",219,"Emergency","Physician",4,2,{"v":2248,"d":"$2,248"}]
[17,0,"Male","Black","Single","May","Routine discharge",2,"Midwest","500 or over","Not-for-profit","V3000","640-","Medicaid",391,"Newborn","Other",4,2,{"v":2555,"d":"$2,555"}]
[18,25,"Female","White","Single","Feb","Routine discharge",2,"Midwest","500 or over","Not-for-profit","V270-","7534","Medicare",373,"Elective","Other",5,1,{"v":857,"d":"$857"}]
[19,53,"Male","Not stated","Married","Jul","Routine discharge",6,"Midwest","500 or over","Not-for-profit","5722-","5491","HMO",205,"Emergency","Emergency room",5,8,{"v":7697,"d":"$7,697"}]
[20,44,"Male","White","Married","Feb","Routine discharge",1,"Midwest","500 or over","Not-for-profit","7140-","8181","Blue Cross",491,"Elective","Other",3,1,{"v":924,"d":"$924"}]
[21,59,"Male","White","Married","Jun","Routine discharge",2,"Midwest","500 or over","Not-for-profit","6000-","640-","HMO",342,"Not reported","Physician",4,1,{"v":1079,"d":"$1,079"}]
[22,54,"Male","Not stated","Married","Aug","Routine discharge",1,"South","500 or over","Not-for-profit","41401","3606","No charge",517,"Elective","Physician",5,1,{"v":1818,"d":"$1,818"}]
[23,0,"Male","Not stated","Not stated","Feb","Routine discharge",4,"South","500 or over","Not-for-profit","V3001","","HMO",391,"Newborn","Other",5,1,{"v":1198,"d":"$1,198"}]
[24,63,"Female","Not stated","Not stated","Jun","Routine discharge",3,"South","500 or over","Not-for-profit","41401","3601","Medicaid",517,"Not reported","Not reported",5,3,{"v":3104,"d":"$3,104"}]
[25,73,"Female","Not stated","Not stated","Sep","Routine discharge",7,"South","500 or over","Not-for-profit","4280-","","Medicare",127,"Not reported","Not reported",4,3,{"v":2824,"d":"$2,824"}]
[26,35,"Female","Not stated","Not stated","Aug","Routine discharge",2,"South","500 or over","Not-for-profit","V270-","7359","HMO",373,"Not reported","Not reported",5,2,{"v":2387,"d":"$2,387"}]
[27,30,"Male","Not stated","Not stated","Apr","Routine discharge",10,"South","500 or over","Not-for-profit","20192","3893","Medicaid",403,"Not reported","Not reported",4,4,{"v":3108,"d":"$3,108"}]
[28,65,"Female","Not stated","Not stated","Apr","Routine discharge",3,"South","500 or over","Not-for-profit","4358-","","Medicare",15,"Not reported","Not reported",5,1,{"v":1394,"d":"$1,394"}]
[29,53,"Female","Not stated","Not stated","Aug","Routine discharge",2,"South","500 or over","Not-for-profit","4359-","9338","Medicare",15,"Not reported","Not reported",4,2,{"v":2483,"d":"$2,483"}]
[30,47,"Male","Not stated","Not stated","Dec","Routine discharge",1,"South","500 or over","Not-for-profit","41401","","HMO",132,"Not reported","Not reported",5,2,{"v":2252,"d":"$2,252"}]
[31,46,"Male","Not stated","Not stated","Nov","Routine discharge",5,"South","500 or over","Not-for-profit","7230-","8051","Medicaid",500,"Not reported","Not reported",3,3,{"v":2753,"d":"$2,753"}]
[32,27,"Female","Not stated","Not stated","May","Routine discharge",10,"South","500 or over","Not-for-profit","V270-","741-","HMO",371,"Not reported","Not reported",4,1,{"v":1072,"d":"$1,072"}]
[33,0,"Male","Black","Single","Mar","Routine discharge",5,"West","500 or over","Not-for-profit","V3401","640-","Medicaid",388,"Newborn","Other",5,1,{"v":1357,"d":"$1,357"}]
[34,36,"Female","White","Married","Feb","Routine discharge",2,"West","500 or over","Government","V270-","736-","Self pay",374,"Emergency","Emergency room",5,2,{"v":2424,"d":"$2,424"}]
[35,64,"Female","Black","Married","Jan","Routine discharge",1,"South","6 to 99","Government","2849-","9904","Medicare",395,"Not reported","Not reported",5,2,{"v":2089,"d":"$2,089"}]
[36,57,"Female","Black","Single","Mar","Routine discharge",2,"South","6 to 99","Government","5770-","","Medicaid",204,"Not reported","Not reported",5,1,{"v":1629,"d":"$1,629"}]
[37,0,"Female","White","Single","Jul","Routine discharge",1,"West","6 to 99","Government","V3000","","Self pay",391,"Newborn","Other",5,2,{"v":2234,"d":"$2,234"}]
[38,77,"Female","White","Not stated","Nov","Discharged to long-term facility",15,"Northeast","500 or over","Not-for-profit","99859","8622","Medicare",415,"Emergency","Emergency room",4,3,{"v":2976,"d":"$2,976"}]
[39,73,"Male","White","Married","Dec","Routine discharge",2,"South","6 to 99","Not-for-profit","4280-","","Medicare",127,"Urgent","Physician",5,1,{"v":1216,"d":"$1,216"}]
[40,20,"Male","Other","Not stated","Sep","Routine discharge",5,"Midwest","100 to 199","Not-for-profit","25013","","HMO",295,"Not reported","Not reported",3,4,{"v":3863,"d":"$3,863"}]
[41,68,"Male","White","Not stated","May","Routine discharge",6,"Midwest","100 to 199","Not-for-profit","486--","3893","Medicare",89,"Not reported","Not reported",5,2,{"v":2329,"d":"$2,329"}]
[42,59,"Female","White","Widowed","Sep","Alive, disposition not stated",1,"Midwest","6 to 99","Government","25092","9929","Medicare",294,"Urgent","Emergency room",4,2,{"v":2509,"d":"$2,509"}]
[43,39,"Female","White","Not stated","Oct","Routine discharge",1,"Midwest","6 to 99","Government","30000","","Medicare",425,"Not reported","Not reported",5,1,{"v":1228,"d":"$1,228"}]
[44,68,"Female","Not stated","Not stated","Aug","Dead",3,"South","6 to 99","Not-for-profit","1579-","","Other private insurance",203,"Urgent","Physician",5,2,{"v":1994,"d":"$1,994"}]
[45,75,"Female","Not stated","Not stated","Apr","Discharged to short-term facility",1,"South","6 to 99","Not-for-profit","436--","","Medicare",14,"Emergency","Emergency room",5,2,{"v":2354,"d":"$2,354"}]
[46,0,"Female","White","Single","May","Routine discharge",2,"South","200 to 299","Government","V3000","9955","Medicaid",391,"Newborn","Other",5,1,{"v":834,"d":"$834"}]
[47,92,"Female","White","Widowed","Nov","Dead",11,"South","6 to 99","Government","41011","","Medicare",123,"Urgent","Emergency room",4,2,{"v":2525,"d":"$2,525"}]
[48,79,"Female","Not stated","Not stated","Aug","Discharged to long-term facility",7,"Northeast","300 to 499","Not-for-profit","2536-","4516","Medicare",300,"Urgent","Transfer from hospital",4,1,{"v":1246,"d":"$1,246"}]
[49,44,"Female","Not stated","Not stated","Feb","Routine discharge",1,"Northeast","300 to 499","Not-for-profit","5121-","3404","Medicaid",94,"Urgent","Physician",5,2,{"v":2202,"d":"$2,202"}]
[50,31,"Female","Not stated","Not stated","Jan","Routine discharge",1,"Northeast","300 to 499","Not-for-profit","V270-","7309","Blue Cross",373,"Elective","Physician",5,3,{"v":2715,"d":"$2,715"}]
[51,72,"Male","Not stated","Not stated","Nov","Alive, disposition not stated",2,"Northeast","6 to 99","Not-for-profit","486--","","Medicare",89,"Urgent","Emergency room",5,1,{"v":1456,"d":"$1,456"}]
[52,62,"Female","White","Not stated","May","Routine discharge",12,"Midwest","6 to 99","Not-for-profit","1533-","4576","Other private insurance",148,"Elective","Physician",3,4,{"v":3235,"d":"$3,235"}]
[53,82,"Female","White","Not stated","Dec","Routine discharge",3,"Midwest","6 to 99","Not-for-profit","25080","","Medicare",294,"Emergency","Emergency room",5,3,{"v":2763,"d":"$2,763"}]
[54,75,"Male","White","Not stated","Jan","Routine discharge",4,"Midwest","6 to 99","Not-for-profit","3313-","0331","Medicare",12,"Emergency","Emergency room",5,2,{"v":2198,"d":"$2,198"}]
[55,95,"Female","White","Not stated","Dec","Routine discharge",4,"Midwest","6 to 99","Not-for-profit","486--","","Medicare",89,"Emergency","Emergency room",4,7,{"v":5529,"d":"$5,529"}]
[56,3,"Male","White","Not stated","Sep","Discharged to short-term facility",2,"Midwest","6 to 99","Not-for-profit","77439","9983","Blue Cross",385,"Elective","Physician",5,1,{"v":1875,"d":"$1,875"}]
[57,29,"Female","White","Married","Nov","Left AMA",1,"Midwest","6 to 99","Not-for-profit","34510","","Medicare",25,"Emergency","Physician",5,2,{"v":2341,"d":"$2,341"}]
[58,38,"Female","White","Married","Oct","Routine discharge",3,"West","100 to 199","Not-for-profit","27801","4431","Other private insurance",288,"Urgent","Physician",4,2,{"v":2427,"d":"$2,427"}]
[59,78,"Male","White","Married","Jan","Routine discharge",2,"West","6 to 99","Not-for-profit","2367-","5749","Medicare",311,"Not reported","Clinic",5,1,{"v":1771,"d":"$1,771"}]
[60,51,"Female","Not stated","Married","Mar","Routine discharge",2,"West","6 to 99","Not-for-profit","6262-","684-","Other",359,"Elective","Physician",4,2,{"v":2511,"d":"$2,511"}]
[61,46,"Male","American Indian","Single","Oct","Discharged to long-term facility",53,"West","6 to 99","Not-for-profit","V5789","9338","Medicaid",462,"Elective","Transfer from hospital",5,9,{"v":10747,"d":"$10,747"}]
[62,49,"Male","White","Divorced","Oct","Discharged to short-term facility",21,"West","100 to 199","Not-for-profit","8604-","0294","Other",484,"Emergency","Emergency room",5,5,{"v":4492,"d":"$4,492"}]
[63,0,"Male","Not stated","Not stated","Feb","Routine discharge",3,"South","6 to 99","Not-for-profit","V3001","","Other private insurance",390,"Newborn","Other",4,3,{"v":2615,"d":"$2,615"}]
[64,70,"Female","Not stated","Not stated","Jan","Discharged to long-term facility",5,"South","6 to 99","Not-for-profit","43491","","Medicare",14,"Not reported","Not reported",5,1,{"v":1621,"d":"$1,621"}]
[65,84,"Male","Not stated","Not stated","Feb","Routine discharge",8,"South","6 to 99","Not-for-profit","4870-","","Medicare",89,"Not reported","Not reported",4,1,{"v":1381,"d":"$1,381"}]
[66,78,"Male","Not stated","Not stated","Jul","Alive, disposition not stated",4,"South","6 to 99","Not-for-profit","5070-","","Medicare",79,"Not reported","Not reported",4,1,{"v":1266,"d":"$1,266"}]
[67,60,"Female","Not stated","Not stated","Apr","Routine discharge",2,"South","6 to 99","Not-for-profit","57400","5123","Self pay",493,"Not reported","Not reported",3,2,{"v":2084,"d":"$2,084"}]
[68,75,"Female","Not stated","Not stated","Aug","Routine discharge",3,"South","6 to 99","Not-for-profit","6183-","7092","Medicare",360,"Not reported","Not reported",3,2,{"v":2093,"d":"$2,093"}]
[69,19,"Female","Not stated","Not stated","Jun","Routine discharge",2,"South","6 to 99","Not-for-profit","V270-","736-","Medicaid",373,"Not reported","Not reported",5,2,{"v":2173,"d":"$2,173"}]
[70,23,"Female","Not stated","Not stated","Nov","Routine discharge",1,"South","6 to 99","Not-for-profit","V270-","7569","HMO",373,"Not reported","Not reported",5,1,{"v":860,"d":"$860"}]
[71,0,"Male","White","Single","Feb","Routine discharge",2,"Midwest","100 to 199","Not-for-profit","V3000","640-","HMO",391,"Newborn","Other",5,2,{"v":2518,"d":"$2,518"}]
[72,90,"Female","White","Married","Mar","Discharged to long-term facility",8,"Northeast","6 to 99","Proprietary","5119-","","Medicare",85,"Not reported","Not reported",3,2,{"v":2455,"d":"$2,455"}]
[73,21,"Female","White","Married","Apr","Routine discharge",1,"South","6 to 99","Government","8082-","8659","Medicaid",236,"Emergency","Emergency room",5,1,{"v":1337,"d":"$1,337"}]
[74,92,"Male","White","Widowed","Feb","Discharged to long-term facility",4,"South","6 to 99","Government","V571-","9312","Medicare",462,"Elective","Transfer from other health facility",5,1,{"v":1025,"d":"$1,025"}]
[75,77,"Female","White","Widowed","Nov","Routine discharge",2,"South","6 to 99","Proprietary","4139-","","Medicaid",140,"Urgent","Emergency room",3,2,{"v":2048,"d":"$2,048"}]
[76,29,"Female","White","Married","Oct","Routine discharge",2,"South","6 to 99","Government","V270-","7569","HMO",373,"Urgent","Physician",5,1,{"v":1589,"d":"$1,589"}]
[77,0,"Male","Not stated","Not stated","Feb","Routine discharge",1,"Midwest","6 to 99","Not-for-profit","V3000","640-","Other private insurance",391,"Newborn","Other",3,2,{"v":2159,"d":"$2,159"}]
[78,0,"Female","Not stated","Not stated","Jun","Routine discharge",2,"Midwest","6 to 99","Not-for-profit","V3000","","Medicaid",391,"Newborn","Other",5,2,{"v":2128,"d":"$2,128"}]
[79,38,"Male","Not stated","Not stated","Mar","Routine discharge",9,"Midwest","6 to 99","Not-for-profit","30481","9467","Other private insurance",522,"Urgent","Transfer from hospital",5,4,{"v":3739,"d":"$3,739"}]
[80,87,"Male","Not stated","Not stated","May","Discharged to long-term facility",3,"Midwest","6 to 99","Not-for-profit","2930-","","Medicare",425,"Emergency","Emergency room",5,2,{"v":2516,"d":"$2,516"}]
[81,60,"Male","Not stated","Not stated","Jul","Routine discharge",3,"Midwest","6 to 99","Not-for-profit","29181","9462","Medicare",523,"Urgent","Emergency room",5,1,{"v":906,"d":"$906"}]
[82,41,"Female","Not stated","Not stated","Nov","Routine discharge",3,"Midwest","6 to 99","Not-for-profit","6256-","595-","Medicaid",356,"Elective","Physician",3,1,{"v":1084,"d":"$1,084"}]
[83,95,"Female","Not stated","Not stated","Feb","Discharged to long-term facility",5,"Midwest","6 to 99","Not-for-profit","8208-","8152","Medicare",209,"Urgent","Physician",5,4,{"v":3632,"d":"$3,632"}]
[84,36,"Female","Not stated","Not stated","Nov","Routine discharge",3,"Midwest","6 to 99","Not-for-profit","V279-","7309","Medicaid",373,"Urgent","Physician",4,3,{"v":2721,"d":"$2,721"}]
[85,1,"Female","White","Single","Jul","Routine discharge",2,"West","100 to 199","Government","49392","","Other government",98,"Emergency","Emergency room",5,7,{"v":5651,"d":"$5,651"}]
[86,33,"Male","Black","Not stated","Sep","Routine discharge",1,"South","500 or over","Government","55010","5304","Other government",162,"Emergency","Emergency room",5,2,{"v":2014,"d":"$2,014"}]
[87,17,"Female","Not stated","Not stated","Aug","Routine discharge",2,"South","500 or over","Government","V270-","7569","Other",373,"Emergency","Emergency room",5,2,{"v":2337,"d":"$2,337"}]
[88,24,"Male","White","Not stated","Dec","Routine discharge",23,"South","300 to 499","Government","29644","9423","Medicaid",430,"Elective","Physician",4,4,{"v":3389,"d":"$3,389"}]
[89,89,"Female","White","Widowed","Feb","Discharged to long-term facility",13,"Northeast","200 to 299","Not-for-profit","5570-","4562","Medicare",148,"Emergency","Emergency room",5,3,{"v":3042,"d":"$3,042"}]
[90,44,"Male","Black","Not stated","Jan","Left AMA",1,"Northeast","300 to 499","Not-for-profit","2920-","9462","Medicaid",433,"Elective","Clinic",5,3,{"v":2733,"d":"$2,733"}]
[91,41,"Female","White","Not stated","Oct","Routine discharge",4,"Northeast","300 to 499","Not-for-profit","2920-","9465","Medicaid",521,"Emergency","Emergency room",3,3,{"v":2664,"d":"$2,664"}]
[92,81,"Female","White","Not stated","Apr","Routine discharge",8,"Northeast","300 to 499","Not-for-profit","4241-","8891","Medicare",135,"Emergency","Emergency room",5,7,{"v":6447,"d":"$6,447"}]
[93,79,"Male","White","Not stated","Sep","Routine discharge",3,"Northeast","300 to 499","Not-for-profit","4019-","8703","Medicare",134,"Emergency","Emergency room",3,3,{"v":2764,"d":"$2,764"}]
[94,87,"Female","White","Not stated","Nov","Alive, disposition not stated",7,"Northeast","300 to 499","Not-for-profit","43491","9338","Medicare",14,"Emergency","Emergency room",5,5,{"v":4650,"d":"$4,650"}]
[95,5,"Male","White","Not stated","Jun","Routine discharge",3,"Northeast","300 to 499","Not-for-profit","5589-","9921","Blue Cross",184,"Elective","Physician",5,4,{"v":3724,"d":"$3,724"}]
[96,44,"Male","White","Not stated","Sep","Alive, disposition not stated",24,"Northeast","300 to 499","Not-for-profit","95207","8102","Medicaid",4,"Emergency","Emergency room",5,8,{"v":6838,"d":"$6,838"}]
[97,37,"Female","White","Not stated","Jul","Routine discharge",3,"Northeast","300 to 499","Not-for-profit","V270-","741-","Medicaid",371,"Emergency","Clinic",3,3,{"v":2585,"d":"$2,585"}]
[98,87,"Female","White","Divorced","Feb","Dead",18,"Northeast","300 to 499","Not-for-profit","41071","9672","Medicare",123,"Emergency","Emergency room",5,6,{"v":5227,"d":"$5,227"}]
[99,68,"Male","Other","Married","Jul","Discharged to short-term facility",10,"Northeast","300 to 499","Not-for-profit","41071","3722","Blue Cross",121,"Emergency","Emergency room",5,6,{"v":5062,"d":"$5,062"}]
[100,48,"Female","White","Single","Jan","Routine discharge",4,"Northeast","100 to 199","Not-for-profit","2189-","684-","Medicare",359,"Elective","Physician",5,2,{"v":2202,"d":"$2,202"}]
[101,72,"Female","White","Married","May","Alive, disposition not stated",2,"Northeast","100 to 199","Not-for-profit","1970-","","Blue Cross",82,"Elective","Emergency room",3,2,{"v":1889,"d":"$1,889"}]
[102,74,"Male","White","Single","Aug","Routine discharge",5,"Northeast","100 to 199","Not-for-profit","85221","8659","Medicare",28,"Elective","Emergency room",5,4,{"v":3813,"d":"$3,813"}]
[103,21,"Female","White","Single","Aug","Routine discharge",5,"Northeast","100 to 199","Not-for-profit","V270-","741-","Medicaid",371,"Elective","Physician",3,3,{"v":2918,"d":"$2,918"}]
[104,0,"Female","White","Not stated","Mar","Routine discharge",2,"Northeast","100 to 199","Not-for-profit","V3000","","Other private insurance",391,"Newborn","Other",5,2,{"v":2107,"d":"$2,107"}]
[105,36,"Male","White","Not stated","Oct","Routine discharge",3,"Northeast","100 to 199","Not-for-profit","6823-","","Other private insurance",278,"Emergency","Emergency room",3,3,{"v":2626,"d":"$2,626"}]
[106,73,"Female","White","Not stated","Jul","Alive, disposition not stated",5,"Northeast","100 to 199","Not-for-profit","71595","8151","Medicare",209,"Elective","Physician",3,3,{"v":3068,"d":"$3,068"}]
[107,55,"Male","White","Not stated","Sep","Alive, disposition not stated",4,"Northeast","100 to 199","Not-for-profit","71595","8151","HMO",209,"Elective","Physician",5,2,{"v":2358,"d":"$2,358"}]
[108,31,"Female","White","Not stated","Mar","Routine discharge",3,"Northeast","100 to 199","Not-for-profit","V270-","741-","HMO",371,"Elective","Physician",4,1,{"v":1395,"d":"$1,395"}]
[109,36,"Female","White","Not stated","Jul","Routine discharge",2,"Northeast","100 to 199","Not-for-profit","V270-","736-","HMO",373,"Elective","Physician",5,2,{"v":2399,"d":"$2,399"}]
[110,70,"Female","White","Not stated","Mar","Dead",2,"Northeast","200 to 299","Not-for-profit","4280-","","Medicare",127,"Emergency","Emergency room",5,2,{"v":2054,"d":"$2,054"}]
[111,81,"Male","White","Not stated","Feb","Routine discharge",2,"Northeast","200 to 299","Not-for-profit","99601","3789","Medicare",118,"Elective","Physician",5,2,{"v":2571,"d":"$2,571"}]
[112,30,"Female","White","Not stated","Mar","Routine discharge",2,"Northeast","200 to 299","Not-for-profit","V270-","736-","HMO",373,"Elective","Physician",5,2,{"v":2408,"d":"$2,408"}]
[113,0,"Male","American Indian","Single","Sep","Routine discharge",2,"Northeast","200 to 299","Not-for-profit","V3000","640-","HMO",391,"Newborn","Other",5,2,{"v":2325,"d":"$2,325"}]
[114,77,"Female","White","Widowed","Apr","Routine discharge",1,"Northeast","200 to 299","Not-for-profit","42731","","Medicare",138,"Emergency","Emergency room",3,3,{"v":3076,"d":"$3,076"}]
[115,80,"Male","White","Married","Sep","Routine discharge",8,"Northeast","200 to 299","Not-for-profit","53140","4525","Other",175,"Emergency","Emergency room",5,7,{"v":6457,"d":"$6,457"}]
[116,83,"Male","White","Widowed","Mar","Routine discharge",8,"Northeast","200 to 299","Not-for-profit","6009-","6029","Medicare",336,"Emergency","Emergency room",5,1,{"v":1064,"d":"$1,064"}]
[117,61,"Female","White","Married","Oct","Routine discharge",5,"Northeast","100 to 199","Not-for-profit","42781","3772","Blue Cross",116,"Emergency","Emergency room",5,4,{"v":3236,"d":"$3,236"}]
[118,25,"Female","Black","Single","Jan","Routine discharge",3,"Northeast","100 to 199","Not-for-profit","V270-","741-","HMO",371,"Urgent","Physician",4,1,{"v":1623,"d":"$1,623"}]
[119,21,"Female","White","Married","Aug","Routine discharge",4,"Northeast","100 to 199","Not-for-profit","V270-","741-","Self pay",371,"Urgent","Physician",5,1,{"v":1749,"d":"$1,749"}]
[120,0,"Female","White","Single","Feb","Routine discharge",2,"Northeast","200 to 299","Not-for-profit","V3000","","Blue Cross",391,"Newborn","Other",5,2,{"v":2359,"d":"$2,359"}]
[121,0,"Female","Other","Single","Mar","Routine discharge",2,"Northeast","200 to 299","Not-for-profit","V3000","","HMO",391,"Newborn","Other",5,2,{"v":1947,"d":"$1,947"}]
[122,43,"Female","White","Married","Jul","Routine discharge",1,"Northeast","200 to 299","Not-for-profit","2449-","","HMO",301,"Urgent","Emergency room",5,3,{"v":3059,"d":"$3,059"}]
[123,35,"Female","White","Separated","Apr","Routine discharge",12,"Northeast","200 to 299","Not-for-profit","29624","","Medicaid",430,"Emergency","Emergency room",5,3,{"v":3098,"d":"$3,098"}]
[124,55,"Male","White","Married","Aug","Discharged to long-term facility",7,"Northeast","200 to 299","Not-for-profit","41519","","Blue Cross",78,"Emergency","Emergency room",5,4,{"v":3429,"d":"$3,429"}]
[125,60,"Female","White","Widowed","Oct","Routine discharge",3,"Northeast","200 to 299","Not-for-profit","40291","3722","Medicare",124,"Emergency","Emergency room",5,3,{"v":2630,"d":"$2,630"}]
[126,22,"Female","White","Married","Jan","Routine discharge",3,"Northeast","200 to 299","Not-for-profit","V270-","7359","Blue Cross",373,"Elective","Physician",4,2,{"v":2376,"d":"$2,376"}]
[127,16,"Female","Other","Single","Jun","Routine discharge",1,"Northeast","200 to 299","Not-for-profit","V270-","7569","HMO",373,"Urgent","Clinic",4,2,{"v":2479,"d":"$2,479"}]
[128,52,"Female","White","Not stated","Jun","Routine discharge",12,"Northeast","300 to 499","Not-for-profit","5845-","4523","Blue Cross",316,"Emergency","Emergency room",5,2,{"v":2426,"d":"$2,426"}]
[129,63,"Male","Black","Not stated","Sep","Routine discharge",3,"Northeast","300 to 499","Not-for-profit","78650","8872","Blue Cross",143,"Emergency","Clinic",5,1,{"v":1121,"d":"$1,121"}]
[130,55,"Male","White","Not stated","May","Routine discharge",3,"Northeast","300 to 499","Not-for-profit","85226","8703","Blue Cross",27,"Emergency","Emergency room",3,2,{"v":2371,"d":"$2,371"}]
[131,90,"Female","White","Not stated","Sep","Discharged to long-term facility",10,"Northeast","300 to 499","Not-for-profit","8509-","8703","Medicare",32,"Emergency","Transfer from SNF",4,4,{"v":3636,"d":"$3,636"}]
[132,21,"Male","White","Not stated","Nov","Routine discharge",13,"Northeast","300 to 499","Not-for-profit","86121","9604","Other private insurance",487,"Emergency","Emergency room",5,4,{"v":3649,"d":"$3,649"}]
[133,46,"Male","White","Married","Nov","Routine discharge",2,"Northeast","300 to 499","Not-for-profit","2765-","8703","HMO",297,"Emergency","Emergency room",5,2,{"v":1926,"d":"$1,926"}]
[134,62,"Male","Other","Single","Feb","Routine discharge",1,"Northeast","300 to 499","Not-for-profit","4280-","","Other private insurance",127,"Emergency","Emergency room",5,1,{"v":795,"d":"$795"}]
[135,49,"Female","Other","Married","Mar","Routine discharge",5,"Northeast","300 to 499","Not-for-profit","4510-","9215","HMO",131,"Emergency","Emergency room",4,3,{"v":2662,"d":"$2,662"}]
[136,89,"Female","White","Widowed","Aug","Routine discharge",4,"Northeast","300 to 499","Not-for-profit","4359-","8891","Medicare",15,"Emergency","Emergency room",5,1,{"v":815,"d":"$815"}]
[137,41,"Male","White","Married","Mar","Routine discharge",5,"Northeast","300 to 499","Not-for-profit","5715-","4233","Other private insurance",202,"Emergency","Emergency room",5,3,{"v":2923,"d":"$2,923"}]
[138,55,"Female","Black","Married","Sep","Routine discharge",4,"Northeast","300 to 499","Not-for-profit","25000","","Medicare",294,"Emergency","Emergency room",5,1,{"v":1553,"d":"$1,553"}]
[139,22,"Female","Black","Single","May","Routine discharge",4,"Northeast","300 to 499","Not-for-profit","28262","","No charge",395,"Emergency","Emergency room",5,2,{"v":2359,"d":"$2,359"}]
[140,3,"Male","White","Single","Sep","Routine discharge",3,"Northeast","300 to 499","Not-for-profit","49392","","Blue Cross",98,"Urgent","Transfer from hospital",5,3,{"v":2915,"d":"$2,915"}]
[141,59,"Male","Black","Single","Mar","Routine discharge",16,"Northeast","300 to 499","Not-for-profit","5715-","5495","Medicare",201,"Emergency","Emergency room",3,2,{"v":2341,"d":"$2,341"}]
[142,0,"Female","Other","Not stated","May","Routine discharge",3,"Northeast","500 or over","Not-for-profit","V3001","","Medicaid",391,"Newborn","Other",5,3,{"v":2886,"d":"$2,886"}]
[143,92,"Female","White","Not stated","Mar","Discharged to long-term facility",10,"Northeast","500 or over","Not-for-profit","486--","","Medicare",90,"Emergency","Emergency room",3,6,{"v":5118,"d":"$5,118"}]
[144,72,"Female","White","Not stated","Mar","Discharged to long-term facility",6,"Northeast","500 or over","Not-for-profit","5070-","966-","Medicaid",79,"Emergency","Emergency room",3,2,{"v":2300,"d":"$2,300"}]
[145,48,"Male","White","Not stated","Apr","Routine discharge",1,"Northeast","500 or over","Not-for-profit","2102-","2631","Self pay",50,"Elective","Physician",5,3,{"v":3014,"d":"$3,014"}]
[146,56,"Male","White","Not stated","Nov","Alive, disposition not stated",27,"Northeast","500 or over","Not-for-profit","5770-","9915","Other private insurance",204,"Emergency","Emergency room",4,4,{"v":3150,"d":"$3,150"}]
[147,67,"Male","White","Not stated","Jan","Routine discharge",5,"Northeast","500 or over","Not-for-profit","7384-","8108","Medicare",498,"Elective","Physician",5,1,{"v":769,"d":"$769"}]
[148,34,"Female","Not stated","Not stated","Jan","Routine discharge",2,"Northeast","500 or over","Not-for-profit","V270-","736-","Other private insurance",373,"Elective","Physician",5,1,{"v":1822,"d":"$1,822"}]
[149,30,"Female","White","Not stated","Feb","Routine discharge",2,"Northeast","500 or over","Not-for-profit","V270-","7359","Other private insurance",373,"Elective","Physician",5,2,{"v":2383,"d":"$2,383"}]
[150,29,"Female","Other","Not stated","May","Routine discharge",2,"Northeast","500 or over","Not-for-profit","V270-","","Other private insurance",373,"Elective","Physician",3,2,{"v":2443,"d":"$2,443"}]
[151,11,"Male","White","Single","Aug","Routine discharge",13,"Northeast","500 or over","Not-for-profit","28262","9390","Blue Cross",396,"Emergency","Emergency room",3,2,{"v":1887,"d":"$1,887"}]
[152,52,"Female","White","Married","Mar","Routine discharge",1,"Northeast","500 or over","Not-for-profit","42789","3726","Blue Cross",518,"Elective","Physician",5,1,{"v":888,"d":"$888"}]
[153,63,"Male","White","Single","Jun","Routine discharge",2,"Northeast","500 or over","Not-for-profit","42731","9962","HMO",138,"Emergency","Emergency room",5,1,{"v":1150,"d":"$1,150"}]
[154,6,"Male","White","Single","Jul","Routine discharge",1,"Northeast","500 or over","Not-for-profit","4660-","","HMO",98,"Emergency","Emergency room",3,2,{"v":1963,"d":"$1,963"}]
[155,46,"Female","Black","Married","Jun","Routine discharge",4,"Northeast","500 or over","Not-for-profit","7220-","8102","Other private insurance",520,"Elective","Physician",4,3,{"v":2609,"d":"$2,609"}]
[156,7,"Male","Black","Single","May","Routine discharge",2,"Northeast","500 or over","Not-for-profit","78039","8703","Blue Cross",26,"Emergency","Emergency room",5,2,{"v":2446,"d":"$2,446"}]
[157,23,"Female","White","Single","Apr","Routine discharge",2,"Northeast","500 or over","Not-for-profit","V279-","736-","HMO",373,"Elective","Physician",3,2,{"v":2002,"d":"$2,002"}]
[158,43,"Female","White","Married","Sep","Routine discharge",2,"Northeast","500 or over","Not-for-profit","V594-","5551","Self pay",305,"Elective","Physician",3,1,{"v":1601,"d":"$1,601"}]
[159,30,"Female","White","Married","Dec","Routine discharge",2,"Northeast","500 or over","Not-for-profit","V270-","7359","HMO",373,"Elective","Physician",4,2,{"v":2310,"d":"$2,310"}]
[160,41,"Female","Not stated","Married","Dec","Routine discharge",3,"Northeast","500 or over","Not-for-profit","V270-","7569","Blue Cross",373,"Elective","Physician",3,1,{"v":788,"d":"$788"}]
[161,55,"Male","White","Not stated","Aug","Routine discharge",2,"Northeast","300 to 499","Not-for-profit","5920-","5504","Blue Cross",305,"Elective","Physician",3,2,{"v":2538,"d":"$2,538"}]
[162,95,"Female","White","Married","Mar","Routine discharge",16,"Northeast","200 to 299","Not-for-profit","82021","","Other private insurance",236,"Not reported","Not reported",4,3,{"v":2949,"d":"$2,949"}]
[163,10,"Male","White","Not stated","Jul","Routine discharge",4,"Northeast","300 to 499","Not-for-profit","1940-","0721","No charge",286,"Not reported","Not reported",5,1,{"v":1561,"d":"$1,561"}]
[164,1,"Female","White","Not stated","Jun","Routine discharge",9,"Northeast","300 to 499","Not-for-profit","5718-","4319","Other private insurance",200,"Not reported","Not reported",3,4,{"v":3640,"d":"$3,640"}]
[165,13,"Female","White","Not stated","Mar","Routine discharge",4,"Northeast","300 to 499","Not-for-profit","5990-","","Other private insurance",322,"Not reported","Not reported",5,1,{"v":1016,"d":"$1,016"}]
[166,1,"Female","White","Not stated","Jul","Routine discharge",3,"Northeast","300 to 499","Not-for-profit","9962-","0242","Blue Cross",3,"Not reported","Not reported",5,2,{"v":2400,"d":"$2,400"}]
[167,75,"Male","White","Not stated","Mar","Alive, disposition not stated",13,"Northeast","100 to 199","Not-for-profit","2536-","","Medicare",300,"Urgent","Emergency room",4,3,{"v":3071,"d":"$3,071"}]
[168,47,"Female","White","Not stated","Mar","Routine discharge",2,"Northeast","100 to 199","Not-for-profit","29633","9462","Medicaid",430,"Urgent","Emergency room",1,2,{"v":2578,"d":"$2,578"}]
[169,51,"Male","White","Not stated","Mar","Routine discharge",5,"Northeast","100 to 199","Not-for-profit","34590","8919","Medicare",24,"Urgent","Physician",1,1,{"v":781,"d":"$781"}]
[170,85,"Female","White","Not stated","Jul","Routine discharge",4,"Northeast","100 to 199","Not-for-profit","42731","9962","Medicare",139,"Urgent","Physician",5,1,{"v":1302,"d":"$1,302"}]
[171,20,"Male","Not stated","Not stated","Apr","Routine discharge",1,"Northeast","100 to 199","Not-for-profit","5409-","4709","Self pay",167,"Urgent","Emergency room",4,3,{"v":2808,"d":"$2,808"}]
[172,82,"Female","White","Not stated","Jul","Routine discharge",6,"Northeast","100 to 199","Not-for-profit","6826-","","Medicare",277,"Urgent","Emergency room",5,4,{"v":3792,"d":"$3,792"}]
[173,67,"Female","White","Not stated","May","Discharged to long-term facility",3,"Northeast","6 to 99","Not-for-profit","71596","8154","Medicare",209,"Elective","Physician",5,1,{"v":971,"d":"$971"}]
[174,75,"Male","White","Not stated","Sep","Routine discharge",8,"Northeast","6 to 99","Not-for-profit","9964-","8155","Medicare",209,"Elective","Physician",5,1,{"v":1386,"d":"$1,386"}]
[175,74,"Male","White","Not stated","Feb","Routine discharge",2,"Northeast","100 to 199","Not-for-profit","4659-","","Medicare",68,"Emergency","Not reported",4,2,{"v":2425,"d":"$2,425"}]
[176,11,"Male","Asian","Not stated","Mar","Routine discharge",22,"Northeast","300 to 499","Not-for-profit","0380-","8872","Medicaid",417,"Emergency","Transfer from other health facility",5,7,{"v":5544,"d":"$5,544"}]
[177,2,"Female","Not stated","Not stated","Apr","Routine discharge",1,"Northeast","300 to 499","Not-for-profit","6826-","8321","Blue Cross",270,"Emergency","Physician",5,1,{"v":1156,"d":"$1,156"}]
[178,6,"Female","Other","Not stated","May","Routine discharge",1,"Northeast","300 to 499","Not-for-profit","6820-","2309","HMO",279,"Emergency","Transfer from other health facility",5,2,{"v":2304,"d":"$2,304"}]
[179,56,"Male","Black","Not stated","Jul","Routine discharge",40,"Northeast","300 to 499","Not-for-profit","3453-","3927","Medicaid",468,"Emergency","Emergency room",5,8,{"v":7597,"d":"$7,597"}]
[180,56,"Female","Black","Not stated","May","Discharged to long-term facility",66,"Northeast","300 to 499","Not-for-profit","40391","8872","Medicare",316,"Emergency","Emergency room",1,10,{"v":15794,"d":"$15,794"}]
[181,62,"Male","Black","Not stated","Sep","Routine discharge",12,"Northeast","300 to 499","Not-for-profit","4280-","","Medicare",127,"Emergency","Emergency room",5,3,{"v":2915,"d":"$2,915"}]
[182,0,"Female","Black","Not stated","Mar","Routine discharge",2,"Northeast","100 to 199","Government","V3000","9955","Medicaid",391,"Newborn","Other",5,2,{"v":2378,"d":"$2,378"}]
[183,55,"Male","Other","Not stated","Jul","Routine discharge",4,"Northeast","100 to 199","Government","6826-","9921","Medicaid",278,"Emergency","Emergency room",5,1,{"v":1435,"d":"$1,435"}]
[184,26,"Female","Black","Not stated","Apr","Routine discharge",3,"Northeast","100 to 199","Government","V270-","7569","Other private insurance",373,"Elective","Physician",5,2,{"v":2346,"d":"$2,346"}]
[185,19,"Female","Black","Not stated","Jun","Routine discharge",2,"Northeast","100 to 199","Government","V270-","736-","Medicaid",373,"Emergency","Emergency room",5,2,{"v":2291,"d":"$2,291"}]
[186,20,"Female","American Indian","Not stated","Dec","Routine discharge",2,"Northeast","100 to 199","Government","V270-","736-","Medicaid",373,"Emergency","Emergency room",5,3,{"v":2678,"d":"$2,678"}]
[187,33,"Female","Black","Not stated","Nov","Dead",2,"Northeast","300 to 499","Government","042--","9671","Medicaid",490,"Emergency","Emergency room",1,3,{"v":2759,"d":"$2,759"}]
[188,84,"Male","Black","Not stated","Jun","Routine discharge",5,"Northeast","300 to 499","Government","42612","3782","Medicare",116,"Emergency","Emergency room",1,4,{"v":3401,"d":"$3,401"}]
[189,43,"Male","White","Married","Mar","Routine discharge",3,"Northeast","100 to 199","Not-for-profit","57410","5123","HMO",493,"Emergency","Emergency room",5,3,{"v":2928,"d":"$2,928"}]
[190,35,"Female","Black","Married","May","Routine discharge",2,"Northeast","100 to 199","Not-for-profit","72210","","HMO",243,"Emergency","Emergency room",5,1,{"v":762,"d":"$762"}]
[191,75,"Female","White","Not stated","Nov","Discharged to long-term facility",18,"Northeast","100 to 199","Not-for-profit","2765-","4311","Blue Cross",296,"Emergency","Emergency room",5,7,{"v":5774,"d":"$5,774"}]
[192,40,"Male","White","Not stated","May","Routine discharge",21,"Northeast","100 to 199","Not-for-profit","29570","","Medicare",430,"Emergency","Emergency room",4,5,{"v":4436,"d":"$4,436"}]
[193,40,"Male","Other","Not stated","Sep","Routine discharge",7,"Northeast","100 to 199","Not-for-profit","311--","","Self pay",426,"Emergency","Emergency room",4,1,{"v":1007,"d":"$1,007"}]
[194,42,"Female","Other","Not stated","Jan","Routine discharge",3,"Northeast","100 to 199","Not-for-profit","5921-","560-","Medicaid",311,"Emergency","Emergency room",1,1,{"v":1070,"d":"$1,070"}]
[195,69,"Male","Not stated","Not stated","Sep","Routine discharge",2,"Northeast","100 to 199","Not-for-profit","59581","5749","Medicare",311,"Elective","Physician",4,3,{"v":2645,"d":"$2,645"}]
[196,92,"Female","White","Not stated","May","Discharged to long-term facility",12,"Northeast","100 to 199","Not-for-profit","82101","7935","Medicare",210,"Emergency","Emergency room",5,3,{"v":2937,"d":"$2,937"}]
[197,68,"Male","Other","Not stated","Jul","Routine discharge",7,"Northeast","100 to 199","Not-for-profit","99665","6496","Medicare",315,"Urgent","Physician",5,4,{"v":3161,"d":"$3,161"}]
[198,80,"Female","White","Widowed","Feb","Routine discharge",3,"Northeast","100 to 199","Not-for-profit","4280-","","Medicare",127,"Emergency","Emergency room",1,2,{"v":2006,"d":"$2,006"}]
[199,80,"Female","White","Widowed","Aug","Routine discharge",2,"Northeast","100 to 199","Not-for-profit","40291","","Medicare",127,"Emergency","Emergency room",5,3,{"v":2805,"d":"$2,805"}]
[200,82,"Female","White","Widowed","Jul","Routine discharge",3,"Northeast","200 to 299","Not-for-profit","3310-","","Medicare",12,"Emergency","Emergency room",4,1,{"v":840,"d":"$840"}]
[201,90,"Male","White","Widowed","Nov","Not reported",1,"Northeast","200 to 299","Not-for-profit","42781","3785","Medicare",118,"Elective","Physician",5,1,{"v":1834,"d":"$1,834"}]
[202,57,"Female","White","Married","Dec","Routine discharge",2,"Northeast","200 to 299","Not-for-profit","5409-","4701","Self pay",167,"Emergency","Emergency room",5,1,{"v":921,"d":"$921"}]
[203,0,"Male","White","Not stated","Jun","Routine discharge",7,"Northeast","300 to 499","Government","V3001","9955","Self pay",386,"Newborn","Other",4,2,{"v":2417,"d":"$2,417"}]
[204,75,"Female","White","Not stated","May","Routine discharge",3,"Northeast","300 to 499","Government","25080","9396","Medicare",294,"Emergency","Emergency room",5,1,{"v":1329,"d":"$1,329"}]
[205,98,"Male","White","Not stated","Jul","Dead",5,"Northeast","300 to 499","Government","486--","9672","Medicare",475,"Emergency","Emergency room",5,4,{"v":3579,"d":"$3,579"}]
[206,24,"Female","Other","Not stated","Apr","Routine discharge",3,"Northeast","300 to 499","Government","V270-","741-","Medicaid",371,"Emergency","Clinic",5,2,{"v":1889,"d":"$1,889"}]
[207,34,"Female","Other","Not stated","Nov","Routine discharge",2,"Northeast","300 to 499","Government","V270-","7569","Medicaid",373,"Emergency","Clinic",5,3,{"v":2905,"d":"$2,905"}]
[208,0,"Female","Not stated","Not stated","Jul","Routine discharge",2,"Northeast","200 to 299","Not-for-profit","V3000","","Other private insurance",390,"Newborn","Other",4,1,{"v":1285,"d":"$1,285"}]
[209,85,"Male","White","Not stated","Mar","Routine discharge",9,"Northeast","200 to 299","Not-for-profit","2765-","","Medicaid",296,"Emergency","Emergency room",4,1,{"v":1667,"d":"$1,667"}]
[210,70,"Male","White","Not stated","May","Routine discharge",10,"Northeast","200 to 299","Not-for-profit","42731","","Medicare",138,"Emergency","Emergency room",5,8,{"v":6777,"d":"$6,777"}]
[211,63,"Female","Black","Not stated","Jul","Routine discharge",1,"Northeast","200 to 299","Not-for-profit","5990-","","Medicaid",321,"Emergency","Emergency room",1,2,{"v":1953,"d":"$1,953"}]
[212,45,"Female","Black","Divorced","Aug","Routine discharge",2,"Northeast","300 to 499","Not-for-profit","72210","8051","Self pay",500,"Elective","Physician",4,3,{"v":2785,"d":"$2,785"}]
[213,36,"Male","Black","Married","Aug","Routine discharge",2,"Northeast","6 to 99","Not-for-profit","3090-","","Medicaid",426,"Urgent","Court",5,3,{"v":2748,"d":"$2,748"}]
[214,15,"Female","Pacific Islander","Single","Nov","Discharged to short-term facility",1,"Northeast","6 to 99","Not-for-profit","3094-","","Medicaid",427,"Urgent","Not reported",4,2,{"v":1886,"d":"$1,886"}]
[215,18,"Female","White","Single","Nov","Routine discharge",4,"Northeast","6 to 99","Not-for-profit","3094-","","HMO",427,"Urgent","Not reported",5,1,{"v":895,"d":"$895"}]
[216,0,"Female","White","Single","Aug","Routine discharge",2,"Northeast","100 to 199","Not-for-profit","V3000","","Blue Cross",391,"Newborn","Other",5,3,{"v":2641,"d":"$2,641"}]
[217,24,"Female","White","Married","Apr","Routine discharge",3,"Northeast","100 to 199","Not-for-profit","V270-","7569","HMO",373,"Elective","Physician",5,1,{"v":792,"d":"$792"}]
[218,0,"Female","White","Single","Mar","Routine discharge",1,"Northeast","100 to 199","Not-for-profit","V3000","","Blue Cross",391,"Newborn","Other",5,3,{"v":2957,"d":"$2,957"}]
[219,0,"Male","White","Single","Oct","Routine discharge",3,"Northeast","100 to 199","Not-for-profit","V3000","640-","HMO",391,"Newborn","Other",5,3,{"v":2824,"d":"$2,824"}]
[220,0,"Female","White","Single","Oct","Routine discharge",3,"Northeast","100 to 199","Not-for-profit","V3001","","HMO",390,"Newborn","Other",5,1,{"v":1645,"d":"$1,645"}]
[221,76,"Female","White","Widowed","May","Discharged to long-term facility",13,"Northeast","100 to 199","Not-for-profit","1820-","684-","Medicare",354,"Elective","Physician",5,3,{"v":2814,"d":"$2,814"}]
[222,26,"Female","Black","Single","Jul","Routine discharge",2,"Northeast","100 to 199","Not-for-profit","3510-","8841","Self pay",19,"Urgent","Emergency room",5,1,{"v":929,"d":"$929"}]
[223,88,"Female","White","Widowed","Mar","Routine discharge",5,"Northeast","100 to 199","Not-for-profit","4280-","","Medicare",127,"Urgent","Emergency room",5,1,{"v":1601,"d":"$1,601"}]
[224,68,"Male","White","Married","Jun","Routine discharge",6,"Northeast","100 to 199","Not-for-profit","4280-","","Medicare",127,"Urgent","Emergency room",5,1,{"v":1596,"d":"$1,596"}]
[225,54,"Male","White","Married","Aug","Routine discharge",1,"Northeast","100 to 199","Not-for-profit","4019-","9205","Blue Cross",134,"Urgent","Emergency room",5,1,{"v":1545,"d":"$1,545"}]
[226,89,"Female","White","Widowed","Dec","Routine discharge",3,"Northeast","100 to 199","Not-for-profit","4280-","","Medicare",127,"Urgent","Emergency room",5,1,{"v":1858,"d":"$1,858"}]
[227,21,"Male","White","Single","Aug","Routine discharge",17,"Northeast","100 to 199","Not-for-profit","5128-","3459","Other",75,"Urgent","Emergency room",5,6,{"v":5057,"d":"$5,057"}]
[228,30,"Female","White","Married","Oct","Routine discharge",2,"Northeast","100 to 199","Not-for-profit","6171-","6529","Blue Cross",359,"Elective","Physician",5,2,{"v":2020,"d":"$2,020"}]
[229,27,"Female","American Indian","Married","Jul","Routine discharge",4,"Northeast","100 to 199","Not-for-profit","64313","3893","Blue Cross",383,"Urgent","Physician",5,3,{"v":3102,"d":"$3,102"}]
[230,55,"Female","White","Married","Nov","Discharged to long-term facility",6,"Northeast","100 to 199","Not-for-profit","73027","8894","HMO",238,"Urgent","Physician",5,1,{"v":1061,"d":"$1,061"}]
[231,78,"Female","White","Single","Apr","Alive, disposition not stated",5,"Northeast","100 to 199","Not-for-profit","9964-","8151","Medicare",209,"Elective","Physician",5,4,{"v":3869,"d":"$3,869"}]
[232,76,"Female","White","Widowed","Jun","Discharged to long-term facility",12,"Northeast","100 to 199","Not-for-profit","9964-","8153","Medicare",209,"Emergency","Emergency room",5,3,{"v":2599,"d":"$2,599"}]
[233,18,"Female","White","Single","Nov","Routine discharge",2,"Northeast","100 to 199","Not-for-profit","V270-","7359","HMO",373,"Elective","Physician",5,1,{"v":1168,"d":"$1,168"}]
[234,26,"Female","White","Married","Nov","Routine discharge",2,"Northeast","100 to 199","Not-for-profit","V270-","741-","Other private insurance",371,"Elective","Physician",5,1,{"v":1455,"d":"$1,455"}]
[235,41,"Male","Black","Married","Feb","Routine discharge",5,"Northeast","500 or over","Not-for-profit","2113-","4573","Other private insurance",149,"Urgent","Other",5,4,{"v":3814,"d":"$3,814"}]
[236,45,"Male","White","Divorced","Aug","Routine discharge",8,"Northeast","500 or over","Not-for-profit","5722-","5491","Other",205,"Urgent","Emergency room",5,2,{"v":1971,"d":"$1,971"}]
[237,33,"Female","White","Married","Oct","Routine discharge",3,"Northeast","500 or over","Not-for-profit","6202-","","Blue Cross",369,"Emergency","Emergency room",5,2,{"v":2368,"d":"$2,368"}]
[238,46,"Male","White","Married","Nov","Routine discharge",1,"Northeast","200 to 299","Not-for-profit","43491","","Not stated",14,"Not reported","Not reported",5,1,{"v":888,"d":"$888"}]
[239,31,"Female","White","Married","Aug","Routine discharge",5,"Northeast","200 to 299","Not-for-profit","V270-","741-","Other",371,"Not reported","Not reported",5,1,{"v":865,"d":"$865"}]
[240,30,"Male","Black","Not stated","May","Alive, disposition not stated",1,"Northeast","100 to 199","Not-for-profit","29534","","Medicare",430,"Emergency","Emergency room",5,3,{"v":2972,"d":"$2,972"}]
[241,82,"Female","Black","Not stated","Apr","Routine discharge",1,"Northeast","100 to 199","Not-for-profit","3310-","","HMO",12,"Urgent","Emergency room",5,2,{"v":2221,"d":"$2,221"}]
[242,80,"Male","White","Not stated","Jan","Discharged to long-term facility",2,"Northeast","100 to 199","Not-for-profit","43491","","Medicare",14,"Urgent","Emergency room",5,3,{"v":2839,"d":"$2,839"}]
[243,26,"Female","White","Not stated","Feb","Routine discharge",1,"Northeast","100 to 199","Not-for-profit","4554-","4946","Self pay",158,"Urgent","Emergency room",5,2,{"v":1910,"d":"$1,910"}]
[244,88,"Female","White","Not stated","Jul","Alive, disposition not stated",12,"Northeast","100 to 199","Not-for-profit","4414-","7935","Blue Cross",468,"Urgent","Emergency room",1,4,{"v":3252,"d":"$3,252"}]
[245,31,"Female","Black","Not stated","Jun","Routine discharge",2,"Northeast","100 to 199","Not-for-profit","59010","","HMO",320,"Urgent","Emergency room",5,3,{"v":2733,"d":"$2,733"}]
[246,34,"Male","White","Not stated","Jan","Dead",7,"Midwest","100 to 199","Not-for-profit","80125","0131","Medicare",2,"Not reported","Not reported",5,1,{"v":975,"d":"$975"}]
[247,63,"Male","Not stated","Not stated","Jun","Routine discharge",28,"Midwest","100 to 199","Not-for-profit","29570","","Medicaid",430,"Emergency","Emergency room",5,8,{"v":7812,"d":"$7,812"}]
[248,51,"Female","Not stated","Not stated","Mar","Routine discharge",1,"Midwest","100 to 199","Not-for-profit","53081","4516","Blue Cross",182,"Emergency","Emergency room",4,3,{"v":3088,"d":"$3,088"}]
[249,34,"Male","Not stated","Not stated","Mar","Routine discharge",5,"Midwest","200 to 299","Not-for-profit","5789-","4513","Self pay",174,"Emergency","Emergency room",5,2,{"v":1958,"d":"$1,958"}]
[250,30,"Female","Not stated","Not stated","May","Routine discharge",2,"Midwest","200 to 299","Not-for-profit","V270-","7359","HMO",373,"Elective","Physician",5,2,{"v":2374,"d":"$2,374"}]
[251,23,"Male","Black","Single","Sep","Routine discharge",5,"Midwest","200 to 299","Not-for-profit","85300","","Medicaid",28,"Not reported","Not reported",1,3,{"v":2970,"d":"$2,970"}]
[252,0,"Female","Not stated","Not stated","Feb","Routine discharge",2,"Midwest","300 to 499","Not-for-profit","V3000","9547","Other private insurance",391,"Newborn","Other",4,3,{"v":2840,"d":"$2,840"}]
[253,0,"Female","Not stated","Not stated","Mar","Routine discharge",3,"Midwest","300 to 499","Not-for-profit","V3001","9547","Blue Cross",391,"Newborn","Other",5,3,{"v":2624,"d":"$2,624"}]
[254,44,"Female","Not stated","Not stated","Aug","Routine discharge",3,"Midwest","300 to 499","Not-for-profit","36234","","Blue Cross",45,"Urgent","Emergency room",5,1,{"v":1383,"d":"$1,383"}]
[255,59,"Female","Not stated","Not stated","Nov","Routine discharge",4,"Midwest","300 to 499","Not-for-profit","4280-","","Other private insurance",127,"Urgent","Physician",5,1,{"v":1540,"d":"$1,540"}]
[256,55,"Male","Not stated","Not stated","Sep","Routine discharge",4,"Midwest","300 to 499","Not-for-profit","V5789","","Other private insurance",462,"Emergency","Physician",5,1,{"v":834,"d":"$834"}]
[257,75,"Female","White","Not stated","Feb","Discharged to short-term facility",8,"Midwest","6 to 99","Not-for-profit","V5789","","Medicare",462,"Elective","Transfer from hospital",5,1,{"v":1809,"d":"$1,809"}]
[258,50,"Female","Not stated","Not stated","Oct","Alive, disposition not stated",24,"Midwest","100 to 199","Not-for-profit","03811","8622","Medicare",415,"Emergency","Not reported",4,4,{"v":3686,"d":"$3,686"}]
[259,88,"Female","Not stated","Not stated","Mar","Discharged to long-term facility",3,"Midwest","100 to 199","Not-for-profit","2948-","","Medicare",429,"Emergency","Not reported",5,1,{"v":1745,"d":"$1,745"}]
[260,5,"Male","Black","Not stated","Oct","Routine discharge",21,"Midwest","300 to 499","Not-for-profit","28262","9901","HMO",396,"Not reported","Not reported",4,5,{"v":3972,"d":"$3,972"}]
[261,5,"Male","Other","Not stated","Mar","Routine discharge",2,"Midwest","300 to 499","Not-for-profit","56409","","Medicaid",184,"Not reported","Not reported",5,1,{"v":1729,"d":"$1,729"}]
[262,68,"Female","Black","Not stated","Dec","Routine discharge",2,"Midwest","200 to 299","Not-for-profit","6180-","7171","Medicare",360,"Elective","Physician",4,1,{"v":1398,"d":"$1,398"}]
[263,58,"Male","Black","Not stated","Feb","Routine discharge",1,"Midwest","200 to 299","Not-for-profit","V581-","9925","Medicare",410,"Elective","Physician",1,1,{"v":1242,"d":"$1,242"}]
[264,76,"Female","Not stated","Not stated","Jan","Routine discharge",4,"Midwest","300 to 499","Not-for-profit","42731","9961","Medicare",138,"Urgent","HMO",5,1,{"v":1334,"d":"$1,334"}]
[265,90,"Male","Not stated","Not stated","Jun","Discharged to long-term facility",12,"Midwest","300 to 499","Not-for-profit","5070-","","Medicare",79,"Elective","Emergency room",4,2,{"v":2535,"d":"$2,535"}]
[266,39,"Male","Not stated","Not stated","Aug","Routine discharge",2,"Midwest","300 to 499","Not-for-profit","7230-","8102","Other private insurance",520,"Elective","Physician",1,2,{"v":2011,"d":"$2,011"}]
[267,78,"Female","Not stated","Not stated","Oct","Routine discharge",2,"Midwest","6 to 99","Not-for-profit","4280-","","Medicare",127,"Emergency","Emergency room",4,1,{"v":1269,"d":"$1,269"}]
[268,89,"Female","Not stated","Not stated","Nov","Routine discharge",4,"Midwest","6 to 99","Not-for-profit","5789-","9904","Medicare",174,"Emergency","Emergency room",4,3,{"v":2858,"d":"$2,858"}]
[269,83,"Male","Not stated","Not stated","May","Routine discharge",4,"Midwest","6 to 99","Not-for-profit","99811","9904","Medicare",452,"Elective","Physician",5,2,{"v":1895,"d":"$1,895"}]
[270,0,"Male","Not stated","Not stated","Aug","Routine discharge",2,"Midwest","200 to 299","Not-for-profit","V3000","640-","Other private insurance",390,"Newborn","Other",5,1,{"v":1334,"d":"$1,334"}]
[271,76,"Male","Not stated","Not stated","Aug","Routine discharge",6,"Midwest","200 to 299","Not-for-profit","4280-","3491","Medicare",127,"Emergency","Emergency room",1,1,{"v":1753,"d":"$1,753"}]
[272,28,"Male","Not stated","Not stated","Aug","Routine discharge",2,"Midwest","200 to 299","Not-for-profit","49391","","Self pay",96,"Emergency","Emergency room",5,1,{"v":1105,"d":"$1,105"}]
[273,26,"Female","Not stated","Not stated","Jan","Routine discharge",3,"Midwest","200 to 299","Not-for-profit","5579-","4525","Other private insurance",189,"Emergency","Emergency room",4,2,{"v":1971,"d":"$1,971"}]
[274,74,"Female","Not stated","Not stated","Jan","Routine discharge",2,"Midwest","200 to 299","Not-for-profit","56212","4523","Medicare",175,"Emergency","Emergency room",5,2,{"v":2049,"d":"$2,049"}]
[275,39,"Female","Not stated","Not stated","Jan","Routine discharge",3,"Midwest","200 to 299","Not-for-profit","5641-","4525","HMO",183,"Emergency","Emergency room",5,2,{"v":2459,"d":"$2,459"}]
[276,77,"Male","Not stated","Not stated","Nov","Routine discharge",6,"Midwest","200 to 299","Not-for-profit","5750-","5122","Medicare",197,"Emergency","Emergency room",5,1,{"v":840,"d":"$840"}]
[277,56,"Male","Not stated","Not stated","Aug","Discharged to short-term facility",5,"Midwest","200 to 299","Not-for-profit","5849-","3895","Self pay",316,"Emergency","Emergency room",1,2,{"v":2540,"d":"$2,540"}]
[278,79,"Male","Not stated","Not stated","May","Discharged to short-term facility",6,"Midwest","200 to 299","Not-for-profit","71596","8192","Medicare",244,"Emergency","Emergency room",5,1,{"v":1148,"d":"$1,148"}]
[279,26,"Female","Not stated","Not stated","Jan","Routine discharge",2,"Midwest","200 to 299","Not-for-profit","V270-","7359","Other private insurance",373,"Urgent","Physician",5,3,{"v":2751,"d":"$2,751"}]
[280,37,"Female","Not stated","Not stated","Jul","Routine discharge",3,"Midwest","200 to 299","Not-for-profit","V270-","741-","Other private insurance",371,"Elective","Physician",5,1,{"v":1773,"d":"$1,773"}]
[281,56,"Male","Not stated","Not stated","Oct","Routine discharge",7,"Midwest","300 to 499","Not-for-profit","41091","3722","HMO",121,"Emergency","Emergency room",1,2,{"v":2429,"d":"$2,429"}]
[282,79,"Female","Not stated","Not stated","Oct","Routine discharge",9,"Midwest","300 to 499","Not-for-profit","73024","8622","Medicare",217,"Urgent","Physician",5,1,{"v":1501,"d":"$1,501"}]
[283,79,"Female","Not stated","Not stated","Feb","Routine discharge",7,"Midwest","300 to 499","Not-for-profit","V5789","","Medicare",462,"Elective","Transfer from hospital",5,3,{"v":2922,"d":"$2,922"}]
[284,38,"Female","Black","Married","Apr","Routine discharge",2,"Midwest","500 or over","Not-for-profit","40391","5569","HMO",302,"Not reported","Not reported",4,2,{"v":1907,"d":"$1,907"}]
[285,76,"Female","White","Divorced","Oct","Routine discharge",3,"Midwest","500 or over","Not-for-profit","41401","3722","Medicare",125,"Not reported","Not reported",4,3,{"v":2726,"d":"$2,726"}]
[286,0,"Female","Not stated","Not stated","Feb","Routine discharge",4,"Midwest","100 to 199","Not-for-profit","V3001","","Other private insurance",391,"Newborn","Other",4,2,{"v":2460,"d":"$2,460"}]
[287,76,"Female","Not stated","Not stated","Feb","Discharged to long-term facility",8,"Midwest","100 to 199","Not-for-profit","2554-","","Medicare",300,"Emergency","Emergency room",4,6,{"v":5191,"d":"$5,191"}]
[288,24,"Female","Not stated","Not stated","Jul","Routine discharge",2,"Midwest","100 to 199","Not-for-profit","59010","","Blue Cross",320,"Emergency","Emergency room",5,3,{"v":3085,"d":"$3,085"}]
[289,50,"Male","Not stated","Not stated","May","Routine discharge",1,"Midwest","100 to 199","Not-for-profit","7234-","","Other private insurance",19,"Emergency","Emergency room",4,1,{"v":941,"d":"$941"}]
[290,36,"Female","Not stated","Not stated","May","Routine discharge",4,"Midwest","100 to 199","Not-for-profit","V270-","741-","Blue Cross",371,"Elective","Physician",5,2,{"v":2417,"d":"$2,417"}]
[291,27,"Female","Not stated","Not stated","Dec","Routine discharge",2,"Midwest","100 to 199","Not-for-profit","V270-","7561","Blue Cross",373,"Elective","Physician",5,2,{"v":2490,"d":"$2,490"}]
[292,79,"Female","White","Widowed","Aug","Routine discharge",1,"Midwest","100 to 199","Not-for-profit","57410","5123","Medicare",494,"Elective","Physician",4,2,{"v":2337,"d":"$2,337"}]
[293,41,"Female","White","Married","Jul","Routine discharge",3,"Midwest","200 to 299","Not-for-profit","27801","4439","Not stated",288,"Not reported","Not reported",1,1,{"v":881,"d":"$881"}]
[294,97,"Male","Not stated","Not stated","Nov","Dead",6,"Midwest","100 to 199","Not-for-profit","2851-","9904","Medicare",395,"Urgent","Physician",5,3,{"v":2841,"d":"$2,841"}]
[295,48,"Female","Not stated","Not stated","May","Discharged to long-term facility",5,"Midwest","100 to 199","Not-for-profit","V5789","","Not stated",462,"Urgent","Transfer from hospital",5,1,{"v":930,"d":"$930"}]
[296,29,"Female","Not stated","Not stated","Nov","Routine discharge",1,"Midwest","100 to 199","Not-for-profit","V270-","7359","Other private insurance",373,"Elective","Physician",1,3,{"v":3046,"d":"$3,046"}]
[297,64,"Female","Not stated","Not stated","Jun","Routine discharge",5,"Midwest","500 or over","Not-for-profit","1625-","324-","Medicare",75,"Elective","Physician",5,3,{"v":3067,"d":"$3,067"}]
[298,40,"Male","Not stated","Not stated","Nov","Dead",4,"Midwest","500 or over","Not-for-profit","1970-","9671","Medicare",475,"Emergency","Emergency room",1,2,{"v":2212,"d":"$2,212"}]
[299,42,"Female","Not stated","Not stated","Jul","Discharged to long-term facility",2,"Midwest","500 or over","Not-for-profit","29654","","HMO",430,"Emergency","Emergency room",5,3,{"v":2800,"d":"$2,800"}]
[300,40,"Female","Not stated","Not stated","Aug","Routine discharge",3,"Midwest","500 or over","Not-for-profit","43491","8891","Other private insurance",14,"Emergency","Emergency room",1,3,{"v":2619,"d":"$2,619"}]
[301,80,"Male","Not stated","Not stated","Sep","Routine discharge",4,"Midwest","500 or over","Not-for-profit","4280-","","Medicare",127,"Emergency","Emergency room",5,3,{"v":2704,"d":"$2,704"}]
[302,42,"Female","Not stated","Not stated","Jul","Routine discharge",2,"Midwest","500 or over","Not-for-profit","6200-","684-","Other private insurance",359,"Elective","Physician",5,2,{"v":2025,"d":"$2,025"}]
[303,85,"Male","Not stated","Not stated","Oct","Discharged to long-term facility",4,"Midwest","500 or over","Not-for-profit","72402","0309","Medicare",500,"Elective","Physician",5,2,{"v":1994,"d":"$1,994"}]
[304,75,"Male","Not stated","Not stated","Feb","Discharged to short-term facility",5,"Midwest","500 or over","Not-for-profit","V571-","9339","Medicare",462,"Urgent","Transfer from hospital",5,2,{"v":2158,"d":"$2,158"}]
[305,71,"Male","Black","Separated","Jul","Routine discharge",3,"Midwest","500 or over","Not-for-profit","185--","605-","Medicare",335,"Elective","Other",5,1,{"v":1062,"d":"$1,062"}]
[306,14,"Male","Black","Single","May","Routine discharge",1,"Midwest","500 or over","Not-for-profit","78057","2769","Medicaid",8,"Emergency","Other",4,1,{"v":1707,"d":"$1,707"}]
[307,0,"Male","Not stated","Not stated","Jan","Routine discharge",2,"Midwest","200 to 299","Not-for-profit","V3000","640-","HMO",391,"Newborn","Other",5,1,{"v":815,"d":"$815"}]
[308,0,"Female","Not stated","Not stated","Sep","Routine discharge",2,"Midwest","200 to 299","Not-for-profit","V3000","","HMO",391,"Newborn","Other",1,3,{"v":2912,"d":"$2,912"}]
[309,57,"Male","Not stated","Not stated","Jun","Alive, disposition not stated",8,"Midwest","200 to 299","Not-for-profit","25080","8622","Blue Cross",287,"Not reported","Physician",5,3,{"v":2593,"d":"$2,593"}]
[310,62,"Female","Not stated","Not stated","Jul","Alive, disposition not stated",4,"Midwest","200 to 299","Not-for-profit","43491","9383","Medicare",14,"Not reported","Emergency room",1,2,{"v":2094,"d":"$2,094"}]
[311,74,"Male","Not stated","Not stated","Oct","Routine discharge",1,"Midwest","200 to 299","Not-for-profit","41401","3601","Medicare",517,"Not reported","Physician",1,3,{"v":3005,"d":"$3,005"}]
[312,50,"Female","Not stated","Not stated","May","Routine discharge",3,"Midwest","200 to 299","Not-for-profit","87352","8622","Medicare",265,"Not reported","Emergency room",5,1,{"v":1358,"d":"$1,358"}]
[313,59,"Male","Black","Not stated","Aug","Routine discharge",8,"Midwest","200 to 299","Not-for-profit","2767-","","Medicare",297,"Emergency","Emergency room",4,7,{"v":6533,"d":"$6,533"}]
[314,43,"Male","White","Not stated","Jun","Discharged to short-term facility",1,"Midwest","200 to 299","Not-for-profit","5770-","","HMO",204,"Emergency","Emergency room",4,2,{"v":2530,"d":"$2,530"}]
[315,62,"Female","Black","Not stated","Nov","Routine discharge",1,"Midwest","200 to 299","Not-for-profit","53190","","Medicare",178,"Emergency","Emergency room",5,3,{"v":3104,"d":"$3,104"}]
[316,59,"Female","Black","Not stated","Dec","Routine discharge",1,"Midwest","200 to 299","Not-for-profit","6826-","","HMO",277,"Emergency","Emergency room",5,1,{"v":820,"d":"$820"}]
[317,48,"Female","White","Not stated","Jun","Routine discharge",2,"Midwest","200 to 299","Not-for-profit","73381","7817","HMO",219,"Elective","Physician",4,3,{"v":2738,"d":"$2,738"}]
[318,47,"Male","Black","Not stated","Apr","Routine discharge",5,"Midwest","200 to 299","Not-for-profit","9661-","","HMO",449,"Emergency","Emergency room",5,1,{"v":1379,"d":"$1,379"}]
[319,72,"Male","Black","Not stated","Oct","Dead",2,"Midwest","300 to 499","Not-for-profit","2765-","4516","Medicare",296,"Emergency","Emergency room",5,1,{"v":765,"d":"$765"}]
[320,70,"Female","White","Not stated","Jul","Discharged to long-term facility",7,"Midwest","300 to 499","Not-for-profit","2858-","4513","Medicare",395,"Emergency","Physician",5,4,{"v":3364,"d":"$3,364"}]
[321,67,"Female","Black","Not stated","Apr","Alive, disposition not stated",3,"Midwest","300 to 499","Not-for-profit","71535","8151","Medicare",209,"Elective","Clinic",5,2,{"v":2353,"d":"$2,353"}]
[322,0,"Male","White","Not stated","Oct","Routine discharge",2,"Midwest","500 or over","Not-for-profit","V3000","640-","HMO",391,"Newborn","Other",1,1,{"v":1615,"d":"$1,615"}]
[323,38,"Female","White","Not stated","Aug","Routine discharge",9,"Midwest","500 or over","Not-for-profit","29633","","HMO",430,"Elective","Physician",5,2,{"v":2278,"d":"$2,278"}]
[324,88,"Male","White","Not stated","Aug","Routine discharge",5,"Midwest","500 or over","Not-for-profit","43491","","Medicare",14,"Emergency","Emergency room",4,2,{"v":1951,"d":"$1,951"}]
[325,60,"Male","White","Not stated","Jan","Alive, disposition not stated",25,"Midwest","500 or over","Not-for-profit","6826-","3949","HMO",263,"Emergency","Emergency room",5,3,{"v":2739,"d":"$2,739"}]
[326,86,"Female","White","Widowed","Jan","Routine discharge",15,"Midwest","100 to 199","Not-for-profit","V5789","9389","Medicare",462,"Elective","Physician",1,4,{"v":3359,"d":"$3,359"}]
[327,0,"Male","Not stated","Not stated","Apr","Routine discharge",4,"Midwest","200 to 299","Not-for-profit","V3001","640-","HMO",391,"Newborn","Other",4,3,{"v":2855,"d":"$2,855"}]
[328,48,"Female","Not stated","Not stated","Jun","Discharged to short-term facility",1,"Midwest","200 to 299","Not-for-profit","03842","9671","HMO",416,"Emergency","Emergency room",4,2,{"v":2014,"d":"$2,014"}]
[329,96,"Male","Not stated","Not stated","Mar","Discharged to short-term facility",5,"Midwest","200 to 299","Not-for-profit","41071","","Medicare",121,"Emergency","Emergency room",5,1,{"v":1480,"d":"$1,480"}]
[330,88,"Female","Not stated","Not stated","Aug","Routine discharge",6,"Midwest","200 to 299","Not-for-profit","41519","","Medicare",78,"Emergency","Emergency room",4,4,{"v":3417,"d":"$3,417"}]
[331,64,"Female","Not stated","Not stated","Oct","Routine discharge",7,"Midwest","200 to 299","Not-for-profit","4280-","","Other private insurance",127,"Emergency","Emergency room",1,3,{"v":3094,"d":"$3,094"}]
[332,45,"Female","Not stated","Not stated","Mar","Routine discharge",5,"Midwest","200 to 299","Not-for-profit","57410","5123","Medicare",493,"Emergency","Emergency room",1,3,{"v":2749,"d":"$2,749"}]
[333,47,"Female","Not stated","Not stated","Mar","Routine discharge",2,"Midwest","100 to 199","Not-for-profit","30560","","Self pay",523,"Urgent","Clinic",5,1,{"v":1296,"d":"$1,296"}]
[334,49,"Male","Not stated","Not stated","Mar","Routine discharge",2,"Midwest","100 to 199","Not-for-profit","41401","3601","Medicaid",517,"Emergency","Emergency room",5,1,{"v":1466,"d":"$1,466"}]
[335,45,"Female","Not stated","Not stated","Oct","Routine discharge",3,"Midwest","100 to 199","Not-for-profit","40291","3722","HMO",124,"Emergency","Emergency room",5,2,{"v":2149,"d":"$2,149"}]
[336,84,"Female","Not stated","Not stated","Nov","Dead",4,"Midwest","100 to 199","Not-for-profit","51881","","Other private insurance",87,"Urgent","Physician",1,2,{"v":2300,"d":"$2,300"}]
[337,39,"Female","Not stated","Not stated","Sep","Routine discharge",2,"Midwest","100 to 199","Not-for-profit","56400","","HMO",183,"Emergency","Emergency room",5,2,{"v":1946,"d":"$1,946"}]
[338,46,"Male","Not stated","Not stated","Oct","Routine discharge",1,"Midwest","100 to 199","Not-for-profit","72210","8051","HMO",499,"Elective","Physician",5,1,{"v":1083,"d":"$1,083"}]
[339,80,"Female","Not stated","Not stated","May","Routine discharge",15,"Midwest","100 to 199","Not-for-profit","V5789","9339","Medicare",462,"Elective","Physician",1,3,{"v":3018,"d":"$3,018"}]
[340,71,"Female","Not stated","Not stated","Apr","Routine discharge",2,"Midwest","300 to 499","Not-for-profit","42731","","Medicare",139,"Emergency","Emergency room",5,1,{"v":1738,"d":"$1,738"}]
[341,76,"Female","Not stated","Not stated","Jun","Discharged to short-term facility",10,"Midwest","300 to 499","Not-for-profit","41401","3601","Medicare",517,"Emergency","Emergency room",5,4,{"v":3788,"d":"$3,788"}]
[342,95,"Female","Not stated","Not stated","Nov","Routine discharge",7,"Midwest","300 to 499","Not-for-profit","70713","","Medicare",271,"Urgent","Transfer from hospital",4,2,{"v":2374,"d":"$2,374"}]
[343,32,"Female","White","Married","Jan","Routine discharge",2,"South","100 to 199","Proprietary","V270-","736-","HMO",373,"Urgent","Physician",5,3,{"v":2782,"d":"$2,782"}]
[344,32,"Female","Asian","Married","Aug","Routine discharge",7,"South","100 to 199","Proprietary","V272-","741-","HMO",370,"Urgent","Physician",5,1,{"v":1051,"d":"$1,051"}]
[345,0,"Male","White","Single","Jan","Routine discharge",2,"South","100 to 199","Not-for-profit","V3000","640-","Medicaid",390,"Newborn","Other",5,1,{"v":1270,"d":"$1,270"}]
[346,0,"Male","White","Single","May","Routine discharge",2,"South","100 to 199","Not-for-profit","V3000","640-","HMO",391,"Newborn","Other",4,3,{"v":2973,"d":"$2,973"}]
[347,52,"Male","White","Divorced","Nov","Routine discharge",3,"South","100 to 199","Not-for-profit","2967-","","Self pay",430,"Emergency","Emergency room",5,3,{"v":2739,"d":"$2,739"}]
[348,65,"Male","White","Married","Jul","Discharged to short-term facility",1,"South","100 to 199","Not-for-profit","4271-","","HMO",138,"Emergency","Emergency room",5,2,{"v":2070,"d":"$2,070"}]
[349,73,"Female","White","Married","Aug","Routine discharge",5,"South","100 to 199","Not-for-profit","42731","","Medicare",138,"Emergency","Emergency room",4,3,{"v":2850,"d":"$2,850"}]
[350,40,"Female","White","Married","Jan","Routine discharge",4,"South","100 to 199","Not-for-profit","53500","4516","Medicaid",182,"Emergency","Emergency room",4,1,{"v":1103,"d":"$1,103"}]
[351,26,"Male","White","Single","Sep","Routine discharge",2,"South","100 to 199","Not-for-profit","53340","","HMO",174,"Emergency","Emergency room",1,1,{"v":1746,"d":"$1,746"}]
[352,83,"Male","White","Married","Oct","Alive, disposition not stated",7,"South","100 to 199","Not-for-profit","5761-","8891","Medicare",207,"Emergency","Emergency room",4,3,{"v":3044,"d":"$3,044"}]
[353,27,"Female","White","Married","Mar","Routine discharge",3,"South","100 to 199","Not-for-profit","V270-","7359","HMO",373,"Urgent","Not reported",5,3,{"v":2864,"d":"$2,864"}]
[354,33,"Female","White","Married","Jun","Routine discharge",2,"South","100 to 199","Not-for-profit","V270-","736-","HMO",373,"Urgent","Not reported",5,2,{"v":2084,"d":"$2,084"}]
[355,26,"Female","White","Married","Jul","Routine discharge",2,"South","100 to 199","Not-for-profit","V270-","7359","Blue Cross",373,"Urgent","Not reported",4,1,{"v":1061,"d":"$1,061"}]
[356,52,"Female","Other","Not stated","Jan","Routine discharge",7,"South","200 to 299","Not-for-profit","1830-","6529","Blue Cross",357,"Not reported","Not reported",1,4,{"v":3423,"d":"$3,423"}]
[357,50,"Male","White","Not stated","Aug","Routine discharge",1,"South","200 to 299","Not-for-profit","2740-","8191","Blue Cross",244,"Not reported","Not reported",4,2,{"v":2041,"d":"$2,041"}]
[358,54,"Male","Black","Not stated","Jan","Alive, disposition not stated",3,"South","200 to 299","Not-for-profit","71535","8151","Other private insurance",209,"Not reported","Not reported",5,1,{"v":1032,"d":"$1,032"}]
[359,23,"Female","White","Not stated","Feb","Routine discharge",2,"South","200 to 299","Not-for-profit","V270-","7271","Other private insurance",373,"Not reported","Not reported",5,2,{"v":2537,"d":"$2,537"}]
[360,0,"Male","Not stated","Single","Apr","Routine discharge",2,"South","300 to 499","Not-for-profit","V3000","640-","Blue Cross",391,"Newborn","Other",5,2,{"v":1934,"d":"$1,934"}]
[361,0,"Male","Not stated","Single","Oct","Routine discharge",4,"South","300 to 499","Not-for-profit","V3001","","Blue Cross",391,"Newborn","Other",5,1,{"v":1413,"d":"$1,413"}]
[362,35,"Female","Not stated","Single","Jan","Routine discharge",19,"South","300 to 499","Not-for-profit","28262","3893","Medicare",395,"Emergency","Emergency room",5,5,{"v":4636,"d":"$4,636"}]
[363,88,"Male","Not stated","Widowed","Sep","Routine discharge",5,"South","300 to 499","Not-for-profit","41071","","Medicare",121,"Emergency","Emergency room",5,3,{"v":2610,"d":"$2,610"}]
[364,61,"Male","Not stated","Single","Sep","Routine discharge",10,"South","300 to 499","Not-for-profit","430--","8841","Blue Cross",1,"Urgent","Transfer from other health facility",5,4,{"v":3427,"d":"$3,427"}]
[365,51,"Female","Not stated","Single","Mar","Routine discharge",4,"South","300 to 499","Not-for-profit","4829-","3327","Not stated",76,"Urgent","Emergency room",4,1,{"v":883,"d":"$883"}]
[366,65,"Female","Not stated","Widowed","Jun","Discharged to long-term facility",5,"South","300 to 499","Not-for-profit","72402","8108","Medicare",497,"Elective","Physician",4,2,{"v":2407,"d":"$2,407"}]
[367,25,"Male","Not stated","Single","Apr","Discharged to short-term facility",8,"South","300 to 499","Not-for-profit","7670-","9672","HMO",385,"Urgent","Transfer from other health facility",4,2,{"v":2467,"d":"$2,467"}]
[368,30,"Female","Not stated","Married","Jul","Routine discharge",2,"South","300 to 499","Not-for-profit","V270-","0391","Medicaid",372,"Emergency","Emergency room",5,1,{"v":1708,"d":"$1,708"}]
[369,39,"Female","Not stated","Married","Dec","Routine discharge",2,"South","300 to 499","Not-for-profit","V270-","7562","HMO",373,"Emergency","Emergency room",4,3,{"v":2701,"d":"$2,701"}]
[370,60,"Female","Not stated","Married","Dec","Routine discharge",1,"South","300 to 499","Not-for-profit","V581-","9925","Blue Cross",410,"Urgent","Physician",5,3,{"v":2671,"d":"$2,671"}]
[371,0,"Female","White","Not stated","Mar","Routine discharge",2,"South","100 to 199","Not-for-profit","V3000","","HMO",391,"Newborn","Other",5,3,{"v":2751,"d":"$2,751"}]
[372,77,"Female","White","Not stated","May","Alive, disposition not stated",2,"South","100 to 199","Not-for-profit","2768-","","Medicare",296,"Not reported","Not reported",4,3,{"v":2773,"d":"$2,773"}]
[373,58,"Female","White","Not stated","Mar","Routine discharge",1,"South","100 to 199","Not-for-profit","41400","","Blue Cross",132,"Not reported","Not reported",1,1,{"v":1591,"d":"$1,591"}]
[374,87,"Male","White","Not stated","Mar","Discharged to long-term facility",10,"South","100 to 199","Not-for-profit","5070-","","Medicare",79,"Not reported","Not reported",4,4,{"v":3580,"d":"$3,580"}]
[375,67,"Male","White","Not stated","Mar","Discharged to long-term facility",9,"South","100 to 199","Not-for-profit","5109-","3404","Medicare",79,"Not reported","Not reported",4,2,{"v":2019,"d":"$2,019"}]
[376,53,"Female","White","Not stated","Dec","Routine discharge",4,"South","100 to 199","Not-for-profit","496--","4292","Medicaid",88,"Not reported","Not reported",2,3,{"v":2932,"d":"$2,932"}]
[377,74,"Female","White","Not stated","Aug","Routine discharge",4,"South","100 to 199","Not-for-profit","5641-","","Medicare",182,"Not reported","Not reported",4,2,{"v":2154,"d":"$2,154"}]
[378,37,"Female","White","Not stated","Aug","Routine discharge",3,"South","100 to 199","Not-for-profit","6262-","684-","Self pay",359,"Not reported","Not reported",2,2,{"v":2334,"d":"$2,334"}]
[379,55,"Female","White","Not stated","May","Routine discharge",5,"South","100 to 199","Not-for-profit","6827-","3995","Medicare",277,"Not reported","Not reported",4,2,{"v":2396,"d":"$2,396"}]
[380,32,"Female","White","Not stated","Apr","Routine discharge",3,"South","100 to 199","Not-for-profit","78039","","Self pay",25,"Not reported","Not reported",5,2,{"v":2391,"d":"$2,391"}]
[381,20,"Female","White","Not stated","May","Routine discharge",2,"South","100 to 199","Not-for-profit","V270-","7359","Medicaid",373,"Not reported","Not reported",4,3,{"v":2662,"d":"$2,662"}]
[382,28,"Female","White","Not stated","Jun","Routine discharge",3,"South","100 to 199","Not-for-profit","V270-","741-","Medicaid",371,"Not reported","Not reported",5,3,{"v":2596,"d":"$2,596"}]
[383,23,"Female","White","Not stated","Jun","Routine discharge",2,"South","100 to 199","Not-for-profit","V279-","7359","Medicaid",373,"Not reported","Not reported",4,2,{"v":2001,"d":"$2,001"}]
[384,32,"Female","White","Not stated","Dec","Routine discharge",2,"South","100 to 199","Not-for-profit","V270-","7359","HMO",373,"Not reported","Not reported",4,2,{"v":2178,"d":"$2,178"}]
[385,34,"Male","White","Not stated","Dec","Routine discharge",1,"South","100 to 199","Not-for-profit","V560-","3995","Other government",317,"Not reported","Not reported",2,2,{"v":2027,"d":"$2,027"}]
[386,39,"Female","Black","Single","Jan","Routine discharge",3,"South","100 to 199","Government","25002","","Other private insurance",294,"Emergency","Emergency room",4,3,{"v":2950,"d":"$2,950"}]
[387,27,"Female","White","Married","Aug","Routine discharge",1,"South","200 to 299","Proprietary","64403","","HMO",379,"Elective","Physician",4,3,{"v":3051,"d":"$3,051"}]
[388,1,"Male","Other","Not stated","Jan","Routine discharge",3,"South","300 to 499","Not-for-profit","07999","","HMO",422,"Not reported","Not reported",4,3,{"v":2832,"d":"$2,832"}]
[389,14,"Female","White","Not stated","Feb","Routine discharge",12,"South","300 to 499","Not-for-profit","46611","9394","Medicaid",98,"Not reported","Not reported",5,3,{"v":2939,"d":"$2,939"}]
[390,13,"Female","Other","Not stated","May","Routine discharge",62,"South","300 to 499","Not-for-profit","48281","3885","Medicaid",75,"Not reported","Not reported",4,10,{"v":12111,"d":"$12,111"}]
[391,4,"Male","White","Not stated","Jun","Routine discharge",4,"South","300 to 499","Not-for-profit","4659-","","HMO",70,"Not reported","Not reported",5,3,{"v":3061,"d":"$3,061"}]
[392,2,"Male","White","Not stated","Nov","Routine discharge",2,"South","300 to 499","Not-for-profit","53081","8939","Medicaid",184,"Not reported","Not reported",4,1,{"v":752,"d":"$752"}]
[393,17,"Female","Other","Not stated","Dec","Routine discharge",2,"South","300 to 499","Not-for-profit","5409-","4701","Other government",167,"Not reported","Not reported",5,2,{"v":2278,"d":"$2,278"}]
[394,2,"Male","Other","Not stated","Jul","Routine discharge",11,"South","300 to 499","Not-for-profit","5990-","8776","Medicaid",322,"Not reported","Not reported",5,4,{"v":3500,"d":"$3,500"}]
[395,10,"Male","Black","Not stated","Jul","Routine discharge",6,"South","300 to 499","Not-for-profit","5990-","8776","Other government",322,"Not reported","Not reported",4,2,{"v":2561,"d":"$2,561"}]
[396,25,"Female","White","Not stated","Dec","Routine discharge",4,"South","300 to 499","Not-for-profit","5990-","0331","HMO",322,"Not reported","Not reported",2,1,{"v":1681,"d":"$1,681"}]
[397,1,"Male","White","Not stated","Feb","Routine discharge",3,"South","300 to 499","Not-for-profit","7591-","0331","HMO",301,"Not reported","Not reported",5,3,{"v":2607,"d":"$2,607"}]
[398,3,"Female","Other","Not stated","Mar","Routine discharge",2,"South","300 to 499","Not-for-profit","94224","9339","Other government",511,"Not reported","Not reported",4,2,{"v":2216,"d":"$2,216"}]
[399,3,"Female","White","Not stated","Jun","Routine discharge",4,"South","300 to 499","Not-for-profit","99683","3725","HMO",145,"Not reported","Not reported",2,3,{"v":2686,"d":"$2,686"}]
[400,2,"Male","Other","Not stated","May","Dead",1,"South","300 to 499","Not-for-profit","V594-","5554","Other",305,"Not reported","Not reported",5,3,{"v":2996,"d":"$2,996"}]
[401,1,"Male","White","Not stated","Jun","Routine discharge",3,"South","300 to 499","Not-for-profit","V581-","9925","HMO",492,"Not reported","Not reported",4,1,{"v":834,"d":"$834"}]
[402,66,"Female","Black","Not stated","Mar","Routine discharge",14,"South","200 to 299","Proprietary","1623-","324-","Medicare",75,"Not reported","Not reported",5,2,{"v":2305,"d":"$2,305"}]
[403,48,"Female","Black","Not stated","Mar","Routine discharge",3,"South","200 to 299","Proprietary","2189-","684-","Other private insurance",359,"Not reported","Not reported",5,2,{"v":2492,"d":"$2,492"}]
[404,82,"Female","Black","Not stated","Jan","Routine discharge",9,"South","200 to 299","Proprietary","5070-","8622","Medicare",76,"Not reported","Not reported",4,2,{"v":1899,"d":"$1,899"}]
[405,31,"Female","Black","Not stated","Feb","Alive, disposition not stated",6,"South","200 to 299","Proprietary","7100-","3491","Other private insurance",240,"Not reported","Not reported",4,4,{"v":3739,"d":"$3,739"}]
[406,74,"Female","White","Not stated","Oct","Alive, disposition not stated",10,"South","200 to 299","Proprietary","V5789","9339","Medicare",462,"Not reported","Not reported",2,3,{"v":2702,"d":"$2,702"}]
[407,43,"Female","White","Married","Jul","Routine discharge",9,"South","100 to 199","Proprietary","73395","8192","HMO",239,"Urgent","Physician",5,2,{"v":2353,"d":"$2,353"}]
[408,0,"Female","Other","Not stated","Jul","Routine discharge",1,"South","300 to 499","Not-for-profit","V3000","","Medicaid",391,"Newborn","Other",2,3,{"v":2675,"d":"$2,675"}]
[409,0,"Male","Black","Not stated","Aug","Routine discharge",4,"South","300 to 499","Not-for-profit","V3001","640-","Medicaid",391,"Newborn","Other",4,1,{"v":1317,"d":"$1,317"}]
[410,46,"Female","Black","Not stated","Dec","Routine discharge",5,"South","300 to 499","Not-for-profit","2189-","684-","Medicaid",358,"Not reported","Not reported",5,3,{"v":2885,"d":"$2,885"}]
[411,35,"Female","Black","Not stated","Jul","Routine discharge",9,"South","300 to 499","Not-for-profit","29624","9468","Medicaid",430,"Not reported","Not reported",5,2,{"v":2142,"d":"$2,142"}]
[412,44,"Male","Black","Not stated","Sep","Routine discharge",4,"South","300 to 499","Not-for-profit","30481","9469","Other private insurance",522,"Not reported","Not reported",5,2,{"v":2069,"d":"$2,069"}]
[413,80,"Female","Black","Not stated","Feb","Discharged to short-term facility",25,"South","300 to 499","Not-for-profit","44020","3929","Medicare",478,"Not reported","Not reported",4,4,{"v":3570,"d":"$3,570"}]
[414,48,"Female","Black","Not stated","Dec","Routine discharge",3,"South","300 to 499","Not-for-profit","4280-","","Medicaid",127,"Not reported","Not reported",2,1,{"v":918,"d":"$918"}]
[415,49,"Male","Black","Not stated","Feb","Routine discharge",4,"South","300 to 499","Not-for-profit","5771-","","Blue Cross",204,"Not reported","Not reported",2,1,{"v":1668,"d":"$1,668"}]
[416,36,"Female","Black","Not stated","Jun","Routine discharge",1,"South","300 to 499","Not-for-profit","63491","6952","Other private insurance",381,"Not reported","Not reported",5,3,{"v":2998,"d":"$2,998"}]
[417,35,"Male","Black","Not stated","May","Left AMA",4,"South","200 to 299","Not-for-profit","042--","0331","Medicaid",490,"Not reported","Not reported",5,3,{"v":3096,"d":"$3,096"}]
[418,65,"Female","Black","Not stated","Mar","Routine discharge",9,"South","200 to 299","Not-for-profit","2765-","","Medicare",296,"Not reported","Not reported",5,2,{"v":2039,"d":"$2,039"}]
[419,74,"Male","Black","Not stated","Jul","Routine discharge",4,"South","200 to 299","Not-for-profit","2765-","","Medicare",296,"Not reported","Not reported",5,3,{"v":2810,"d":"$2,810"}]
[420,70,"Female","Black","Not stated","Oct","Discharged to long-term facility",4,"South","200 to 299","Not-for-profit","5990-","","Medicare",320,"Not reported","Not reported",5,2,{"v":2111,"d":"$2,111"}]
[421,51,"Female","Black","Not stated","Jun","Routine discharge",5,"South","200 to 299","Not-for-profit","6930-","","Other private insurance",283,"Not reported","Not reported",5,2,{"v":2480,"d":"$2,480"}]
[422,73,"Male","White","Married","Apr","Routine discharge",4,"South","100 to 199","Not-for-profit","1718-","3326","Medicare",239,"Not reported","Physician",5,3,{"v":3063,"d":"$3,063"}]
[423,70,"Male","White","Married","Sep","Routine discharge",3,"South","100 to 199","Not-for-profit","53530","","Medicare",182,"Not reported","Physician",5,1,{"v":1320,"d":"$1,320"}]
[424,0,"Male","Not stated","Single","Jan","Routine discharge",2,"South","200 to 299","Not-for-profit","V3000","640-","Blue Cross",391,"Newborn","Other",4,3,{"v":2943,"d":"$2,943"}]
[425,0,"Female","White","Single","Jan","Routine discharge",1,"South","200 to 299","Not-for-profit","V3000","","Blue Cross",391,"Newborn","Other",4,2,{"v":2467,"d":"$2,467"}]
[426,0,"Female","Black","Single","Jun","Routine discharge",3,"South","200 to 299","Not-for-profit","V3001","9955","Blue Cross",391,"Newborn","Other",4,1,{"v":1687,"d":"$1,687"}]
[427,0,"Male","White","Single","Sep","Routine discharge",2,"South","200 to 299","Not-for-profit","V3000","9955","HMO",391,"Newborn","Other",5,1,{"v":755,"d":"$755"}]
[428,76,"Female","White","Married","Mar","Routine discharge",5,"South","200 to 299","Not-for-profit","28959","3893","Medicare",398,"Emergency","Emergency room",4,2,{"v":2474,"d":"$2,474"}]
[429,35,"Male","White","Married","Feb","Routine discharge",1,"South","200 to 299","Not-for-profit","38600","","HMO",65,"Emergency","Emergency room",4,2,{"v":2076,"d":"$2,076"}]
[430,46,"Male","Black","Married","Jul","Routine discharge",3,"South","200 to 299","Not-for-profit","4019-","","Blue Cross",134,"Emergency","Emergency room",4,1,{"v":1018,"d":"$1,018"}]
[431,58,"Male","White","Separated","Feb","Alive, disposition not stated",17,"South","200 to 299","Not-for-profit","486--","9671","HMO",475,"Emergency","Emergency room",4,8,{"v":8114,"d":"$8,114"}]
[432,16,"Female","White","Single","Sep","Routine discharge",2,"South","200 to 299","Not-for-profit","462--","","Blue Cross",70,"Emergency","Emergency room",4,1,{"v":1014,"d":"$1,014"}]
[433,65,"Male","White","Widowed","Oct","Routine discharge",9,"South","200 to 299","Not-for-profit","486--","4523","Other private insurance",89,"Emergency","Emergency room",4,6,{"v":5271,"d":"$5,271"}]
[434,26,"Female","White","Married","Dec","Routine discharge",3,"South","200 to 299","Not-for-profit","56210","4525","Self pay",183,"Emergency","Emergency room",5,3,{"v":2597,"d":"$2,597"}]
[435,23,"Female","Black","Single","Aug","Routine discharge",1,"South","200 to 299","Not-for-profit","6331-","6662","HMO",378,"Urgent","Not reported",5,1,{"v":1181,"d":"$1,181"}]
[436,4,"Female","White","Single","Jun","Routine discharge",2,"South","200 to 299","Not-for-profit","6827-","","HMO",279,"Emergency","Emergency room",4,2,{"v":2470,"d":"$2,470"}]
[437,61,"Male","White","Single","Dec","Routine discharge",3,"South","200 to 299","Not-for-profit","71525","8151","Other private insurance",209,"Elective","Not reported",5,3,{"v":2597,"d":"$2,597"}]
[438,57,"Female","White","Married","Dec","Routine discharge",3,"South","200 to 299","Not-for-profit","71596","8154","Blue Cross",209,"Elective","Not reported",2,2,{"v":1958,"d":"$1,958"}]
[439,64,"Female","White","Married","Jul","Discharged to short-term facility",4,"South","200 to 299","Not-for-profit","8208-","8152","Blue Cross",209,"Emergency","Emergency room",5,1,{"v":866,"d":"$866"}]
[440,23,"Female","Black","Single","Mar","Routine discharge",2,"South","200 to 299","Not-for-profit","V270-","7359","Medicaid",373,"Elective","Not reported",4,1,{"v":1290,"d":"$1,290"}]
[441,30,"Female","Other","Married","Apr","Routine discharge",2,"South","200 to 299","Not-for-profit","V270-","7359","HMO",373,"Urgent","Not reported",4,3,{"v":3049,"d":"$3,049"}]
[442,39,"Female","White","Married","May","Routine discharge",3,"South","200 to 299","Not-for-profit","V270-","741-","HMO",371,"Elective","Not reported",4,1,{"v":1471,"d":"$1,471"}]
[443,35,"Female","Not stated","Married","Aug","Routine discharge",2,"South","200 to 299","Not-for-profit","V270-","7359","HMO",374,"Urgent","Not reported",2,3,{"v":2959,"d":"$2,959"}]
[444,33,"Female","White","Married","Nov","Routine discharge",2,"South","200 to 299","Not-for-profit","V270-","7359","HMO",373,"Urgent","Not reported",2,1,{"v":1526,"d":"$1,526"}]
[445,0,"Female","White","Not stated","Feb","Routine discharge",4,"South","300 to 499","Not-for-profit","V3001","9955","Blue Cross",391,"Newborn","Other",2,3,{"v":2797,"d":"$2,797"}]
[446,42,"Female","Other","Not stated","Jul","Routine discharge",4,"South","300 to 499","Not-for-profit","27801","4431","Other",288,"Not reported","Not reported",4,2,{"v":2435,"d":"$2,435"}]
[447,32,"Female","Other","Not stated","Jul","Routine discharge",2,"South","300 to 499","Not-for-profit","29654","","Medicaid",430,"Not reported","Not reported",5,1,{"v":1310,"d":"$1,310"}]
[448,73,"Female","Other","Not stated","Aug","Routine discharge",5,"South","300 to 499","Not-for-profit","4538-","","Medicare",130,"Not reported","Not reported",5,1,{"v":871,"d":"$871"}]
[449,39,"Male","Other","Not stated","Sep","Routine discharge",2,"South","300 to 499","Not-for-profit","72210","0392","Other",243,"Not reported","Not reported",5,2,{"v":1957,"d":"$1,957"}]
[450,43,"Male","White","Not stated","Jun","Routine discharge",2,"South","300 to 499","Not-for-profit","81351","7912","Other",224,"Not reported","Not reported",5,1,{"v":1756,"d":"$1,756"}]
[451,62,"Male","Other","Not stated","Nov","Routine discharge",4,"South","300 to 499","Not-for-profit","V581-","9925","Blue Cross",410,"Not reported","Not reported",5,2,{"v":1986,"d":"$1,986"}]
[452,68,"Female","White","Married","Oct","Routine discharge",3,"South","500 or over","Not-for-profit","1830-","684-","Medicare",357,"Elective","Physician",4,3,{"v":2641,"d":"$2,641"}]
[453,54,"Female","Black","Single","Feb","Routine discharge",5,"South","500 or over","Not-for-profit","49392","","Medicaid",96,"Emergency","Emergency room",5,2,{"v":2222,"d":"$2,222"}]
[454,68,"Male","White","Married","Feb","Routine discharge",3,"South","300 to 499","Not-for-profit","07999","","Medicare",421,"Emergency","Not reported",2,3,{"v":2870,"d":"$2,870"}]
[455,0,"Male","Not stated","Single","Dec","Routine discharge",2,"South","200 to 299","Government","V3000","9955","Medicaid",390,"Newborn","Other",5,3,{"v":3055,"d":"$3,055"}]
[456,26,"Female","White","Married","Jan","Routine discharge",2,"South","100 to 199","Not-for-profit","V270-","741-","HMO",371,"Elective","Physician",4,2,{"v":2532,"d":"$2,532"}]
[457,17,"Male","White","Single","Mar","Routine discharge",1,"South","6 to 99","Not-for-profit","7092-","8669","Other",266,"Urgent","Physician",4,1,{"v":750,"d":"$750"}]
[458,9,"Male","White","Single","Aug","Routine discharge",2,"South","6 to 99","Not-for-profit","70409","8674","Other",266,"Urgent","Physician",5,3,{"v":2856,"d":"$2,856"}]
[459,14,"Female","White","Single","May","Routine discharge",2,"South","6 to 99","Not-for-profit","7443-","8671","Other",63,"Urgent","Physician",5,3,{"v":2650,"d":"$2,650"}]
[460,7,"Female","Asian","Single","Jul","Routine discharge",1,"South","6 to 99","Not-for-profit","75732","863-","Other",270,"Urgent","Physician",5,3,{"v":2828,"d":"$2,828"}]
[461,6,"Male","White","Single","Dec","Routine discharge",1,"South","6 to 99","Not-for-profit","75732","863-","Other",270,"Urgent","Physician",4,3,{"v":2995,"d":"$2,995"}]
[462,0,"Male","White","Single","May","Routine discharge",2,"South","300 to 499","Government","V3100","","Medicaid",391,"Newborn","Other",4,2,{"v":2023,"d":"$2,023"}]
[463,0,"Male","White","Not stated","Apr","Routine discharge",4,"South","300 to 499","Proprietary","V3001","640-","HMO",391,"Newborn","Other",5,3,{"v":2626,"d":"$2,626"}]
[464,0,"Female","Other","Not stated","Aug","Routine discharge",1,"South","300 to 499","Proprietary","V3000","","HMO",391,"Newborn","Other",5,2,{"v":2466,"d":"$2,466"}]
[465,0,"Male","White","Not stated","Nov","Routine discharge",1,"South","300 to 499","Proprietary","V3000","","Self pay",391,"Newborn","Other",4,3,{"v":2965,"d":"$2,965"}]
[466,78,"Male","White","Not stated","Aug","Routine discharge",5,"South","300 to 499","Proprietary","2662-","9929","Medicare",296,"Not reported","Not reported",4,2,{"v":2035,"d":"$2,035"}]
[467,74,"Male","White","Not stated","Aug","Discharged to long-term facility",3,"South","300 to 499","Proprietary","2948-","3893","Medicare",429,"Not reported","Not reported",4,1,{"v":1655,"d":"$1,655"}]
[468,60,"Female","Black","Not stated","Mar","Routine discharge",1,"South","300 to 499","Proprietary","41401","3722","Medicare",124,"Not reported","Not reported",4,3,{"v":2999,"d":"$2,999"}]
[469,54,"Female","Other","Not stated","Oct","Routine discharge",1,"South","300 to 499","Proprietary","6180-","7179","HMO",360,"Not reported","Not reported",5,2,{"v":2168,"d":"$2,168"}]
[470,30,"Female","White","Not stated","Apr","Routine discharge",3,"South","300 to 499","Proprietary","V270-","741-","Medicaid",371,"Not reported","Not reported",5,1,{"v":1497,"d":"$1,497"}]
[471,35,"Female","White","Not stated","Sep","Routine discharge",3,"South","300 to 499","Proprietary","V270-","7359","HMO",373,"Not reported","Not reported",4,1,{"v":1349,"d":"$1,349"}]
[472,78,"Female","Asian","Widowed","Oct","Routine discharge",2,"South","200 to 299","Not-for-profit","42611","","Medicare",139,"Emergency","Emergency room",4,1,{"v":833,"d":"$833"}]
[473,54,"Female","White","Divorced","May","Routine discharge",7,"South","500 or over","Not-for-profit","44030","3929","Medicare",478,"Elective","Physician",4,4,{"v":3764,"d":"$3,764"}]
[474,20,"Male","Black","Single","Sep","Routine discharge",6,"South","500 or over","Not-for-profit","3209-","9929","HMO",20,"Urgent","Physician",4,1,{"v":838,"d":"$838"}]
[475,22,"Female","White","Single","Jun","Routine discharge",2,"South","500 or over","Not-for-profit","99678","7869","HMO",231,"Urgent","Physician",2,3,{"v":2940,"d":"$2,940"}]
[476,78,"Female","White","Single","Mar","Routine discharge",14,"South","500 or over","Not-for-profit","V5789","9389","Medicare",462,"Urgent","Physician",2,3,{"v":2782,"d":"$2,782"}]
[477,93,"Female","White","Widowed","Jul","Alive, disposition not stated",8,"South","200 to 299","Proprietary","486--","","Medicare",89,"Emergency","Emergency room",2,7,{"v":5665,"d":"$5,665"}]
[478,84,"Male","White","Married","Aug","Routine discharge",5,"South","200 to 299","Proprietary","185--","6029","Medicare",336,"Elective","Physician",2,2,{"v":2466,"d":"$2,466"}]
[479,0,"Female","Other","Single","Jan","Routine discharge",16,"South","300 to 499","Government","V3001","9983","Self pay",387,"Newborn","Other",5,2,{"v":2404,"d":"$2,404"}]
[480,53,"Male","Black","Single","Apr","Routine discharge",4,"South","300 to 499","Government","82300","7936","Workers Comp",219,"Urgent","Emergency room",4,1,{"v":1429,"d":"$1,429"}]
[481,0,"Female","White","Not stated","Jan","Routine discharge",2,"West","100 to 199","Not-for-profit","V3000","","Medicaid",391,"Newborn","Other",5,2,{"v":2347,"d":"$2,347"}]
[482,4,"Female","White","Not stated","Jan","Routine discharge",3,"West","100 to 199","Not-for-profit","486--","","Medicaid",91,"Not reported","Not reported",5,1,{"v":1264,"d":"$1,264"}]
[483,67,"Female","Other","Not stated","Sep","Routine discharge",2,"West","100 to 199","Not-for-profit","72272","","Medicare",243,"Not reported","Not reported",4,2,{"v":2478,"d":"$2,478"}]
[484,25,"Female","White","Not stated","Jan","Routine discharge",1,"West","100 to 199","Not-for-profit","V270-","7569","Medicaid",373,"Not reported","Not reported",4,3,{"v":2745,"d":"$2,745"}]
[485,10,"Male","White","Single","Jan","Routine discharge",1,"West","200 to 299","Not-for-profit","78039","","Other private insurance",26,"Urgent","Emergency room",2,2,{"v":1895,"d":"$1,895"}]
[486,5,"Male","Asian","Single","Sep","Routine discharge",1,"West","100 to 199","Proprietary","2765-","","HMO",298,"Not reported","Not reported",4,1,{"v":845,"d":"$845"}]
[487,0,"Male","White","Not stated","Sep","Routine discharge",2,"West","200 to 299","Not-for-profit","V3000","640-","HMO",391,"Newborn","Other",4,2,{"v":2064,"d":"$2,064"}]
[488,52,"Male","Black","Not stated","Jan","Discharged to short-term facility",2,"West","200 to 299","Not-for-profit","41511","8872","Medicare",78,"Emergency","Emergency room",4,1,{"v":1643,"d":"$1,643"}]
[489,68,"Male","Black","Not stated","Aug","Routine discharge",2,"West","200 to 299","Not-for-profit","6827-","8604","HMO",278,"Urgent","Emergency room",2,2,{"v":2303,"d":"$2,303"}]
[490,2,"Male","White","Not stated","Dec","Routine discharge",1,"West","200 to 299","Not-for-profit","8500-","","HMO",33,"Urgent","Emergency room",4,1,{"v":1465,"d":"$1,465"}]
[491,0,"Male","White","Single","Mar","Routine discharge",2,"West","300 to 499","Not-for-profit","V3000","","HMO",391,"Newborn","Other",5,1,{"v":980,"d":"$980"}]
[492,0,"Female","Other","Not stated","Jun","Routine discharge",2,"West","300 to 499","Not-for-profit","V3000","","HMO",391,"Newborn","Other",4,2,{"v":2207,"d":"$2,207"}]
[493,48,"Female","Other","Not stated","Sep","Routine discharge",6,"West","300 to 499","Not-for-profit","2189-","684-","HMO",358,"Elective","Physician",4,4,{"v":3378,"d":"$3,378"}]
[494,57,"Female","Other","Not stated","Sep","Routine discharge",4,"West","300 to 499","Not-for-profit","6256-","684-","HMO",359,"Elective","Physician",4,1,{"v":792,"d":"$792"}]
[495,29,"Female","Other","Not stated","Sep","Routine discharge",2,"West","300 to 499","Not-for-profit","V270-","7359","HMO",373,"Urgent","Physician",5,1,{"v":1204,"d":"$1,204"}]
[496,39,"Male","White","Not stated","Jul","Routine discharge",2,"West","300 to 499","Not-for-profit","41071","3606","HMO",516,"Emergency","Emergency room",4,3,{"v":2873,"d":"$2,873"}]
[497,49,"Male","Black","Not stated","Mar","Routine discharge",1,"West","300 to 499","Not-for-profit","72210","8051","Workers Comp",500,"Elective","Physician",4,1,{"v":1316,"d":"$1,316"}]
[498,47,"Female","Black","Not stated","Nov","Discharged to long-term facility",5,"West","300 to 499","Not-for-profit","73342","8151","HMO",209,"Elective","Physician",4,2,{"v":1986,"d":"$1,986"}]
[499,33,"Female","White","Not stated","Dec","Routine discharge",2,"West","300 to 499","Not-for-profit","V270-","741-","HMO",371,"Urgent","Physician",2,1,{"v":1067,"d":"$1,067"}]
[500,83,"Female","White","Widowed","Jun","Routine discharge",7,"West","300 to 499","Not-for-profit","4280-","","Medicare",127,"Urgent","Physician",5,1,{"v":1021,"d":"$1,021"}]
[501,58,"Female","Not stated","Married","Feb","Routine discharge",1,"West","200 to 299","Government","7295-","","Blue Cross",247,"Emergency","Not reported",2,1,{"v":1664,"d":"$1,664"}]
[502,0,"Male","Other","Not stated","Jan","Routine discharge",2,"West","300 to 499","Not-for-profit","V3000","9955","Medicaid",391,"Newborn","Other",5,3,{"v":2857,"d":"$2,857"}]
[503,0,"Male","White","Not stated","May","Routine discharge",1,"West","300 to 499","Not-for-profit","V3000","9955","Medicaid",391,"Newborn","Other",4,3,{"v":2667,"d":"$2,667"}]
[504,72,"Male","White","Not stated","Apr","Routine discharge",5,"West","300 to 499","Not-for-profit","5183-","","Medicare",92,"Not reported","Not reported",4,2,{"v":2092,"d":"$2,092"}]
[505,75,"Male","Black","Not stated","Mar","Routine discharge",3,"West","300 to 499","Not-for-profit","99811","","Medicare",452,"Not reported","Not reported",4,2,{"v":2062,"d":"$2,062"}]
[506,62,"Male","White","Not stated","Sep","Alive, disposition not stated",22,"West","300 to 499","Not-for-profit","82009","8152","Medicare",209,"Not reported","Not reported",5,5,{"v":4377,"d":"$4,377"}]
[507,19,"Female","White","Not stated","Jan","Routine discharge",1,"West","300 to 499","Not-for-profit","V270-","7569","Medicaid",373,"Not reported","Not reported",4,2,{"v":2053,"d":"$2,053"}]
[508,26,"Female","White","Not stated","Jan","Routine discharge",2,"West","300 to 499","Not-for-profit","V270-","7569","Medicaid",373,"Not reported","Not reported",2,3,{"v":2693,"d":"$2,693"}]
[509,67,"Female","White","Not stated","Jan","Routine discharge",3,"West","300 to 499","Not-for-profit","V581-","9925","Medicare",492,"Not reported","Not reported",4,3,{"v":2777,"d":"$2,777"}]
[510,89,"Female","Black","Not stated","Jan","Discharged to long-term facility",1,"West","500 or over","Not-for-profit","4280-","","Medicaid",127,"Urgent","Emergency room",4,3,{"v":2911,"d":"$2,911"}]
[511,48,"Male","White","Married","May","Routine discharge",3,"West","300 to 499","Government","5770-","","HMO",204,"Urgent","Emergency room",2,2,{"v":2497,"d":"$2,497"}]
[512,55,"Male","Not stated","Married","Dec","Routine discharge",3,"West","200 to 299","Not-for-profit","4271-","3794","Medicaid",514,"Emergency","Transfer from hospital",5,1,{"v":1455,"d":"$1,455"}]
[513,42,"Female","White","Married","Oct","Routine discharge",4,"West","200 to 299","Not-for-profit","V270-","741-","Other private insurance",371,"Elective","Physician",5,3,{"v":2992,"d":"$2,992"}]
[514,0,"Male","White","Single","Jun","Routine discharge",2,"South","500 or over","Not-for-profit","V3001","640-","Not stated",391,"Newborn","Other",5,1,{"v":1506,"d":"$1,506"}]
[515,0,"Female","Not stated","Single","Dec","Routine discharge",2,"South","500 or over","Not-for-profit","V3000","9983","Not stated",388,"Newborn","Other",4,2,{"v":1945,"d":"$1,945"}]
[516,57,"Female","White","Married","May","Routine discharge",3,"South","500 or over","Not-for-profit","2873-","415-","Not stated",392,"Elective","Physician",4,2,{"v":2407,"d":"$2,407"}]
[517,78,"Female","White","Married","Jul","Discharged to long-term facility",7,"South","500 or over","Not-for-profit","99859","","Not stated",418,"Emergency","Physician",4,2,{"v":2525,"d":"$2,525"}]
[518,43,"Male","White","Not stated","Sep","Discharged to long-term facility",14,"Northeast","500 or over","Not-for-profit","99662","3927","Medicare",120,"Emergency","Emergency room",4,2,{"v":2418,"d":"$2,418"}]
[519,90,"Female","White","Widowed","Apr","Routine discharge",3,"South","500 or over","Government","41401","3601","Medicare",518,"Urgent","Physician",4,2,{"v":2318,"d":"$2,318"}]
[520,0,"Female","Not stated","Not stated","May","Routine discharge",2,"South","500 or over","Not-for-profit","V3000","","Other government",390,"Newborn","Other",5,2,{"v":1925,"d":"$1,925"}]
[521,72,"Female","White","Not stated","Oct","Dead",6,"South","500 or over","Not-for-profit","1623-","3327","Medicare",76,"Not reported","Not reported",2,1,{"v":918,"d":"$918"}]
[522,46,"Male","White","Not stated","Jul","Routine discharge",1,"South","500 or over","Not-for-profit","4510-","","HMO",131,"Not reported","Not reported",4,2,{"v":2262,"d":"$2,262"}]
[523,70,"Male","White","Not stated","Sep","Routine discharge",5,"South","500 or over","Not-for-profit","41401","3605","Blue Cross",517,"Not reported","Not reported",4,2,{"v":1977,"d":"$1,977"}]
[524,42,"Female","Black","Not stated","May","Routine discharge",3,"South","500 or over","Not-for-profit","49392","","Medicaid",97,"Not reported","Not reported",4,3,{"v":2727,"d":"$2,727"}]
[525,64,"Male","White","Not stated","May","Routine discharge",9,"South","500 or over","Not-for-profit","56211","4576","Other private insurance",148,"Not reported","Not reported",4,3,{"v":3013,"d":"$3,013"}]
[526,32,"Female","Other","Not stated","Sep","Routine discharge",3,"South","500 or over","Not-for-profit","V270-","720-","HMO",372,"Not reported","Not reported",5,2,{"v":2132,"d":"$2,132"}]
[527,39,"Male","White","Single","Oct","Alive, disposition not stated",6,"South","500 or over","Not-for-profit","8208-","8152","Self pay",209,"Emergency","Emergency room",2,2,{"v":2144,"d":"$2,144"}]
[528,58,"Male","White","Married","Mar","Dead",23,"South","500 or over","Not-for-profit","V581-","9925","HMO",410,"Elective","Physician",4,5,{"v":4791,"d":"$4,791"}]
[529,74,"Female","Other","Not stated","Feb","Discharged to long-term facility",5,"South","300 to 499","Not-for-profit","4359-","","Medicare",15,"Not reported","Not reported",4,3,{"v":2737,"d":"$2,737"}]
[530,0,"Female","Black","Single","Sep","Routine discharge",15,"South","200 to 299","Not-for-profit","V3000","9671","Medicaid",386,"Newborn","Other",5,2,{"v":2273,"d":"$2,273"}]
[531,52,"Male","White","Not stated","Jul","Routine discharge",4,"South","500 or over","Not-for-profit","41041","3605","HMO",516,"Emergency","Emergency room",5,1,{"v":1585,"d":"$1,585"}]
[532,62,"Female","White","Not stated","Dec","Routine discharge",13,"South","500 or over","Not-for-profit","41061","3842","HMO",515,"Emergency","Emergency room",4,3,{"v":2940,"d":"$2,940"}]
[533,28,"Female","White","Married","Apr","Routine discharge",2,"South","300 to 499","Not-for-profit","V270-","736-","Other private insurance",373,"Urgent","Physician",5,2,{"v":2444,"d":"$2,444"}]
[534,82,"Male","White","Widowed","Aug","Routine discharge",7,"South","500 or over","Not-for-profit","2765-","4525","Medicare",297,"Urgent","Emergency room",4,4,{"v":3566,"d":"$3,566"}]
[535,54,"Male","White","Not stated","Mar","Routine discharge",8,"Northeast","300 to 499","Not-for-profit","4241-","3522","Medicaid",104,"Emergency","Emergency room",4,2,{"v":2575,"d":"$2,575"}]
[536,31,"Female","White","Married","Nov","Routine discharge",1,"Northeast","200 to 299","Not-for-profit","34690","","HMO",25,"Not reported","Not reported",4,2,{"v":2138,"d":"$2,138"}]
[537,40,"Female","White","Married","Nov","Routine discharge",2,"Northeast","300 to 499","Not-for-profit","24201","","HMO",301,"Not reported","Not reported",4,3,{"v":2671,"d":"$2,671"}]
[538,23,"Female","White","Single","Mar","Routine discharge",3,"Northeast","300 to 499","Not-for-profit","V270-","741-","Medicaid",371,"Not reported","Not reported",4,3,{"v":2707,"d":"$2,707"}]
[539,0,"Male","Not stated","Single","Nov","Routine discharge",2,"Northeast","300 to 499","Not-for-profit","V3000","640-","HMO",391,"Newborn","Other",5,2,{"v":2403,"d":"$2,403"}]
[540,42,"Female","Black","Married","Nov","Routine discharge",3,"Northeast","300 to 499","Not-for-profit","25060","3893","HMO",18,"Not reported","Not reported",5,3,{"v":2765,"d":"$2,765"}]
[541,32,"Female","White","Divorced","Jul","Routine discharge",3,"Northeast","300 to 499","Not-for-profit","4359-","0331","Other private insurance",15,"Not reported","Not reported",4,3,{"v":2637,"d":"$2,637"}]
[542,86,"Female","White","Widowed","Oct","Routine discharge",4,"Northeast","300 to 499","Not-for-profit","41519","","HMO",78,"Not reported","Not reported",4,3,{"v":3056,"d":"$3,056"}]
[543,30,"Male","White","Not stated","Feb","Alive, disposition not stated",4,"Northeast","6 to 99","Not-for-profit","311--","9465","Medicaid",426,"Emergency","Emergency room",4,3,{"v":2595,"d":"$2,595"}]
[544,71,"Female","White","Not stated","Mar","Routine discharge",6,"Northeast","6 to 99","Not-for-profit","29634","","Medicare",430,"Emergency","Emergency room",4,2,{"v":1945,"d":"$1,945"}]
[545,47,"Male","Black","Not stated","Jul","Routine discharge",2,"Northeast","6 to 99","Not-for-profit","30401","9465","Other private insurance",523,"Emergency","Emergency room",5,2,{"v":1885,"d":"$1,885"}]
[546,58,"Male","White","Not stated","Feb","Discharged to short-term facility",1,"Northeast","6 to 99","Not-for-profit","41071","","Other private insurance",121,"Emergency","Emergency room",4,2,{"v":1929,"d":"$1,929"}]
[547,68,"Male","White","Not stated","Mar","Routine discharge",2,"Northeast","6 to 99","Not-for-profit","42731","","Medicare",139,"Elective","Physician",4,2,{"v":1979,"d":"$1,979"}]
[548,84,"Female","White","Not stated","Apr","Routine discharge",2,"Northeast","6 to 99","Not-for-profit","4280-","","Medicare",127,"Emergency","Emergency room",2,1,{"v":1285,"d":"$1,285"}]
[549,82,"Female","White","Not stated","Apr","Routine discharge",2,"Northeast","6 to 99","Not-for-profit","4359-","8627","Medicare",15,"Emergency","Emergency room",4,2,{"v":2579,"d":"$2,579"}]
[550,69,"Female","White","Not stated","Sep","Routine discharge",1,"Northeast","6 to 99","Not-for-profit","4280-","","Medicare",127,"Emergency","Emergency room",5,3,{"v":2729,"d":"$2,729"}]
[551,82,"Male","Black","Not stated","Feb","Routine discharge",8,"Northeast","6 to 99","Not-for-profit","486--","4516","Medicare",89,"Emergency","Emergency room",2,7,{"v":5604,"d":"$5,604"}]
[552,40,"Male","White","Not stated","Mar","Routine discharge",5,"Northeast","6 to 99","Not-for-profit","53540","","Other private insurance",183,"Emergency","Emergency room",5,3,{"v":2922,"d":"$2,922"}]
[553,55,"Female","White","Widowed","Feb","Routine discharge",2,"Northeast","100 to 199","Not-for-profit","5921-","560-","HMO",310,"Urgent","Physician",4,2,{"v":1961,"d":"$1,961"}]
[554,18,"Male","Black","Not stated","Aug","Routine discharge",6,"Northeast","200 to 299","Not-for-profit","28262","","Blue Cross",395,"Not reported","Not reported",4,2,{"v":2033,"d":"$2,033"}]
[555,2,"Male","Black","Not stated","Feb","Routine discharge",2,"Northeast","200 to 299","Not-for-profit","49302","9394","Medicaid",98,"Not reported","Not reported",5,1,{"v":950,"d":"$950"}]
[556,12,"Female","White","Not stated","Apr","Dead",21,"Northeast","200 to 299","Not-for-profit","486--","9604","Medicaid",475,"Not reported","Not reported",4,6,{"v":5330,"d":"$5,330"}]
[557,36,"Female","White","Not stated","Jun","Routine discharge",1,"Northeast","500 or over","Not-for-profit","41032","3722","Other private insurance",125,"Not reported","Not reported",5,1,{"v":1678,"d":"$1,678"}]
[558,75,"Female","Other","Not stated","Aug","Dead",4,"Northeast","500 or over","Not-for-profit","51881","9671","Medicare",475,"Not reported","Not reported",4,1,{"v":1790,"d":"$1,790"}]
[559,4,"Female","White","Not stated","Feb","Routine discharge",2,"Northeast","500 or over","Not-for-profit","94229","8622","Other private insurance",511,"Not reported","Not reported",4,1,{"v":1458,"d":"$1,458"}]
[560,51,"Male","White","Not stated","Mar","Routine discharge",3,"Northeast","100 to 199","Not-for-profit","1889-","5749","Blue Cross",310,"Not reported","Not reported",4,3,{"v":2621,"d":"$2,621"}]
[561,81,"Female","White","Not stated","Nov","Routine discharge",3,"Northeast","100 to 199","Not-for-profit","486--","3324","Blue Cross",89,"Not reported","Not reported",5,2,{"v":2369,"d":"$2,369"}]
[562,0,"Female","White","Not stated","Jan","Routine discharge",2,"Northeast","100 to 199","Not-for-profit","V3000","","Other private insurance",391,"Newborn","Other",2,2,{"v":2081,"d":"$2,081"}]
[563,0,"Male","Black","Not stated","Jun","Routine discharge",2,"Northeast","100 to 199","Not-for-profit","V3000","640-","Blue Cross",391,"Newborn","Other",4,1,{"v":1751,"d":"$1,751"}]
[564,41,"Female","White","Not stated","May","Routine discharge",3,"Northeast","300 to 499","Not-for-profit","2181-","684-","HMO",359,"Not reported","Not reported",5,3,{"v":3085,"d":"$3,085"}]
[565,79,"Female","White","Not stated","Apr","Alive, disposition not stated",3,"Northeast","300 to 499","Not-for-profit","4280-","3995","Medicare",127,"Not reported","Not reported",5,1,{"v":801,"d":"$801"}]
[566,64,"Female","White","Not stated","May","Alive, disposition not stated",7,"Northeast","300 to 499","Not-for-profit","4280-","3723","Blue Cross",124,"Not reported","Not reported",4,2,{"v":2468,"d":"$2,468"}]
[567,82,"Female","White","Not stated","Sep","Discharged to long-term facility",8,"Northeast","300 to 499","Not-for-profit","41071","3778","Medicare",121,"Not reported","Not reported",4,2,{"v":2039,"d":"$2,039"}]
[568,78,"Male","White","Not stated","Dec","Routine discharge",1,"Northeast","300 to 499","Not-for-profit","41400","9929","Medicare",133,"Not reported","Not reported",4,3,{"v":2665,"d":"$2,665"}]
[569,43,"Male","White","Not stated","Jul","Alive, disposition not stated",14,"Northeast","300 to 499","Not-for-profit","49121","","Medicaid",88,"Not reported","Not reported",4,3,{"v":2940,"d":"$2,940"}]
[570,84,"Female","White","Not stated","Dec","Discharged to long-term facility",3,"Northeast","300 to 499","Not-for-profit","49121","4513","Medicare",88,"Not reported","Not reported",4,3,{"v":3089,"d":"$3,089"}]
[571,2,"Female","Black","Not stated","Jan","Routine discharge",3,"Midwest","100 to 199","Not-for-profit","486--","","Other private insurance",91,"Not reported","Not reported",4,3,{"v":2959,"d":"$2,959"}]
[572,11,"Male","Other","Not stated","Apr","Routine discharge",5,"Midwest","100 to 199","Not-for-profit","4829-","","Other private insurance",91,"Not reported","Not reported",5,1,{"v":1681,"d":"$1,681"}]
[573,3,"Female","White","Not stated","Jul","Routine discharge",2,"Midwest","100 to 199","Not-for-profit","49391","","Other private insurance",98,"Not reported","Not reported",5,3,{"v":3038,"d":"$3,038"}]
[574,17,"Female","White","Not stated","Mar","Routine discharge",1,"Midwest","100 to 199","Not-for-profit","5409-","4701","Other private insurance",167,"Not reported","Not reported",4,2,{"v":2497,"d":"$2,497"}]
[575,14,"Male","White","Not stated","Aug","Routine discharge",1,"Midwest","100 to 199","Not-for-profit","5409-","4709","Other private insurance",167,"Not reported","Not reported",5,2,{"v":2571,"d":"$2,571"}]
[576,5,"Male","Other","Not stated","Jul","Routine discharge",2,"Midwest","100 to 199","Not-for-profit","78039","","Other private insurance",26,"Not reported","Not reported",5,1,{"v":1792,"d":"$1,792"}]
[577,69,"Female","Not stated","Not stated","Jul","Routine discharge",3,"Midwest","300 to 499","Not-for-profit","1913-","","Medicare",11,"Elective","Physician",4,3,{"v":2930,"d":"$2,930"}]
[578,58,"Male","Not stated","Not stated","Sep","Routine discharge",6,"Midwest","300 to 499","Not-for-profit","1541-","4863","Other private insurance",147,"Elective","Physician",4,2,{"v":2090,"d":"$2,090"}]
[579,39,"Male","Not stated","Not stated","Apr","Routine discharge",5,"Midwest","300 to 499","Not-for-profit","29630","","Medicare",430,"Emergency","Physician",4,3,{"v":2958,"d":"$2,958"}]
[580,41,"Female","Not stated","Not stated","Jun","Routine discharge",1,"Midwest","300 to 499","Not-for-profit","41401","3722","Self pay",125,"Elective","Transfer from hospital",4,1,{"v":1015,"d":"$1,015"}]
[581,63,"Male","Not stated","Not stated","Aug","Routine discharge",2,"Midwest","300 to 499","Not-for-profit","53240","4516","Other private insurance",175,"Emergency","Emergency room",4,2,{"v":2051,"d":"$2,051"}]
[582,0,"Male","Black","Single","Feb","Routine discharge",3,"Midwest","500 or over","Not-for-profit","V3001","640-","HMO",390,"Newborn","Other",4,2,{"v":2357,"d":"$2,357"}]
[583,57,"Female","White","Single","May","Routine discharge",4,"Midwest","500 or over","Not-for-profit","25080","8622","HMO",287,"Elective","Physician",5,1,{"v":1722,"d":"$1,722"}]
[584,74,"Female","Black","Widowed","Jun","Routine discharge",5,"Midwest","500 or over","Not-for-profit","25023","966-","HMO",294,"Emergency","Emergency room",4,2,{"v":2090,"d":"$2,090"}]
[585,22,"Female","White","Single","Sep","Routine discharge",4,"Midwest","500 or over","Not-for-profit","29592","","Medicaid",430,"Emergency","Emergency room",4,3,{"v":2800,"d":"$2,800"}]
[586,48,"Male","Black","Divorced","Nov","Routine discharge",2,"Midwest","500 or over","Not-for-profit","29284","","Self pay",523,"Emergency","Emergency room",5,3,{"v":3005,"d":"$3,005"}]
[587,59,"Male","White","Married","Feb","Routine discharge",6,"Midwest","500 or over","Not-for-profit","41401","3614","HMO",109,"Elective","Physician",2,4,{"v":3440,"d":"$3,440"}]
[588,45,"Male","White","Married","Mar","Routine discharge",7,"Midwest","500 or over","Not-for-profit","6823-","","HMO",277,"Emergency","Emergency room",2,2,{"v":2448,"d":"$2,448"}]
[589,81,"Female","White","Widowed","Jun","Dead",8,"Midwest","500 or over","Not-for-profit","6951-","3893","Medicare",272,"Urgent","Physician",4,4,{"v":3800,"d":"$3,800"}]
[590,74,"Male","White","Divorced","Oct","Routine discharge",3,"Midwest","500 or over","Not-for-profit","72402","0309","Medicare",500,"Elective","Physician",5,3,{"v":2621,"d":"$2,621"}]
[591,21,"Female","White","Single","Oct","Routine discharge",1,"Midwest","500 or over","Not-for-profit","8082-","","Medicaid",236,"Emergency","Emergency room",4,2,{"v":2438,"d":"$2,438"}]
[592,0,"Male","Not stated","Not stated","Apr","Routine discharge",5,"Midwest","300 to 499","Not-for-profit","V3001","640-","HMO",389,"Newborn","Other",5,2,{"v":2267,"d":"$2,267"}]
[593,62,"Male","Not stated","Not stated","Jan","Routine discharge",1,"Midwest","300 to 499","Not-for-profit","1623-","4011","HMO",76,"Elective","Physician",2,2,{"v":2315,"d":"$2,315"}]
[594,49,"Female","Not stated","Not stated","Jul","Routine discharge",2,"Midwest","300 to 499","Not-for-profit","29660","","HMO",430,"Urgent","Physician",4,2,{"v":2256,"d":"$2,256"}]
[595,67,"Female","Not stated","Not stated","Jan","Routine discharge",1,"Midwest","300 to 499","Not-for-profit","41401","3601","HMO",517,"Elective","Physician",5,3,{"v":2642,"d":"$2,642"}]
[596,58,"Male","Not stated","Not stated","Nov","Routine discharge",8,"Midwest","300 to 499","Not-for-profit","41071","3616","HMO",107,"Urgent","Transfer from hospital",4,2,{"v":1955,"d":"$1,955"}]
[597,53,"Male","Not stated","Not stated","Dec","Routine discharge",2,"Midwest","300 to 499","Not-for-profit","41401","3722","Medicaid",124,"Emergency","Emergency room",2,1,{"v":1123,"d":"$1,123"}]
[598,79,"Female","Not stated","Not stated","Dec","Discharged to long-term facility",5,"Midwest","300 to 499","Not-for-profit","4280-","","Medicare",127,"Emergency","Emergency room",2,3,{"v":3005,"d":"$3,005"}]
[599,24,"Female","Not stated","Not stated","Jun","Routine discharge",1,"Midwest","300 to 499","Not-for-profit","64783","","HMO",383,"Urgent","Physician",2,3,{"v":2623,"d":"$2,623"}]
[600,59,"Male","Not stated","Not stated","Feb","Routine discharge",14,"Midwest","300 to 499","Not-for-profit","V5789","","Medicare",462,"Elective","Transfer from hospital",5,3,{"v":3033,"d":"$3,033"}]
[601,30,"Female","Not stated","Not stated","Apr","Routine discharge",2,"Midwest","300 to 499","Not-for-profit","V272-","7271","HMO",372,"Urgent","Physician",5,2,{"v":2417,"d":"$2,417"}]
[602,13,"Female","Not stated","Not stated","May","Routine discharge",11,"Midwest","100 to 199","Not-for-profit","2967-","9439","Medicaid",430,"Urgent","Physician",2,3,{"v":3046,"d":"$3,046"}]
[603,14,"Female","Not stated","Not stated","May","Not reported",7,"Midwest","100 to 199","Not-for-profit","3009-","9439","Medicaid",425,"Urgent","Physician",2,4,{"v":3800,"d":"$3,800"}]
[604,67,"Male","Not stated","Not stated","Aug","Routine discharge",25,"Midwest","100 to 199","Not-for-profit","49121","","Medicare",88,"Urgent","Physician",4,5,{"v":4212,"d":"$4,212"}]
[605,85,"Female","Not stated","Not stated","Jul","Routine discharge",4,"Midwest","100 to 199","Not-for-profit","57450","5185","Medicare",208,"Elective","Emergency room",4,1,{"v":1877,"d":"$1,877"}]
[606,0,"Female","Black","Not stated","Apr","Routine discharge",2,"Midwest","300 to 499","Not-for-profit","V3000","","Medicaid",390,"Newborn","Other",4,1,{"v":1395,"d":"$1,395"}]
[607,0,"Female","Black","Not stated","Dec","Routine discharge",2,"Midwest","300 to 499","Not-for-profit","V3000","","Medicaid",391,"Newborn","Other",2,3,{"v":3021,"d":"$3,021"}]
[608,18,"Female","Not stated","Not stated","Feb","Routine discharge",2,"Midwest","6 to 99","Not-for-profit","64663","8801","HMO",383,"Urgent","Emergency room",4,2,{"v":2098,"d":"$2,098"}]
[609,61,"Male","Not stated","Married","Feb","Dead",2,"Midwest","300 to 499","Not-for-profit","20288","9904","HMO",403,"Elective","Physician",4,2,{"v":2548,"d":"$2,548"}]
[610,67,"Female","Not stated","Widowed","Nov","Routine discharge",2,"Midwest","300 to 499","Not-for-profit","49121","","Medicare",88,"Emergency","Emergency room",5,3,{"v":2675,"d":"$2,675"}]
[611,84,"Male","Not stated","Not stated","Feb","Discharged to long-term facility",6,"Midwest","300 to 499","Not-for-profit","53501","4292","Other government",174,"Emergency","Transfer from SNF",4,2,{"v":2176,"d":"$2,176"}]
[612,69,"Male","White","Widowed","Jul","Routine discharge",4,"South","200 to 299","Not-for-profit","4280-","","Medicare",127,"Emergency","Physician",4,3,{"v":2924,"d":"$2,924"}]
[613,80,"Male","White","Married","Mar","Routine discharge",2,"South","200 to 299","Not-for-profit","43491","8872","Medicare",14,"Emergency","Emergency room",4,3,{"v":2820,"d":"$2,820"}]
[614,42,"Male","White","Single","Jul","Routine discharge",4,"South","100 to 199","Proprietary","44023","3950","Self pay",478,"Emergency","Emergency room",2,3,{"v":3086,"d":"$3,086"}]
[615,0,"Male","Black","Single","Oct","Routine discharge",2,"South","100 to 199","Not-for-profit","V3000","640-","HMO",388,"Newborn","Other",4,2,{"v":1900,"d":"$1,900"}]
[616,34,"Female","White","Married","Oct","Routine discharge",2,"South","100 to 199","Not-for-profit","V270-","736-","Blue Cross",373,"Not reported","Not reported",2,2,{"v":2075,"d":"$2,075"}]
[617,87,"Female","Black","Divorced","May","Routine discharge",13,"South","500 or over","Not-for-profit","2113-","4573","Medicare",148,"Elective","Not reported",2,2,{"v":2117,"d":"$2,117"}]
[618,81,"Female","White","Married","Mar","Routine discharge",2,"South","500 or over","Not-for-profit","41401","3601","Medicare",517,"Emergency","Emergency room",4,1,{"v":1772,"d":"$1,772"}]
[619,71,"Female","Black","Widowed","Mar","Routine discharge",3,"South","300 to 499","Not-for-profit","49121","","Medicare",88,"Not reported","Not reported",5,1,{"v":1285,"d":"$1,285"}]
[620,32,"Female","Black","Single","Jan","Routine discharge",3,"South","300 to 499","Not-for-profit","V270-","741-","Medicaid",371,"Not reported","Not reported",5,3,{"v":2746,"d":"$2,746"}]
[621,59,"Female","White","Not stated","Jun","Dead",17,"South","200 to 299","Not-for-profit","5070-","9672","Self pay",475,"Not reported","Not reported",4,4,{"v":3457,"d":"$3,457"}]
[622,37,"Female","Black","Not stated","May","Routine discharge",2,"South","200 to 299","Not-for-profit","9651-","","HMO",450,"Not reported","Not reported",4,1,{"v":1458,"d":"$1,458"}]
[623,69,"Female","White","Not stated","May","Alive, disposition not stated",6,"South","200 to 299","Not-for-profit","V5789","9904","HMO",462,"Not reported","Not reported",5,1,{"v":1790,"d":"$1,790"}]
[624,36,"Female","White","Not stated","Jun","Routine discharge",3,"South","300 to 499","Not-for-profit","V270-","7534","HMO",373,"Not reported","Not reported",4,1,{"v":1038,"d":"$1,038"}]
[625,31,"Female","White","Not stated","Sep","Routine discharge",4,"South","300 to 499","Not-for-profit","V270-","741-","HMO",371,"Not reported","Not reported",4,2,{"v":2017,"d":"$2,017"}]
[626,40,"Female","Not stated","Not stated","Nov","Routine discharge",3,"South","300 to 499","Not-for-profit","V270-","741-","HMO",371,"Not reported","Not reported",5,2,{"v":2369,"d":"$2,369"}]
[627,31,"Female","White","Not stated","Nov","Routine discharge",2,"South","300 to 499","Not-for-profit","V270-","7359","HMO",374,"Not reported","Not reported",4,1,{"v":1863,"d":"$1,863"}]
[628,76,"Male","Not stated","Single","Mar","Routine discharge",1,"South","300 to 499","Not-for-profit","1963-","4011","Not stated",402,"Not reported","Physician",4,3,{"v":2837,"d":"$2,837"}]
[629,29,"Male","Not stated","Married","Jan","Routine discharge",8,"South","300 to 499","Not-for-profit","28262","","Not stated",395,"Not reported","Emergency room",2,2,{"v":2439,"d":"$2,439"}]
[630,59,"Female","Not stated","Married","Nov","Routine discharge",20,"South","300 to 499","Not-for-profit","29590","","Not stated",430,"Elective","Physician",4,2,{"v":1904,"d":"$1,904"}]
[631,23,"Female","Not stated","Married","Nov","Routine discharge",4,"South","300 to 499","Not-for-profit","3090-","","Not stated",426,"Not reported","Physician",4,3,{"v":2800,"d":"$2,800"}]
[632,74,"Male","Not stated","Not stated","Jun","Routine discharge",5,"South","300 to 499","Not-for-profit","41400","3611","Not stated",107,"Not reported","Physician",3,2,{"v":2005,"d":"$2,005"}]
[633,77,"Male","Not stated","Married","Mar","Routine discharge",11,"South","300 to 499","Not-for-profit","68110","3995","Not stated",277,"Not reported","Emergency room",4,7,{"v":5861,"d":"$5,861"}]
[634,23,"Female","Not stated","Married","Jan","Routine discharge",2,"South","300 to 499","Not-for-profit","V270-","7359","Not stated",373,"Elective","Physician",3,2,{"v":2318,"d":"$2,318"}]
[635,58,"Female","White","Married","Apr","Routine discharge",1,"South","100 to 199","Not-for-profit","25000","","Other private insurance",294,"Emergency","Emergency room",4,1,{"v":1241,"d":"$1,241"}]
[636,18,"Male","White","Single","Dec","Routine discharge",2,"South","300 to 499","Not-for-profit","0088-","","Other private insurance",182,"Not reported","Not reported",5,1,{"v":1657,"d":"$1,657"}]
[637,82,"Female","White","Widowed","Apr","Routine discharge",8,"South","300 to 499","Not-for-profit","1830-","684-","Medicare",357,"Not reported","Not reported",4,2,{"v":1972,"d":"$1,972"}]
[638,73,"Female","White","Divorced","Jan","Alive, disposition not stated",9,"South","300 to 499","Not-for-profit","5571-","","Medicare",188,"Not reported","Not reported",5,3,{"v":2992,"d":"$2,992"}]
[639,38,"Female","White","Married","Dec","Routine discharge",2,"South","500 or over","Not-for-profit","6262-","684-","Blue Cross",359,"Elective","Physician",4,2,{"v":1897,"d":"$1,897"}]
[640,33,"Female","White","Married","Apr","Routine discharge",3,"South","200 to 299","Proprietary","V270-","734-","Other private insurance",372,"Not reported","Not reported",4,3,{"v":3093,"d":"$3,093"}]
[641,85,"Female","Not stated","Widowed","Aug","Discharged to long-term facility",9,"South","300 to 499","Government","V5789","9389","Medicare",462,"Not reported","Other",5,4,{"v":3631,"d":"$3,631"}]
[642,81,"Male","White","Widowed","Oct","Routine discharge",42,"South","500 or over","Not-for-profit","29634","9427","Medicare",430,"Not reported","Not reported",5,8,{"v":7383,"d":"$7,383"}]
[643,61,"Male","White","Married","Dec","Routine discharge",2,"South","500 or over","Not-for-profit","41071","3722","Blue Cross",122,"Not reported","Not reported",4,2,{"v":2395,"d":"$2,395"}]
[644,1,"Male","White","Single","Nov","Routine discharge",3,"South","500 or over","Not-for-profit","4738-","","Other private insurance",70,"Not reported","Not reported",4,2,{"v":2187,"d":"$2,187"}]
[645,67,"Female","White","Married","Jun","Routine discharge",1,"South","100 to 199","Not-for-profit","1541-","4835","Medicare",157,"Elective","Not reported",4,1,{"v":1233,"d":"$1,233"}]
[646,39,"Female","White","Single","Aug","Routine discharge",1,"South","100 to 199","Not-for-profit","25011","","Medicaid",294,"Emergency","Emergency room",5,1,{"v":1764,"d":"$1,764"}]
[647,41,"Female","White","Married","Jun","Routine discharge",1,"South","100 to 199","Not-for-profit","30551","","Medicaid",521,"Emergency","Emergency room",3,2,{"v":2557,"d":"$2,557"}]
[648,77,"Female","White","Divorced","Mar","Routine discharge",3,"South","100 to 199","Not-for-profit","4809-","","Medicare",89,"Emergency","Emergency room",4,3,{"v":2790,"d":"$2,790"}]
[649,72,"Female","White","Married","Jul","Alive, disposition not stated",4,"South","100 to 199","Not-for-profit","51881","","Medicare",87,"Urgent","Not reported",5,3,{"v":2978,"d":"$2,978"}]
[650,73,"Female","White","Married","Nov","Routine discharge",4,"South","100 to 199","Not-for-profit","7245-","","Medicare",243,"Emergency","Emergency room",5,3,{"v":2699,"d":"$2,699"}]
[651,35,"Female","Black","Single","May","Alive, disposition not stated",3,"South","100 to 199","Not-for-profit","V270-","7569","Blue Cross",373,"Urgent","Not reported",4,3,{"v":2805,"d":"$2,805"}]
[652,0,"Male","White","Single","Feb","Routine discharge",2,"South","200 to 299","Not-for-profit","V3000","","Other private insurance",390,"Newborn","Other",5,3,{"v":2830,"d":"$2,830"}]
[653,0,"Female","White","Single","Apr","Routine discharge",2,"South","200 to 299","Not-for-profit","V3000","","Other private insurance",391,"Newborn","Other",4,3,{"v":2679,"d":"$2,679"}]
[654,77,"Female","White","Widowed","Jun","Routine discharge",2,"South","200 to 299","Not-for-profit","4280-","","Medicare",127,"Emergency","Emergency room",5,3,{"v":3084,"d":"$3,084"}]
[655,77,"Female","White","Widowed","Jun","Alive, disposition not stated",3,"South","200 to 299","Not-for-profit","71536","8154","HMO",209,"Elective","Not reported",4,3,{"v":2957,"d":"$2,957"}]
[656,24,"Female","Black","Single","Aug","Routine discharge",2,"South","200 to 299","Not-for-profit","V270-","736-","Blue Cross",373,"Urgent","Not reported",5,3,{"v":2776,"d":"$2,776"}]
[657,39,"Female","Not stated","Married","Aug","Routine discharge",3,"South","200 to 299","Not-for-profit","V270-","7569","HMO",373,"Urgent","Not reported",4,3,{"v":3089,"d":"$3,089"}]
[658,85,"Female","White","Widowed","Oct","Alive, disposition not stated",9,"South","300 to 499","Not-for-profit","1534-","4573","Medicare",148,"Emergency","Other",5,7,{"v":6300,"d":"$6,300"}]
[659,78,"Female","White","Widowed","Dec","Routine discharge",4,"South","300 to 499","Not-for-profit","42731","3783","Medicare",116,"Emergency","Emergency room",4,2,{"v":2331,"d":"$2,331"}]
[660,73,"Male","White","Married","Nov","Routine discharge",1,"South","300 to 499","Not-for-profit","6000-","6029","Medicare",336,"Elective","Not reported",4,2,{"v":2457,"d":"$2,457"}]
[661,61,"Male","Black","Married","Aug","Routine discharge",1,"South","100 to 199","Not-for-profit","25000","8872","HMO",294,"Emergency","Emergency room",5,1,{"v":928,"d":"$928"}]
[662,78,"Male","Black","Married","Feb","Routine discharge",6,"South","100 to 199","Not-for-profit","44023","3929","Medicare",478,"Urgent","Not reported",4,4,{"v":3347,"d":"$3,347"}]
[663,54,"Male","White","Single","Aug","Dead",12,"South","100 to 199","Not-for-profit","5750-","5122","Medicare",197,"Emergency","Emergency room",4,6,{"v":5125,"d":"$5,125"}]
[664,78,"Female","White","Widowed","Aug","Alive, disposition not stated",5,"South","100 to 199","Not-for-profit","5790-","8914","Medicare",183,"Emergency","Emergency room",4,2,{"v":1921,"d":"$1,921"}]
[665,25,"Female","Black","Single","Oct","Routine discharge",3,"South","100 to 199","Not-for-profit","56211","8801","Medicaid",182,"Emergency","Emergency room",5,3,{"v":2723,"d":"$2,723"}]
[666,45,"Male","Black","Married","Oct","Routine discharge",1,"South","100 to 199","Not-for-profit","78659","8941","Blue Cross",143,"Emergency","Emergency room",5,2,{"v":2517,"d":"$2,517"}]
[667,0,"Male","Black","Single","Jun","Routine discharge",4,"South","100 to 199","Not-for-profit","V3001","640-","Medicaid",391,"Newborn","Other",4,3,{"v":2655,"d":"$2,655"}]
[668,43,"Male","White","Separated","Feb","Routine discharge",3,"South","200 to 299","Not-for-profit","29650","","Self pay",430,"Emergency","Emergency room",5,2,{"v":2024,"d":"$2,024"}]
[669,92,"Female","White","Widowed","Apr","Routine discharge",5,"South","200 to 299","Not-for-profit","4280-","","Medicare",127,"Emergency","Emergency room",5,1,{"v":1622,"d":"$1,622"}]
[670,53,"Male","White","Single","Nov","Routine discharge",6,"South","200 to 299","Not-for-profit","5712-","4233","Medicare",202,"Emergency","Emergency room",5,2,{"v":2484,"d":"$2,484"}]
[671,54,"Female","Black","Single","Apr","Routine discharge",1,"South","300 to 499","Not-for-profit","53550","","Medicare",182,"Emergency","Emergency room",5,1,{"v":1004,"d":"$1,004"}]
[672,49,"Male","White","Married","Mar","Discharged to long-term facility",19,"South","300 to 499","Not-for-profit","7213-","0309","Blue Cross",499,"Elective","Not reported",4,6,{"v":5245,"d":"$5,245"}]
[673,34,"Female","Black","Not stated","Jun","Routine discharge",3,"South","200 to 299","Not-for-profit","2189-","684-","Blue Cross",359,"Not reported","Not reported",4,3,{"v":3098,"d":"$3,098"}]
[674,41,"Male","White","Not stated","May","Routine discharge",5,"South","200 to 299","Not-for-profit","29644","","Blue Cross",430,"Not reported","Not reported",4,2,{"v":2152,"d":"$2,152"}]
[675,78,"Female","White","Not stated","Feb","Alive, disposition not stated",11,"South","200 to 299","Not-for-profit","4280-","9390","Medicare",127,"Not reported","Not reported",4,4,{"v":3680,"d":"$3,680"}]
[676,76,"Female","White","Not stated","Sep","Routine discharge",1,"South","200 to 299","Not-for-profit","40290","","Medicare",134,"Not reported","Not reported",4,2,{"v":2528,"d":"$2,528"}]
[677,75,"Male","White","Not stated","Mar","Routine discharge",10,"South","200 to 299","Not-for-profit","49121","","Medicare",88,"Not reported","Not reported",4,3,{"v":3067,"d":"$3,067"}]
[678,73,"Female","White","Not stated","Nov","Routine discharge",7,"South","200 to 299","Not-for-profit","486--","","Medicare",89,"Not reported","Not reported",5,3,{"v":2707,"d":"$2,707"}]
[679,62,"Female","White","Not stated","May","Routine discharge",5,"South","200 to 299","Not-for-profit","56211","4575","Other private insurance",148,"Not reported","Not reported",4,2,{"v":1906,"d":"$1,906"}]
[680,67,"Female","White","Not stated","Jan","Routine discharge",5,"South","200 to 299","Not-for-profit","71536","8154","HMO",209,"Not reported","Not reported",4,2,{"v":2354,"d":"$2,354"}]
[681,49,"Female","White","Not stated","Aug","Routine discharge",4,"South","200 to 299","Not-for-profit","V581-","9925","Other private insurance",410,"Not reported","Not reported",5,3,{"v":2756,"d":"$2,756"}]
[682,73,"Female","White","Widowed","Mar","Routine discharge",8,"South","6 to 99","Not-for-profit","49121","","Medicare",88,"Urgent","Emergency room",5,4,{"v":3841,"d":"$3,841"}]
[683,0,"Male","Not stated","Single","May","Routine discharge",1,"South","200 to 299","Proprietary","V3000","640-","HMO",391,"Newborn","Other",5,2,{"v":2197,"d":"$2,197"}]
[684,65,"Female","Not stated","Married","Feb","Routine discharge",1,"South","100 to 199","Not-for-profit","4011-","","Medicare",134,"Elective","Emergency room",4,1,{"v":954,"d":"$954"}]
[685,87,"Female","Not stated","Widowed","Jun","Discharged to long-term facility",2,"South","100 to 199","Not-for-profit","4589-","","Medicare",144,"Emergency","Emergency room",4,3,{"v":2601,"d":"$2,601"}]
[686,70,"Female","Not stated","Single","Oct","Discharged to long-term facility",14,"South","6 to 99","Proprietary","29570","","Medicare",430,"Not reported","Physician",4,4,{"v":3887,"d":"$3,887"}]
[687,76,"Female","White","Widowed","Mar","Routine discharge",5,"South","100 to 199","Government","5845-","3942","Medicare",315,"Elective","Physician",5,2,{"v":1900,"d":"$1,900"}]
[688,48,"Male","White","Divorced","Jun","Routine discharge",8,"South","200 to 299","Not-for-profit","4280-","3927","Medicare",120,"Emergency","Emergency room",4,6,{"v":5300,"d":"$5,300"}]
[689,31,"Female","White","Married","Jan","Routine discharge",2,"West","300 to 499","Not-for-profit","V270-","736-","Other",373,"Elective","Other",5,2,{"v":2454,"d":"$2,454"}]
[690,0,"Male","White","Not stated","Feb","Routine discharge",1,"West","200 to 299","Not-for-profit","V3000","640-","HMO",391,"Newborn","Other",4,1,{"v":925,"d":"$925"}]
[691,0,"Female","White","Not stated","Sep","Routine discharge",3,"West","200 to 299","Not-for-profit","V3000","","Medicaid",391,"Newborn","Other",4,1,{"v":922,"d":"$922"}]
[692,95,"Female","White","Not stated","Mar","Routine discharge",2,"West","200 to 299","Not-for-profit","4019-","","HMO",134,"Emergency","Emergency room",4,2,{"v":2554,"d":"$2,554"}]
[693,88,"Female","White","Not stated","Apr","Routine discharge",4,"West","200 to 299","Not-for-profit","436--","","Medicare",14,"Emergency","Emergency room",4,3,{"v":2767,"d":"$2,767"}]
[694,66,"Female","White","Not stated","Mar","Routine discharge",3,"West","200 to 299","Not-for-profit","72293","0309","Medicare",500,"Elective","Physician",5,1,{"v":1732,"d":"$1,732"}]
[695,57,"Male","Not stated","Not stated","May","Discharged to short-term facility",1,"West","200 to 299","Not-for-profit","99662","","Medicaid",144,"Emergency","Emergency room",5,1,{"v":1233,"d":"$1,233"}]
[696,41,"Female","White","Not stated","May","Routine discharge",3,"West","200 to 299","Not-for-profit","V270-","741-","HMO",371,"Elective","Physician",5,2,{"v":2251,"d":"$2,251"}]
[697,31,"Female","White","Not stated","Aug","Routine discharge",2,"West","200 to 299","Not-for-profit","V270-","7562","HMO",373,"Elective","Physician",5,1,{"v":1069,"d":"$1,069"}]
[698,33,"Female","Asian","Not stated","Dec","Routine discharge",2,"West","200 to 299","Not-for-profit","V270-","7279","Blue Cross",372,"Elective","Physician",4,3,{"v":2825,"d":"$2,825"}]
[699,0,"Male","Not stated","Not stated","Feb","Routine discharge",2,"West","200 to 299","Not-for-profit","V3000","640-","Medicaid",391,"Newborn","Other",4,1,{"v":1119,"d":"$1,119"}]
[700,49,"Male","Not stated","Not stated","May","Routine discharge",1,"West","200 to 299","Not-for-profit","1983-","9232","HMO",8,"Elective","Physician",4,2,{"v":2524,"d":"$2,524"}]
[701,43,"Male","Not stated","Not stated","May","Routine discharge",1,"West","200 to 299","Not-for-profit","25000","","HMO",294,"Urgent","Emergency room",5,3,{"v":2636,"d":"$2,636"}]
[702,53,"Female","Not stated","Not stated","Feb","Routine discharge",1,"West","200 to 299","Not-for-profit","30000","8944","HMO",425,"Urgent","Emergency room",4,1,{"v":1289,"d":"$1,289"}]
[703,50,"Female","Not stated","Not stated","Aug","Routine discharge",1,"West","200 to 299","Not-for-profit","4280-","9390","Other private insurance",127,"Emergency","Emergency room",4,1,{"v":1514,"d":"$1,514"}]
[704,62,"Male","Not stated","Not stated","Aug","Routine discharge",1,"West","200 to 299","Not-for-profit","4408-","3950","HMO",479,"Elective","Physician",4,3,{"v":3078,"d":"$3,078"}]
[705,57,"Male","Not stated","Not stated","Sep","Routine discharge",5,"West","200 to 299","Not-for-profit","44030","3929","Medicare",479,"Elective","Physician",5,2,{"v":1932,"d":"$1,932"}]
[706,86,"Female","Not stated","Not stated","Jul","Routine discharge",5,"West","200 to 299","Not-for-profit","486--","","Medicare",89,"Emergency","Clinic",5,3,{"v":2868,"d":"$2,868"}]
[707,15,"Male","Not stated","Not stated","Jan","Routine discharge",1,"West","200 to 299","Not-for-profit","5409-","4701","HMO",167,"Urgent","Emergency room",5,3,{"v":2656,"d":"$2,656"}]
[708,63,"Female","Not stated","Not stated","Jul","Routine discharge",1,"West","200 to 299","Not-for-profit","7210-","8102","HMO",520,"Elective","Physician",4,3,{"v":2819,"d":"$2,819"}]
[709,0,"Male","Not stated","Not stated","Sep","Routine discharge",2,"West","300 to 499","Not-for-profit","V3000","640-","Other private insurance",391,"Newborn","Other",5,1,{"v":1617,"d":"$1,617"}]
[710,84,"Male","Not stated","Not stated","Sep","Routine discharge",1,"West","300 to 499","Not-for-profit","5762-","5110","HMO",207,"Urgent","Emergency room",4,3,{"v":3033,"d":"$3,033"}]
[711,67,"Female","Not stated","Not stated","May","Discharged to long-term facility",2,"West","300 to 499","Not-for-profit","5990-","","HMO",321,"Elective","HMO",5,2,{"v":2459,"d":"$2,459"}]
[712,21,"Female","White","Married","Mar","Routine discharge",2,"West","100 to 199","Proprietary","V270-","7569","Blue Cross",373,"Urgent","Physician",4,2,{"v":2527,"d":"$2,527"}]
[713,65,"Male","White","Married","Apr","Routine discharge",6,"West","6 to 99","Not-for-profit","5302-","4516","Medicare",176,"Emergency","Emergency room",5,2,{"v":1933,"d":"$1,933"}]
[714,0,"Male","Not stated","Not stated","Jun","Routine discharge",2,"West","200 to 299","Not-for-profit","V3000","640-","Blue Cross",391,"Newborn","Other",5,3,{"v":2984,"d":"$2,984"}]
[715,0,"Male","Not stated","Not stated","Sep","Routine discharge",2,"West","200 to 299","Not-for-profit","V3000","640-","Blue Cross",390,"Newborn","Other",5,3,{"v":3050,"d":"$3,050"}]
[716,88,"Male","Not stated","Not stated","Oct","Routine discharge",1,"West","200 to 299","Not-for-profit","42731","","Medicare",139,"Not reported","Not reported",4,2,{"v":1967,"d":"$1,967"}]
[717,43,"Male","Not stated","Not stated","Jan","Routine discharge",1,"West","200 to 299","Not-for-profit","72210","8051","Blue Cross",500,"Not reported","Not reported",4,3,{"v":2683,"d":"$2,683"}]
[718,46,"Female","Not stated","Not stated","Jan","Alive, disposition not stated",2,"West","200 to 299","Not-for-profit","81344","0443","Medicaid",228,"Not reported","Not reported",4,1,{"v":996,"d":"$996"}]
[719,81,"Female","Not stated","Not stated","Nov","Discharged to long-term facility",4,"West","200 to 299","Not-for-profit","85200","","Medicare",28,"Not reported","Not reported",4,1,{"v":771,"d":"$771"}]
[720,31,"Female","Not stated","Not stated","Jul","Routine discharge",2,"West","200 to 299","Not-for-profit","V270-","7569","Blue Cross",373,"Not reported","Not reported",4,2,{"v":2357,"d":"$2,357"}]
[721,26,"Male","White","Married","Feb","Routine discharge",2,"South","6 to 99","Not-for-profit","3490-","0395","Blue Cross",25,"Urgent","Physician",4,2,{"v":2269,"d":"$2,269"}]
[722,70,"Female","White","Not stated","Nov","Routine discharge",2,"Midwest","100 to 199","Government","49121","","Medicare",88,"Not reported","Not reported",4,1,{"v":1349,"d":"$1,349"}]
[723,49,"Female","White","Not stated","Jun","Routine discharge",5,"Midwest","100 to 199","Government","52100","2319","Medicaid",187,"Not reported","Not reported",5,3,{"v":2623,"d":"$2,623"}]
[724,88,"Male","White","Not stated","Nov","Routine discharge",2,"Midwest","100 to 199","Government","5789-","9904","Medicare",174,"Not reported","Not reported",5,2,{"v":2166,"d":"$2,166"}]
[725,22,"Female","White","Not stated","May","Routine discharge",2,"Midwest","100 to 199","Government","V270-","736-","Other private insurance",373,"Not reported","Not reported",5,2,{"v":1895,"d":"$1,895"}]
[726,0,"Male","Not stated","Not stated","Jan","Routine discharge",3,"Midwest","200 to 299","Not-for-profit","V3000","640-","Medicaid",390,"Newborn","Other",4,2,{"v":2003,"d":"$2,003"}]
[727,0,"Female","Not stated","Not stated","Sep","Routine discharge",2,"Midwest","200 to 299","Not-for-profit","V3000","","HMO",391,"Newborn","Other",5,3,{"v":2620,"d":"$2,620"}]
[728,0,"Male","Not stated","Not stated","Nov","Routine discharge",3,"Midwest","200 to 299","Not-for-profit","V3001","640-","HMO",391,"Newborn","Other",4,1,{"v":830,"d":"$830"}]
[729,71,"Female","Not stated","Not stated","Feb","Routine discharge",7,"Midwest","200 to 299","Not-for-profit","4280-","3893","Not stated",127,"Emergency","Emergency room",4,4,{"v":3615,"d":"$3,615"}]
[730,74,"Female","Not stated","Not stated","Jun","Routine discharge",8,"Midwest","200 to 299","Not-for-profit","4240-","3524","Medicare",105,"Elective","Emergency room",5,2,{"v":2320,"d":"$2,320"}]
[731,59,"Female","Not stated","Not stated","Oct","Routine discharge",3,"Midwest","200 to 299","Not-for-profit","49392","","HMO",96,"Urgent","Physician",5,2,{"v":2310,"d":"$2,310"}]
[732,71,"Male","Not stated","Not stated","Dec","Routine discharge",13,"Midwest","200 to 299","Not-for-profit","515--","3328","Medicare",75,"Elective","Physician",4,4,{"v":3343,"d":"$3,343"}]
[733,87,"Female","Not stated","Not stated","Jun","Discharged to short-term facility",5,"Midwest","200 to 299","Not-for-profit","5789-","4516","Medicare",174,"Emergency","Emergency room",5,3,{"v":3025,"d":"$3,025"}]
[734,70,"Female","Not stated","Not stated","May","Routine discharge",1,"Midwest","200 to 299","Not-for-profit","7295-","","HMO",247,"Emergency","Emergency room",5,3,{"v":2935,"d":"$2,935"}]
[735,28,"Female","Not stated","Not stated","Jan","Routine discharge",2,"Midwest","200 to 299","Not-for-profit","V270-","736-","HMO",373,"Urgent","Physician",5,2,{"v":1966,"d":"$1,966"}]
[736,30,"Female","Not stated","Not stated","Apr","Routine discharge",2,"Midwest","200 to 299","Not-for-profit","V270-","720-","Blue Cross",373,"Urgent","Physician",5,1,{"v":1464,"d":"$1,464"}]
[737,31,"Female","Not stated","Not stated","May","Routine discharge",1,"Midwest","200 to 299","Not-for-profit","V270-","7569","HMO",372,"Urgent","Physician",5,3,{"v":3071,"d":"$3,071"}]
[738,31,"Female","Not stated","Not stated","Aug","Routine discharge",5,"Midwest","200 to 299","Not-for-profit","V272-","741-","Blue Cross",371,"Urgent","Physician",5,2,{"v":2469,"d":"$2,469"}]
[739,18,"Female","Not stated","Not stated","Oct","Routine discharge",3,"Midwest","200 to 299","Not-for-profit","V270-","7569","Medicaid",372,"Urgent","Physician",4,1,{"v":1439,"d":"$1,439"}]
[740,38,"Female","Not stated","Not stated","Oct","Routine discharge",4,"Midwest","200 to 299","Not-for-profit","V270-","741-","HMO",371,"Urgent","Physician",4,3,{"v":2955,"d":"$2,955"}]
[741,55,"Female","Not stated","Not stated","Mar","Routine discharge",2,"Midwest","300 to 499","Not-for-profit","2189-","684-","HMO",359,"Elective","Physician",5,3,{"v":3072,"d":"$3,072"}]
[742,44,"Female","Not stated","Not stated","Oct","Routine discharge",3,"Midwest","300 to 499","Not-for-profit","2181-","684-","HMO",359,"Elective","Physician",4,1,{"v":849,"d":"$849"}]
[743,67,"Male","Not stated","Not stated","Nov","Left AMA",14,"Midwest","300 to 499","Not-for-profit","29181","3893","Medicaid",433,"Emergency","Emergency room",5,3,{"v":2761,"d":"$2,761"}]
[744,41,"Female","Not stated","Not stated","Oct","Routine discharge",2,"Midwest","300 to 499","Not-for-profit","6171-","6549","HMO",359,"Elective","Physician",4,2,{"v":2242,"d":"$2,242"}]
[745,58,"Female","Not stated","Not stated","Jan","Routine discharge",3,"Midwest","300 to 499","Not-for-profit","99672","3605","HMO",517,"Emergency","Emergency room",4,1,{"v":1289,"d":"$1,289"}]
[746,88,"Female","Black","Widowed","Sep","Discharged to short-term facility",12,"South","300 to 499","Not-for-profit","73026","8417","Medicare",213,"Urgent","Physician",4,2,{"v":2539,"d":"$2,539"}]
[747,75,"Female","Not stated","Not stated","Oct","Dead",13,"South","200 to 299","Not-for-profit","436--","4311","Medicare",14,"Emergency","Emergency room",4,6,{"v":5186,"d":"$5,186"}]
[748,74,"Male","Other","Separated","Aug","Dead",31,"Midwest","500 or over","Not-for-profit","585--","5569","Medicare",483,"Urgent","Physician",5,7,{"v":5966,"d":"$5,966"}]
[749,90,"Female","Not stated","Not stated","Apr","Routine discharge",1,"Midwest","100 to 199","Not-for-profit","4019-","","Medicare",134,"Emergency","Emergency room",5,3,{"v":2798,"d":"$2,798"}]
[750,51,"Male","Not stated","Not stated","Aug","Routine discharge",1,"Midwest","100 to 199","Not-for-profit","41401","8944","HMO",133,"Emergency","Emergency room",5,2,{"v":1921,"d":"$1,921"}]
[751,96,"Female","Not stated","Not stated","Feb","Discharged to long-term facility",5,"Midwest","100 to 199","Not-for-profit","486--","3893","Medicare",89,"Emergency","Emergency room",5,2,{"v":2177,"d":"$2,177"}]
[752,41,"Female","Not stated","Not stated","Jul","Routine discharge",7,"Midwest","100 to 199","Not-for-profit","56213","4576","Other private insurance",149,"Urgent","Physician",5,2,{"v":2506,"d":"$2,506"}]
[753,59,"Male","Not stated","Not stated","Jul","Routine discharge",1,"Midwest","100 to 199","Not-for-profit","99674","3950","HMO",479,"Emergency","Emergency room",4,1,{"v":1437,"d":"$1,437"}]
[754,0,"Female","Not stated","Not stated","Mar","Routine discharge",3,"Midwest","300 to 499","Not-for-profit","V3001","","HMO",391,"Newborn","Other",5,1,{"v":1531,"d":"$1,531"}]
[755,0,"Female","Not stated","Not stated","May","Routine discharge",4,"Midwest","300 to 499","Not-for-profit","V3001","","HMO",390,"Newborn","Other",5,3,{"v":3080,"d":"$3,080"}]
[756,66,"Female","Not stated","Not stated","Jul","Routine discharge",8,"Midwest","300 to 499","Not-for-profit","5183-","3324","Medicare",92,"Elective","Physician",5,2,{"v":2204,"d":"$2,204"}]
[757,3,"Female","Not stated","Not stated","Dec","Routine discharge",2,"Midwest","300 to 499","Not-for-profit","7731-","9983","HMO",390,"Urgent","Physician",5,2,{"v":2029,"d":"$2,029"}]
[758,55,"Male","Not stated","Not stated","Nov","Routine discharge",2,"Midwest","300 to 499","Not-for-profit","9694-","9462","Other private insurance",449,"Emergency","Emergency room",4,2,{"v":1913,"d":"$1,913"}]
[759,69,"Male","Not stated","Not stated","Apr","Routine discharge",7,"Midwest","300 to 499","Not-for-profit","V5789","","Medicare",462,"Urgent","Physician",4,3,{"v":2834,"d":"$2,834"}]
[760,76,"Male","Asian","Married","Apr","Dead",13,"West","200 to 299","Not-for-profit","20530","034-","Medicare",400,"Elective","Physician",5,2,{"v":2152,"d":"$2,152"}]
[761,78,"Female","Asian","Single","Jan","Routine discharge",4,"West","200 to 299","Not-for-profit","1820-","684-","Medicare",355,"Not reported","Not reported",5,2,{"v":2103,"d":"$2,103"}]
[762,35,"Male","Pacific Islander","Married","Dec","Routine discharge",7,"West","200 to 299","Not-for-profit","1911-","0153","HMO",1,"Not reported","Not reported",5,3,{"v":2884,"d":"$2,884"}]
[763,82,"Female","Pacific Islander","Single","Aug","Routine discharge",1,"West","200 to 299","Not-for-profit","42731","9962","HMO",138,"Not reported","Not reported",5,2,{"v":1989,"d":"$1,989"}]
[764,60,"Female","White","Married","Jun","Routine discharge",2,"West","200 to 299","Not-for-profit","6182-","6859","HMO",358,"Not reported","Not reported",4,3,{"v":3022,"d":"$3,022"}]
[765,34,"Female","Other","Divorced","Apr","Left AMA",2,"West","300 to 499","Not-for-profit","57410","","Self pay",208,"Emergency","Emergency room",5,1,{"v":773,"d":"$773"}]
[766,70,"Female","Pacific Islander","Married","Jun","Routine discharge",3,"West","300 to 499","Not-for-profit","71595","8151","Blue Cross",209,"Urgent","Physician",5,1,{"v":1759,"d":"$1,759"}]
[767,85,"Female","White","Married","Aug","Discharged to long-term facility",4,"West","100 to 199","Not-for-profit","5990-","","Medicare",320,"Emergency","Emergency room",4,2,{"v":2332,"d":"$2,332"}]
[768,81,"Male","Black","Widowed","Apr","Alive, disposition not stated",4,"South","100 to 199","Government","436--","","Medicare",14,"Emergency","Physician",4,2,{"v":2185,"d":"$2,185"}]
[769,68,"Male","White","Married","Dec","Routine discharge",6,"South","100 to 199","Government","57400","5123","Medicare",493,"Elective","Emergency room",4,3,{"v":2694,"d":"$2,694"}]
[770,66,"Female","White","Married","Jan","Alive, disposition not stated",3,"South","100 to 199","Government","71536","8154","Medicare",209,"Emergency","Physician",5,3,{"v":2817,"d":"$2,817"}]
[771,22,"Female","White","Single","Apr","Routine discharge",1,"South","100 to 199","Government","8500-","","Workers Comp",32,"Emergency","Not reported",5,1,{"v":1099,"d":"$1,099"}]
[772,0,"Male","White","Single","Dec","Routine discharge",4,"West","300 to 499","Not-for-profit","V3001","","HMO",391,"Newborn","Other",5,3,{"v":3092,"d":"$3,092"}]
[773,56,"Female","White","Married","Feb","Routine discharge",2,"West","300 to 499","Not-for-profit","2181-","684-","HMO",359,"Emergency","Physician",4,1,{"v":1713,"d":"$1,713"}]
[774,49,"Male","White","Single","Apr","Routine discharge",8,"West","300 to 499","Not-for-profit","29640","","Medicare",430,"Not reported","Physician",5,2,{"v":1957,"d":"$1,957"}]
[775,88,"Female","White","Not stated","Mar","Routine discharge",4,"West","100 to 199","Proprietary","4359-","4542","Medicare",15,"Not reported","Not reported",4,2,{"v":2000,"d":"$2,000"}]
[776,28,"Female","White","Not stated","Jan","Routine discharge",1,"West","100 to 199","Proprietary","V270-","7359","HMO",373,"Not reported","Not reported",5,3,{"v":2905,"d":"$2,905"}]
[777,85,"Female","White","Not stated","Sep","Discharged to long-term facility",19,"West","300 to 499","Not-for-profit","1534-","4573","Medicare",148,"Emergency","Emergency room",5,5,{"v":4137,"d":"$4,137"}]
[778,44,"Male","White","Not stated","Mar","Routine discharge",22,"West","300 to 499","Not-for-profit","44101","3522","HMO",105,"Emergency","Other",4,5,{"v":4249,"d":"$4,249"}]
[779,31,"Female","White","Not stated","Jun","Routine discharge",3,"West","300 to 499","Not-for-profit","64893","0294","HMO",383,"Emergency","Emergency room",5,3,{"v":2940,"d":"$2,940"}]
[780,83,"Male","White","Not stated","Nov","Routine discharge",10,"West","300 to 499","Not-for-profit","71106","8016","Medicare",501,"Elective","Physician",4,5,{"v":4635,"d":"$4,635"}]
[781,68,"Male","White","Not stated","Apr","Routine discharge",1,"West","300 to 499","Not-for-profit","80122","","Medicare",28,"Emergency","Emergency room",5,1,{"v":1279,"d":"$1,279"}]
[782,84,"Male","White","Not stated","Aug","Routine discharge",1,"West","300 to 499","Not-for-profit","99859","","Medicare",418,"Emergency","Emergency room",5,3,{"v":3056,"d":"$3,056"}]
[783,45,"Female","White","Not stated","Nov","Routine discharge",13,"West","300 to 499","Not-for-profit","99859","4611","HMO",415,"Emergency","Emergency room",5,4,{"v":3697,"d":"$3,697"}]
[784,42,"Male","Not stated","Not stated","Apr","Routine discharge",1,"Midwest","300 to 499","Not-for-profit","0088-","","Blue Cross",182,"Emergency","Emergency room",4,2,{"v":2149,"d":"$2,149"}]
[785,63,"Male","Not stated","Not stated","Sep","Routine discharge",1,"Midwest","300 to 499","Not-for-profit","4280-","3794","Blue Cross",515,"Urgent","Physician",5,1,{"v":789,"d":"$789"}]
[786,63,"Male","Not stated","Not stated","Nov","Routine discharge",5,"Midwest","300 to 499","Not-for-profit","41011","3601","Self pay",516,"Urgent","Transfer from hospital",5,3,{"v":2970,"d":"$2,970"}]
[787,74,"Male","Not stated","Not stated","Nov","Routine discharge",4,"Midwest","300 to 499","Not-for-profit","71535","8151","Medicare",209,"Urgent","Physician",4,2,{"v":2434,"d":"$2,434"}]
[788,26,"Female","Not stated","Not stated","Feb","Routine discharge",2,"Midwest","300 to 499","Not-for-profit","V272-","7569","Medicaid",373,"Emergency","Physician",5,1,{"v":804,"d":"$804"}]
[789,26,"Female","Not stated","Not stated","May","Routine discharge",2,"Midwest","300 to 499","Not-for-profit","V270-","736-","Other private insurance",373,"Urgent","Physician",5,1,{"v":954,"d":"$954"}]
[790,43,"Female","White","Married","Mar","Alive, disposition not stated",5,"Midwest","300 to 499","Not-for-profit","29620","","Other private insurance",430,"Emergency","Transfer from hospital",5,2,{"v":2035,"d":"$2,035"}]
[791,93,"Female","White","Not stated","Jun","Alive, disposition not stated",4,"Midwest","300 to 499","Not-for-profit","2767-","","Medicare",297,"Not reported","Not reported",4,2,{"v":2226,"d":"$2,226"}]
[792,78,"Female","Black","Not stated","Oct","Discharged to long-term facility",3,"Midwest","200 to 299","Not-for-profit","49121","","Medicare",88,"Not reported","Not reported",5,3,{"v":2590,"d":"$2,590"}]
[793,87,"Male","Not stated","Married","Mar","Routine discharge",3,"Midwest","6 to 99","Not-for-profit","29281","","Medicare",521,"Elective","Physician",4,3,{"v":2854,"d":"$2,854"}]
[794,61,"Male","Not stated","Not stated","May","Discharged to long-term facility",6,"Northeast","6 to 99","Not-for-profit","V571-","","Medicare",462,"Urgent","Physician",5,4,{"v":3859,"d":"$3,859"}]
[795,0,"Female","Asian","Not stated","Feb","Routine discharge",3,"Midwest","300 to 499","Government","V3001","","Medicaid",388,"Newborn","Other",5,5,{"v":4171,"d":"$4,171"}]
[796,53,"Male","White","Not stated","Dec","Routine discharge",2,"Midwest","300 to 499","Government","56212","4542","Other private insurance",174,"Emergency","Emergency room",5,2,{"v":1933,"d":"$1,933"}]
[797,3,"Male","White","Not stated","Sep","Routine discharge",7,"Midwest","300 to 499","Government","7483-","9921","Other government",74,"Urgent","Physician",5,2,{"v":2034,"d":"$2,034"}]
[798,22,"Female","White","Not stated","Jun","Routine discharge",2,"Midwest","300 to 499","Government","95901","8744","Medicaid",445,"Emergency","Emergency room",4,1,{"v":905,"d":"$905"}]
[799,28,"Male","White","Not stated","Jul","Routine discharge",19,"South","6 to 99","Not-for-profit","29532","","Medicare",430,"Not reported","Not reported",4,5,{"v":4397,"d":"$4,397"}]
[800,86,"Male","White","Not stated","Jan","Dead",2,"South","6 to 99","Not-for-profit","41021","9604","Medicare",123,"Not reported","Not reported",5,1,{"v":1320,"d":"$1,320"}]
[801,66,"Male","White","Not stated","Nov","Alive, disposition not stated",2,"South","6 to 99","Not-for-profit","V540-","7865","Medicare",230,"Not reported","Not reported",5,2,{"v":2523,"d":"$2,523"}]
[802,10,"Male","White","Single","Nov","Routine discharge",4,"South","100 to 199","Proprietary","486--","","HMO",91,"Urgent","Not reported",4,3,{"v":2650,"d":"$2,650"}]
[803,24,"Female","White","Married","Feb","Routine discharge",2,"South","100 to 199","Proprietary","V270-","736-","Medicaid",373,"Elective","Physician",5,2,{"v":1953,"d":"$1,953"}]
[804,89,"Female","White","Married","Jan","Discharged to long-term facility",11,"South","6 to 99","Proprietary","48241","","Medicare",80,"Elective","Physician",5,4,{"v":3377,"d":"$3,377"}]
[805,0,"Male","Black","Single","Nov","Routine discharge",2,"South","200 to 299","Not-for-profit","V3000","","Other private insurance",391,"Newborn","Other",5,2,{"v":2392,"d":"$2,392"}]
[806,56,"Male","Black","Not stated","Sep","Dead",18,"South","200 to 299","Not-for-profit","44422","8848","Self pay",130,"Emergency","Emergency room",4,5,{"v":4552,"d":"$4,552"}]
[807,24,"Female","White","Not stated","Jun","Routine discharge",1,"Northeast","6 to 99","Not-for-profit","65983","734-","HMO",384,"Urgent","Physician",5,1,{"v":971,"d":"$971"}]
[808,81,"Female","White","Not stated","Oct","Routine discharge",2,"Northeast","6 to 99","Not-for-profit","73313","","Medicare",239,"Urgent","Physician",4,3,{"v":2993,"d":"$2,993"}]
[809,31,"Female","White","Not stated","Jul","Routine discharge",3,"Northeast","6 to 99","Not-for-profit","V270-","7359","Medicaid",373,"Urgent","Physician",5,2,{"v":2201,"d":"$2,201"}]
[810,0,"Male","Not stated","Not stated","May","Routine discharge",1,"West","100 to 199","Not-for-profit","V3000","9955","Other private insurance",390,"Newborn","Other",5,3,{"v":2888,"d":"$2,888"}]
[811,44,"Male","Not stated","Not stated","May","Routine discharge",4,"West","100 to 199","Not-for-profit","1890-","","Other private insurance",319,"Not reported","Not reported",5,2,{"v":2178,"d":"$2,178"}]
[812,53,"Female","Not stated","Not stated","Jan","Routine discharge",2,"West","100 to 199","Not-for-profit","6185-","7050","Other private insurance",356,"Not reported","Not reported",5,1,{"v":1082,"d":"$1,082"}]
[813,70,"Female","Not stated","Not stated","Feb","Routine discharge",1,"West","100 to 199","Not-for-profit","6256-","5979","Medicare",356,"Not reported","Not reported",5,3,{"v":2720,"d":"$2,720"}]
[814,20,"Female","Not stated","Not stated","May","Routine discharge",1,"West","100 to 199","Not-for-profit","V270-","7309","Other private insurance",373,"Not reported","Not reported",4,3,{"v":2733,"d":"$2,733"}]
[815,15,"Female","Not stated","Not stated","Sep","Routine discharge",2,"West","100 to 199","Not-for-profit","V270-","7279","Other private insurance",373,"Not reported","Not reported",5,2,{"v":2394,"d":"$2,394"}]
[816,29,"Female","Not stated","Not stated","Dec","Routine discharge",3,"West","100 to 199","Not-for-profit","V270-","741-","Other private insurance",371,"Not reported","Not reported",5,5,{"v":4601,"d":"$4,601"}]
[817,71,"Male","Not stated","Not stated","May","Routine discharge",3,"Midwest","6 to 99","Not-for-profit","4280-","","Medicare",127,"Emergency","Emergency room",5,2,{"v":2316,"d":"$2,316"}]
[818,58,"Female","White","Not stated","Mar","Routine discharge",1,"South","300 to 499","Not-for-profit","1744-","8543","HMO",258,"Not reported","Not reported",5,3,{"v":2782,"d":"$2,782"}]
[819,65,"Male","White","Not stated","Jan","Routine discharge",5,"South","300 to 499","Not-for-profit","481--","","Medicare",89,"Not reported","Not reported",5,2,{"v":2162,"d":"$2,162"}]
[820,65,"Female","Black","Not stated","Dec","Dead",1,"South","300 to 499","Not-for-profit","51881","9671","Medicare",475,"Not reported","Not reported",4,3,{"v":3021,"d":"$3,021"}]
[821,53,"Male","White","Not stated","Jul","Routine discharge",1,"South","300 to 499","Not-for-profit","7220-","8102","Blue Cross",520,"Not reported","Not reported",5,2,{"v":2221,"d":"$2,221"}]
[822,56,"Male","White","Married","May","Routine discharge",2,"South","300 to 499","Not-for-profit","5921-","5631","Medicare",311,"Urgent","Emergency room",5,2,{"v":2386,"d":"$2,386"}]
[823,0,"Male","Not stated","Not stated","Apr","Routine discharge",1,"Midwest","100 to 199","Not-for-profit","V3000","","Medicaid",391,"Newborn","Other",5,2,{"v":2088,"d":"$2,088"}]
[824,0,"Male","Not stated","Not stated","Dec","Routine discharge",4,"Midwest","100 to 199","Not-for-profit","V3001","640-","Other private insurance",391,"Newborn","Other",5,2,{"v":2169,"d":"$2,169"}]
[825,50,"Female","Not stated","Not stated","Jul","Discharged to long-term facility",9,"Midwest","100 to 199","Not-for-profit","340--","8313","Medicaid",7,"Elective","Transfer from SNF",5,3,{"v":2848,"d":"$2,848"}]
[826,58,"Male","Not stated","Not stated","Nov","Dead",7,"Midwest","100 to 199","Not-for-profit","5921-","560-","Medicaid",310,"Urgent","Emergency room",4,4,{"v":3498,"d":"$3,498"}]
[827,88,"Female","White","Not stated","Mar","Discharged to long-term facility",6,"Midwest","200 to 299","Not-for-profit","40290","","Medicare",134,"Urgent","Emergency room",4,4,{"v":3861,"d":"$3,861"}]
[828,73,"Male","White","Not stated","Nov","Routine discharge",4,"Midwest","200 to 299","Not-for-profit","9983-","8659","Medicare",453,"Elective","Physician",5,2,{"v":2269,"d":"$2,269"}]
[829,55,"Male","Not stated","Not stated","Jan","Routine discharge",1,"West","100 to 199","Not-for-profit","41071","3601","Other private insurance",516,"Not reported","Not reported",5,1,{"v":1252,"d":"$1,252"}]
[830,95,"Male","Not stated","Not stated","Feb","Routine discharge",2,"West","100 to 199","Not-for-profit","41401","3722","Medicare",124,"Not reported","Not reported",5,1,{"v":1204,"d":"$1,204"}]
[831,71,"Female","Not stated","Not stated","Nov","Discharged to long-term facility",6,"West","100 to 199","Not-for-profit","53210","4442","Medicare",154,"Not reported","Not reported",4,3,{"v":3106,"d":"$3,106"}]
[832,49,"Female","Not stated","Not stated","Feb","Routine discharge",7,"West","100 to 199","Not-for-profit","5849-","","Medicare",316,"Not reported","Not reported",5,4,{"v":3790,"d":"$3,790"}]
[833,0,"Female","White","Single","Aug","Routine discharge",2,"South","200 to 299","Not-for-profit","V3000","9955","Medicaid",390,"Newborn","Other",5,2,{"v":2208,"d":"$2,208"}]
[834,49,"Female","Black","Married","Oct","Routine discharge",2,"South","200 to 299","Not-for-profit","2189-","684-","Blue Cross",359,"Elective","Physician",5,2,{"v":2419,"d":"$2,419"}]
[835,27,"Male","White","Married","Dec","Routine discharge",1,"South","200 to 299","Not-for-profit","8246-","7936","Blue Cross",219,"Elective","Physician",4,2,{"v":2487,"d":"$2,487"}]
[836,22,"Female","White","Single","Aug","Routine discharge",2,"South","100 to 199","Not-for-profit","V270-","7534","HMO",373,"Elective","Physician",5,2,{"v":1997,"d":"$1,997"}]
[837,0,"Male","White","Single","May","Routine discharge",1,"South","300 to 499","Government","V3000","","Self pay",389,"Newborn","Other",5,2,{"v":2423,"d":"$2,423"}]
[838,52,"Female","White","Married","Dec","Routine discharge",1,"South","300 to 499","Government","2252-","9232","HMO",8,"Urgent","Physician",5,1,{"v":1175,"d":"$1,175"}]
[839,54,"Female","Black","Not stated","Feb","Routine discharge",1,"South","300 to 499","Government","4010-","","Self pay",134,"Urgent","Physician",4,1,{"v":1268,"d":"$1,268"}]
[840,82,"Female","White","Widowed","Jan","Dead",3,"South","300 to 499","Government","5110-","9396","Medicare",89,"Urgent","Transfer from hospital",4,2,{"v":2436,"d":"$2,436"}]
[841,4,"Male","American Indian","Single","Aug","Routine discharge",1,"South","500 or over","Not-for-profit","55010","","Medicaid",190,"Urgent","Physician",5,1,{"v":1850,"d":"$1,850"}]
[842,7,"Male","White","Single","May","Routine discharge",1,"West","200 to 299","Not-for-profit","81333","7932","HMO",224,"Emergency","Physician",5,1,{"v":1252,"d":"$1,252"}]
[843,7,"Female","White","Single","Nov","Routine discharge",34,"West","200 to 299","Not-for-profit","V581-","2262","Medicaid",408,"Emergency","Physician",5,8,{"v":8196,"d":"$8,196"}]
[844,0,"Female","Black","Single","Dec","Routine discharge",3,"West","300 to 499","Proprietary","V3000","","Medicaid",391,"Newborn","Other",5,5,{"v":4801,"d":"$4,801"}]
[845,52,"Female","White","Divorced","Nov","Routine discharge",1,"West","300 to 499","Proprietary","1820-","6851","Medicare",355,"Elective","Physician",5,2,{"v":1948,"d":"$1,948"}]
[846,72,"Male","White","Married","Jul","Routine discharge",9,"West","6 to 99","Proprietary","2303-","4573","Medicare",148,"Elective","Physician",5,2,{"v":1889,"d":"$1,889"}]
[847,29,"Male","White","Separated","Mar","Routine discharge",2,"West","6 to 99","Proprietary","9690-","9671","Medicaid",449,"Emergency","Physician",5,2,{"v":2284,"d":"$2,284"}]
[848,28,"Female","White","Married","Jul","Routine discharge",7,"West","6 to 99","Proprietary","V270-","7309","HMO",373,"Elective","Physician",5,3,{"v":3078,"d":"$3,078"}]
[849,24,"Female","White","Single","Dec","Routine discharge",2,"West","6 to 99","Proprietary","V270-","7569","Other government",373,"Elective","Physician",5,2,{"v":2331,"d":"$2,331"}]
[850,0,"Male","White","Not stated","Jan","Routine discharge",2,"West","100 to 199","Not-for-profit","V3000","640-","HMO",391,"Newborn","Other",4,3,{"v":2645,"d":"$2,645"}]
[851,0,"Male","Not stated","Not stated","Jun","Routine discharge",2,"West","100 to 199","Not-for-profit","V3000","640-","HMO",391,"Newborn","Other",5,2,{"v":2182,"d":"$2,182"}]
[852,44,"Male","White","Not stated","Jun","Routine discharge",2,"West","100 to 199","Not-for-profit","29181","9462","HMO",521,"Emergency","Physician",5,2,{"v":2305,"d":"$2,305"}]
[853,6,"Female","Not stated","Not stated","Feb","Routine discharge",3,"West","100 to 199","Not-for-profit","38200","","Self pay",70,"Emergency","Emergency room",5,2,{"v":2460,"d":"$2,460"}]
[854,23,"Female","White","Not stated","Dec","Routine discharge",2,"West","100 to 199","Not-for-profit","56400","4513","HMO",182,"Emergency","Emergency room",5,2,{"v":2087,"d":"$2,087"}]
[855,20,"Female","White","Not stated","Feb","Discharged to short-term facility",1,"West","100 to 199","Not-for-profit","64403","","HMO",379,"Urgent","Physician",4,3,{"v":2802,"d":"$2,802"}]
[856,16,"Female","White","Not stated","May","Routine discharge",2,"West","100 to 199","Not-for-profit","64893","","HMO",383,"Urgent","Physician",5,2,{"v":2208,"d":"$2,208"}]
[857,30,"Female","Not stated","Not stated","Nov","Routine discharge",3,"West","100 to 199","Not-for-profit","67133","","HMO",384,"Emergency","Emergency room",5,2,{"v":2371,"d":"$2,371"}]
[858,27,"Female","White","Not stated","Feb","Routine discharge",1,"West","100 to 199","Not-for-profit","V270-","734-","HMO",373,"Urgent","Physician",4,1,{"v":1362,"d":"$1,362"}]
[859,30,"Female","White","Not stated","Feb","Routine discharge",2,"West","100 to 199","Not-for-profit","V270-","7279","Other government",373,"Elective","Physician",4,3,{"v":3067,"d":"$3,067"}]
[860,34,"Female","White","Not stated","May","Routine discharge",5,"West","100 to 199","Not-for-profit","V270-","741-","HMO",371,"Urgent","Physician",5,3,{"v":2752,"d":"$2,752"}]
[861,33,"Female","White","Not stated","May","Routine discharge",3,"West","100 to 199","Not-for-profit","V270-","736-","Other government",373,"Elective","Physician",3,4,{"v":3633,"d":"$3,633"}]
[862,22,"Female","Not stated","Not stated","Dec","Routine discharge",2,"West","100 to 199","Not-for-profit","V270-","7569","HMO",373,"Urgent","Physician",5,2,{"v":1921,"d":"$1,921"}]
[863,0,"Female","White","Not stated","Nov","Routine discharge",10,"West","300 to 499","Government","V3001","9915","HMO",387,"Newborn","Other",4,4,{"v":3891,"d":"$3,891"}]
[864,3,"Female","White","Not stated","Mar","Routine discharge",1,"West","300 to 499","Government","0479-","","HMO",21,"Emergency","Emergency room",3,2,{"v":2247,"d":"$2,247"}]
[865,1,"Female","White","Not stated","Feb","Routine discharge",3,"West","300 to 499","Government","2765-","","Medicaid",298,"Emergency","Emergency room",5,2,{"v":2212,"d":"$2,212"}]
[866,78,"Male","White","Not stated","Jun","Routine discharge",1,"West","300 to 499","Government","41401","","Medicare",132,"Emergency","Emergency room",5,2,{"v":2422,"d":"$2,422"}]
[867,6,"Male","Black","Not stated","Sep","Routine discharge",1,"West","300 to 499","Government","463--","282-","Self pay",58,"Urgent","Emergency room",5,1,{"v":1615,"d":"$1,615"}]
[868,48,"Female","White","Not stated","Mar","Routine discharge",5,"West","300 to 499","Government","5770-","","HMO",204,"Emergency","Emergency room",5,3,{"v":2671,"d":"$2,671"}]
[869,54,"Female","Black","Not stated","Apr","Routine discharge",8,"West","300 to 499","Government","5601-","4522","Medicare",180,"Emergency","Emergency room",5,6,{"v":5075,"d":"$5,075"}]
[870,59,"Female","White","Not stated","Jul","Routine discharge",7,"West","300 to 499","Government","56409","","HMO",182,"Emergency","Emergency room",4,3,{"v":2618,"d":"$2,618"}]
[871,33,"Male","White","Not stated","Oct","Routine discharge",5,"West","300 to 499","Government","72210","8106","Workers Comp",496,"Elective","Physician",4,2,{"v":2496,"d":"$2,496"}]
[872,34,"Female","White","Not stated","Sep","Routine discharge",1,"West","300 to 499","Government","V270-","7569","Other private insurance",373,"Elective","Physician",5,1,{"v":1809,"d":"$1,809"}]
[873,25,"Female","White","Not stated","Oct","Routine discharge",2,"West","300 to 499","Government","V270-","7309","Medicaid",373,"Elective","Physician",5,2,{"v":2422,"d":"$2,422"}]
[874,97,"Female","White","Widowed","Dec","Discharged to long-term facility",4,"South","100 to 199","Not-for-profit","49120","","Medicare",88,"Emergency","Emergency room",3,2,{"v":1932,"d":"$1,932"}]
[875,89,"Female","Not stated","Not stated","May","Routine discharge",11,"Midwest","100 to 199","Not-for-profit","2765-","4523","Medicare",296,"Urgent","Physician",3,4,{"v":3857,"d":"$3,857"}]
[876,85,"Female","Not stated","Not stated","Jan","Routine discharge",6,"Midwest","100 to 199","Not-for-profit","5119-","3491","Medicare",85,"Urgent","Physician",4,2,{"v":2199,"d":"$2,199"}]
[877,30,"Male","Not stated","Not stated","Jul","Routine discharge",9,"Midwest","100 to 199","Not-for-profit","73017","8622","Medicare",217,"Urgent","Physician",3,3,{"v":2610,"d":"$2,610"}]
[878,74,"Female","Not stated","Not stated","Jun","Routine discharge",2,"Midwest","100 to 199","Not-for-profit","86101","","Medicare",145,"Urgent","Emergency room",3,3,{"v":2708,"d":"$2,708"}]
[879,25,"Male","White","Not stated","Apr","Routine discharge",2,"Midwest","200 to 299","Not-for-profit","25011","","Self pay",295,"Not reported","Not reported",5,2,{"v":2380,"d":"$2,380"}]
[880,73,"Male","White","Widowed","Dec","Routine discharge",3,"Midwest","200 to 299","Not-for-profit","4148-","9929","Medicare",132,"Not reported","Not reported",5,1,{"v":1420,"d":"$1,420"}]
[881,70,"Male","Not stated","Not stated","Dec","Routine discharge",4,"Midwest","100 to 199","Not-for-profit","2809-","4513","Medicare",395,"Urgent","Emergency room",3,2,{"v":2005,"d":"$2,005"}]
[882,29,"Female","Not stated","Not stated","May","Routine discharge",1,"Midwest","100 to 199","Not-for-profit","53550","","Medicaid",182,"Urgent","Emergency room",4,3,{"v":3014,"d":"$3,014"}]
[883,68,"Female","Not stated","Not stated","Jun","Discharged to long-term facility",4,"Midwest","100 to 199","Not-for-profit","56089","","Medicare",180,"Elective","Emergency room",5,3,{"v":2808,"d":"$2,808"}]
[884,28,"Male","Not stated","Not stated","Nov","Routine discharge",2,"Midwest","6 to 99","Not-for-profit","30301","","Other private insurance",521,"Emergency","Emergency room",3,3,{"v":2715,"d":"$2,715"}]
[885,73,"Male","Not stated","Not stated","Jun","Discharged to short-term facility",3,"Midwest","6 to 99","Not-for-profit","41091","","Other private insurance",122,"Emergency","Emergency room",5,1,{"v":1180,"d":"$1,180"}]
[886,78,"Female","Not stated","Not stated","Aug","Discharged to long-term facility",4,"Midwest","6 to 99","Not-for-profit","43491","","Other private insurance",14,"Emergency","Emergency room",5,2,{"v":2009,"d":"$2,009"}]
[887,64,"Male","Not stated","Not stated","Sep","Routine discharge",1,"Midwest","6 to 99","Not-for-profit","4359-","","Other private insurance",15,"Emergency","Emergency room",5,2,{"v":2472,"d":"$2,472"}]
[888,44,"Male","Not stated","Not stated","Jan","Routine discharge",5,"Midwest","6 to 99","Not-for-profit","5712-","","Other private insurance",202,"Emergency","Emergency room",5,2,{"v":2256,"d":"$2,256"}]
[889,25,"Female","Not stated","Not stated","May","Routine discharge",1,"Midwest","6 to 99","Not-for-profit","5921-","","Other private insurance",323,"Emergency","Emergency room",5,1,{"v":1418,"d":"$1,418"}]
[890,47,"Male","Not stated","Not stated","Oct","Routine discharge",11,"Midwest","6 to 99","Not-for-profit","5811-","8604","Other private insurance",331,"Emergency","Emergency room",5,4,{"v":3312,"d":"$3,312"}]
[891,54,"Male","Not stated","Not stated","Sep","Discharged to short-term facility",1,"Midwest","6 to 99","Not-for-profit","73315","9346","Other private insurance",239,"Emergency","Emergency room",5,2,{"v":2136,"d":"$2,136"}]
[892,24,"Female","Not stated","Not stated","Aug","Routine discharge",1,"Midwest","6 to 99","Not-for-profit","9651-","","Other private insurance",450,"Emergency","Emergency room",3,2,{"v":1979,"d":"$1,979"}]
[893,19,"Female","Not stated","Not stated","Oct","Routine discharge",2,"Midwest","6 to 99","Not-for-profit","V270-","7359","Other private insurance",373,"Elective","Physician",5,2,{"v":2448,"d":"$2,448"}]
[894,0,"Female","Not stated","Not stated","Aug","Routine discharge",2,"Midwest","6 to 99","Not-for-profit","V3000","","Blue Cross",391,"Newborn","Other",5,2,{"v":2341,"d":"$2,341"}]
[895,77,"Female","Not stated","Not stated","Apr","Routine discharge",5,"Midwest","6 to 99","Not-for-profit","2113-","4542","Medicare",189,"Emergency","Emergency room",5,2,{"v":2142,"d":"$2,142"}]
[896,89,"Female","Not stated","Not stated","Dec","Routine discharge",3,"Midwest","6 to 99","Not-for-profit","73300","","Medicare",244,"Emergency","Emergency room",4,2,{"v":2500,"d":"$2,500"}]
[897,44,"Male","Not stated","Not stated","Jan","Discharged to long-term facility",4,"Midwest","6 to 99","Not-for-profit","80702","9390","Other private insurance",102,"Emergency","Emergency room",2,3,{"v":2985,"d":"$2,985"}]
[898,27,"Female","Not stated","Not stated","Jun","Routine discharge",2,"Midwest","6 to 99","Not-for-profit","V270-","7569","Medicaid",372,"Elective","Physician",3,2,{"v":2575,"d":"$2,575"}]
[899,29,"Female","Not stated","Not stated","Sep","Routine discharge",2,"Midwest","6 to 99","Not-for-profit","V270-","","Blue Cross",373,"Elective","Physician",3,2,{"v":2009,"d":"$2,009"}]
[900,77,"Male","White","Married","Nov","Routine discharge",6,"Midwest","6 to 99","Not-for-profit","2765-","9904","Medicare",296,"Elective","Physician",5,3,{"v":2809,"d":"$2,809"}]
[901,85,"Female","White","Widowed","Jan","Routine discharge",8,"Midwest","6 to 99","Not-for-profit","43491","9904","Medicare",14,"Elective","Physician",5,3,{"v":2848,"d":"$2,848"}]
[902,0,"Male","Black","Single","Apr","Routine discharge",2,"South","100 to 199","Government","V3000","640-","Medicaid",391,"Newborn","Other",3,3,{"v":2621,"d":"$2,621"}]
[903,46,"Male","White","Divorced","Jan","Routine discharge",6,"South","300 to 499","Not-for-profit","29620","","Other private insurance",430,"Urgent","Physician",4,2,{"v":2095,"d":"$2,095"}]
[904,77,"Female","White","Married","Jul","Routine discharge",3,"South","300 to 499","Not-for-profit","72402","0309","Medicare",500,"Elective","Physician",5,2,{"v":1977,"d":"$1,977"}]
[905,21,"Female","Black","Single","Oct","Routine discharge",5,"South","6 to 99","Proprietary","V270-","7271","Medicaid",372,"Urgent","Physician",5,3,{"v":2931,"d":"$2,931"}]
[906,72,"Female","Not stated","Not stated","Dec","Discharged to short-term facility",5,"Northeast","6 to 99","Not-for-profit","29633","","Medicare",430,"Urgent","Physician",5,3,{"v":2995,"d":"$2,995"}]
[907,64,"Female","Not stated","Not stated","May","Discharged to short-term facility",7,"Northeast","6 to 99","Not-for-profit","6826-","8604","Medicare",277,"Urgent","Emergency room",5,2,{"v":1931,"d":"$1,931"}]
[908,74,"Female","White","Not stated","Feb","Routine discharge",18,"Midwest","300 to 499","Not-for-profit","42781","3723","Medicare",124,"Elective","Physician",5,3,{"v":2614,"d":"$2,614"}]
[909,68,"Male","White","Not stated","Aug","Routine discharge",8,"Midwest","300 to 499","Not-for-profit","4019-","3726","Blue Cross",518,"Emergency","Emergency room",5,4,{"v":3202,"d":"$3,202"}]
[910,63,"Female","Black","Not stated","May","Routine discharge",7,"Midwest","300 to 499","Not-for-profit","496--","","Medicare",88,"Emergency","Emergency room",5,3,{"v":2861,"d":"$2,861"}]
[911,74,"Female","White","Not stated","Jul","Alive, disposition not stated",8,"Midwest","300 to 499","Not-for-profit","56981","3893","Medicare",189,"Urgent","Physician",4,3,{"v":2697,"d":"$2,697"}]
[912,89,"Female","Black","Not stated","Oct","Routine discharge",3,"Midwest","300 to 499","Not-for-profit","56409","3995","Medicare",182,"Emergency","Emergency room",5,2,{"v":2562,"d":"$2,562"}]
[913,68,"Male","White","Not stated","Jan","Routine discharge",15,"Midwest","300 to 499","Not-for-profit","99662","8605","Medicare",144,"Urgent","Physician",3,4,{"v":3811,"d":"$3,811"}]
[914,59,"Female","White","Not stated","Dec","Routine discharge",34,"Midwest","300 to 499","Government","29570","9425","Medicare",430,"Emergency","Emergency room",2,9,{"v":10196,"d":"$10,196"}]
[915,40,"Male","White","Not stated","Sep","Routine discharge",3,"Midwest","300 to 499","Government","34620","","Medicaid",24,"Emergency","Emergency room",4,4,{"v":3304,"d":"$3,304"}]
[916,1,"Female","White","Not stated","Dec","Routine discharge",3,"Midwest","300 to 499","Government","3453-","9671","HMO",26,"Emergency","Transfer from hospital",5,2,{"v":2234,"d":"$2,234"}]
[917,60,"Female","Black","Not stated","Mar","Routine discharge",2,"Midwest","300 to 499","Government","41401","","Blue Cross",132,"Emergency","Emergency room",5,2,{"v":1981,"d":"$1,981"}]
[918,52,"Female","Black","Not stated","Mar","Routine discharge",3,"Midwest","300 to 499","Government","41401","3722","Medicare",124,"Emergency","Emergency room",5,2,{"v":1942,"d":"$1,942"}]
[919,1,"Female","Black","Not stated","Mar","Routine discharge",2,"Midwest","300 to 499","Government","5990-","","HMO",322,"Urgent","Transfer from hospital",5,3,{"v":2820,"d":"$2,820"}]
[920,73,"Female","White","Not stated","Jul","Routine discharge",3,"Midwest","300 to 499","Government","5990-","","Medicare",320,"Urgent","Emergency room",4,2,{"v":2274,"d":"$2,274"}]
[921,27,"Female","White","Not stated","Jan","Left AMA",2,"Midwest","300 to 499","Government","86504","415-","Medicaid",486,"Urgent","Emergency room",5,2,{"v":2002,"d":"$2,002"}]
[922,17,"Female","Black","Not stated","Feb","Routine discharge",3,"Midwest","300 to 499","Government","V270-","741-","Medicaid",371,"Urgent","Physician",4,2,{"v":1916,"d":"$1,916"}]
[923,85,"Female","White","Not stated","Dec","Discharged to long-term facility",7,"Midwest","200 to 299","Not-for-profit","2536-","","Medicare",300,"Emergency","Emergency room",4,3,{"v":3027,"d":"$3,027"}]
[924,69,"Female","White","Not stated","Feb","Routine discharge",1,"Midwest","200 to 299","Not-for-profit","3320-","","Medicare",12,"Emergency","Emergency room",4,3,{"v":3056,"d":"$3,056"}]
[925,84,"Male","White","Not stated","Mar","Alive, disposition not stated",9,"Midwest","200 to 299","Not-for-profit","4280-","3794","Medicare",515,"Emergency","Emergency room",4,3,{"v":2952,"d":"$2,952"}]
[926,61,"Female","White","Not stated","Apr","Routine discharge",2,"Midwest","200 to 299","Not-for-profit","41061","3601","Blue Cross",516,"Urgent","Transfer from hospital",5,2,{"v":1982,"d":"$1,982"}]
[927,71,"Male","White","Not stated","May","Routine discharge",1,"Midwest","200 to 299","Not-for-profit","4401-","3950","Medicare",315,"Urgent","Physician",5,1,{"v":1517,"d":"$1,517"}]
[928,78,"Female","White","Not stated","Jun","Routine discharge",1,"Midwest","200 to 299","Not-for-profit","42731","","Medicare",139,"Emergency","Emergency room",5,2,{"v":1997,"d":"$1,997"}]
[929,1,"Female","Black","Not stated","Feb","Routine discharge",3,"Midwest","200 to 299","Not-for-profit","46611","","Medicaid",98,"Emergency","Emergency room",5,2,{"v":2345,"d":"$2,345"}]
[930,11,"Male","Black","Not stated","Oct","Alive, disposition not stated",14,"Midwest","200 to 299","Not-for-profit","76516","640-","Medicaid",387,"Urgent","Physician",5,4,{"v":3612,"d":"$3,612"}]
[931,35,"Male","White","Not stated","Jul","Routine discharge",1,"Midwest","200 to 299","Not-for-profit","85202","2751","Other private insurance",29,"Emergency","Emergency room",3,2,{"v":2468,"d":"$2,468"}]
[932,25,"Male","White","Not stated","Dec","Alive, disposition not stated",11,"Midwest","200 to 299","Not-for-profit","V5789","","Other private insurance",462,"Urgent","Transfer from hospital",5,4,{"v":3468,"d":"$3,468"}]
[933,0,"Female","White","Not stated","Jan","Routine discharge",2,"Midwest","100 to 199","Not-for-profit","V3000","","Other private insurance",391,"Newborn","Other",5,2,{"v":2402,"d":"$2,402"}]
[934,0,"Male","White","Not stated","Sep","Routine discharge",1,"Midwest","100 to 199","Not-for-profit","V3000","","Other private insurance",391,"Newborn","Other",5,3,{"v":2900,"d":"$2,900"}]
[935,82,"Female","White","Not stated","May","Routine discharge",5,"Midwest","100 to 199","Not-for-profit","03842","","Medicare",416,"Emergency","Emergency room",2,3,{"v":2650,"d":"$2,650"}]
[936,19,"Female","White","Not stated","Jun","Routine discharge",2,"Midwest","100 to 199","Not-for-profit","67004","","Medicaid",376,"Emergency","Emergency room",5,2,{"v":1982,"d":"$1,982"}]
[937,79,"Female","White","Not stated","Apr","Alive, disposition not stated",5,"Midwest","100 to 199","Not-for-profit","71509","","Medicare",244,"Emergency","Emergency room",3,3,{"v":2728,"d":"$2,728"}]
[938,25,"Female","White","Not stated","May","Routine discharge",4,"Midwest","100 to 199","Not-for-profit","V270-","741-","Medicaid",371,"Urgent","Physician",3,2,{"v":2467,"d":"$2,467"}]
[939,49,"Female","White","Not stated","Jan","Routine discharge",6,"Midwest","200 to 299","Proprietary","49121","","Medicare",88,"Urgent","Emergency room",3,4,{"v":3188,"d":"$3,188"}]
[940,60,"Female","White","Not stated","Apr","Discharged to long-term facility",4,"Midwest","200 to 299","Proprietary","71536","8154","Medicare",471,"Emergency","Physician",2,3,{"v":2887,"d":"$2,887"}]
[941,79,"Male","White","Not stated","Sep","Routine discharge",4,"Midwest","200 to 299","Proprietary","V5789","","Medicare",462,"Elective","Physician",2,2,{"v":1932,"d":"$1,932"}]
[942,39,"Female","Other","Not stated","Dec","Routine discharge",3,"Northeast","200 to 299","Not-for-profit","1830-","684-","Other private insurance",357,"Elective","Physician",5,2,{"v":2118,"d":"$2,118"}]
[943,51,"Male","White","Not stated","Jun","Routine discharge",5,"Northeast","200 to 299","Not-for-profit","56211","8801","Other private insurance",183,"Emergency","Emergency room",5,3,{"v":3002,"d":"$3,002"}]
[944,65,"Female","White","Not stated","Jul","Routine discharge",5,"Northeast","300 to 499","Government","1983-","0159","Medicare",1,"Emergency","Emergency room",4,3,{"v":3094,"d":"$3,094"}]
[945,58,"Female","White","Not stated","Apr","Routine discharge",1,"Northeast","300 to 499","Government","4478-","3953","Blue Cross",479,"Elective","Physician",5,3,{"v":2889,"d":"$2,889"}]
[946,41,"Female","Black","Not stated","Oct","Routine discharge",1,"Northeast","300 to 499","Government","4254-","8954","Medicaid",144,"Emergency","Emergency room",4,3,{"v":2660,"d":"$2,660"}]
[947,52,"Male","Black","Not stated","Dec","Routine discharge",5,"Northeast","300 to 499","Government","41401","3615","Blue Cross",109,"Elective","Transfer from hospital",4,2,{"v":2395,"d":"$2,395"}]
[948,77,"Female","White","Not stated","Sep","Routine discharge",2,"Northeast","300 to 499","Government","5609-","8801","Medicare",180,"Emergency","Emergency room",5,2,{"v":2089,"d":"$2,089"}]
[949,81,"Female","White","Not stated","Aug","Discharged to long-term facility",7,"Northeast","300 to 499","Government","72271","8103","Medicare",520,"Elective","Physician",3,3,{"v":2814,"d":"$2,814"}]
[950,43,"Male","White","Not stated","Apr","Routine discharge",3,"Northeast","300 to 499","Government","82300","7936","Workers Comp",219,"Emergency","Emergency room",3,2,{"v":2246,"d":"$2,246"}]
[951,77,"Male","Not stated","Not stated","Jul","Routine discharge",2,"Midwest","500 or over","Not-for-profit","41401","3722","Blue Cross",124,"Not reported","Not reported",3,2,{"v":1993,"d":"$1,993"}]
[952,50,"Female","Not stated","Not stated","Apr","Routine discharge",2,"Midwest","500 or over","Not-for-profit","6213-","6859","Blue Cross",359,"Not reported","Not reported",2,2,{"v":2207,"d":"$2,207"}]
[953,3,"Female","Not stated","Not stated","Jan","Alive, disposition not stated",8,"Midwest","500 or over","Not-for-profit","75989","4292","Medicaid",389,"Not reported","Not reported",3,3,{"v":2839,"d":"$2,839"}]
[954,12,"Male","Not stated","Not stated","Sep","Routine discharge",1,"Midwest","500 or over","Not-for-profit","95901","","Other private insurance",446,"Not reported","Not reported",5,1,{"v":1787,"d":"$1,787"}]
[955,21,"Female","Not stated","Not stated","Feb","Routine discharge",3,"Midwest","500 or over","Not-for-profit","V279-","741-","Other private insurance",371,"Not reported","Not reported",5,4,{"v":3574,"d":"$3,574"}]
[956,18,"Female","Not stated","Not stated","Apr","Routine discharge",2,"Midwest","500 or over","Not-for-profit","V279-","7359","Medicaid",373,"Not reported","Not reported",5,2,{"v":2226,"d":"$2,226"}]
[957,87,"Female","Not stated","Not stated","Jul","Routine discharge",22,"Midwest","500 or over","Not-for-profit","V571-","","Medicare",462,"Not reported","Not reported",4,5,{"v":4457,"d":"$4,457"}]
[958,73,"Male","Not stated","Not stated","Aug","Routine discharge",8,"Midwest","500 or over","Not-for-profit","V571-","","Other private insurance",462,"Not reported","Not reported",5,2,{"v":2465,"d":"$2,465"}]
[959,73,"Female","White","Single","Dec","Routine discharge",3,"South","6 to 99","Not-for-profit","42731","","Not stated",139,"Not reported","Not reported",4,2,{"v":2502,"d":"$2,502"}]
[960,38,"Female","White","Married","Nov","Routine discharge",2,"Northeast","100 to 199","Not-for-profit","6170-","684-","HMO",359,"Not reported","Not reported",3,3,{"v":2918,"d":"$2,918"}]
[961,55,"Female","White","Married","Feb","Routine discharge",1,"Northeast","100 to 199","Not-for-profit","7224-","8102","HMO",520,"Not reported","Not reported",2,2,{"v":2071,"d":"$2,071"}]
[962,21,"Female","White","Single","May","Alive, disposition not stated",2,"Northeast","6 to 99","Not-for-profit","V270-","7359","Medicaid",373,"Elective","Physician",5,2,{"v":2346,"d":"$2,346"}]
[963,30,"Female","White","Married","Jun","Routine discharge",2,"South","200 to 299","Government","2564-","684-","Other private insurance",358,"Elective","Physician",5,3,{"v":2588,"d":"$2,588"}]
[964,32,"Male","White","Married","Jul","Routine discharge",1,"South","6 to 99","Not-for-profit","9599-","","Self pay",445,"Not reported","Not reported",3,2,{"v":2165,"d":"$2,165"}]
[965,0,"Male","White","Single","Aug","Routine discharge",3,"South","200 to 299","Not-for-profit","V3001","640-","HMO",391,"Newborn","Other",5,2,{"v":2157,"d":"$2,157"}]
[966,21,"Female","Not stated","Single","May","Routine discharge",5,"South","500 or over","Not-for-profit","3490-","0395","Medicaid",25,"Not reported","Emergency room",5,3,{"v":2940,"d":"$2,940"}]
[967,0,"Male","White","Single","Oct","Routine discharge",2,"South","200 to 299","Proprietary","V3001","","Self pay",391,"Newborn","Other",4,2,{"v":2328,"d":"$2,328"}]
[968,55,"Male","White","Married","Sep","Routine discharge",8,"South","200 to 299","Proprietary","1541-","485-","Other private insurance",147,"Elective","Not reported",5,4,{"v":3608,"d":"$3,608"}]
[969,10,"Male","White","Single","Mar","Routine discharge",3,"South","200 to 299","Proprietary","82101","","Medicaid",235,"Emergency","Emergency room",3,2,{"v":2108,"d":"$2,108"}]
[970,50,"Male","Black","Single","Dec","Routine discharge",5,"South","500 or over","Government","042--","3893","Blue Cross",489,"Emergency","Emergency room",5,2,{"v":2320,"d":"$2,320"}]
[971,35,"Female","Not stated","Married","Feb","Routine discharge",3,"West","6 to 99","Not-for-profit","V270-","741-","Medicaid",371,"Urgent","Physician",5,4,{"v":3330,"d":"$3,330"}]
[972,76,"Male","Not stated","Not stated","May","Discharged to long-term facility",3,"Midwest","6 to 99","Not-for-profit","486--","","Medicare",89,"Emergency","Emergency room",3,4,{"v":3198,"d":"$3,198"}]
[973,0,"Male","White","Single","Dec","Routine discharge",3,"South","300 to 499","Not-for-profit","V3000","640-","Other private insurance",391,"Newborn","Other",5,2,{"v":2051,"d":"$2,051"}]
[974,29,"Male","White","Single","Nov","Routine discharge",3,"South","300 to 499","Not-for-profit","29181","","Blue Cross",523,"Elective","Clinic",5,2,{"v":2465,"d":"$2,465"}]
[975,62,"Male","White","Married","Apr","Routine discharge",2,"South","300 to 499","Not-for-profit","41401","3722","Other private insurance",125,"Elective","Physician",5,2,{"v":2351,"d":"$2,351"}]
[976,69,"Male","White","Married","Jul","Routine discharge",4,"South","300 to 499","Not-for-profit","41401","3612","Medicare",109,"Elective","Physician",5,3,{"v":2752,"d":"$2,752"}]
[977,72,"Male","White","Divorced","Nov","Discharged to long-term facility",1,"South","100 to 199","Proprietary","7070-","863-","Medicare",264,"Elective","Physician",5,1,{"v":1492,"d":"$1,492"}]
[978,85,"Male","White","Widowed","Oct","Dead",31,"South","100 to 199","Proprietary","9463-","8666","Medicare",506,"Emergency","Physician",4,9,{"v":10161,"d":"$10,161"}]
[979,32,"Female","White","Not stated","May","Routine discharge",1,"South","300 to 499","Government","1809-","9227","HMO",363,"Not reported","Not reported",3,3,{"v":2795,"d":"$2,795"}]
[980,48,"Male","Black","Not stated","May","Alive, disposition not stated",6,"South","300 to 499","Government","43491","8703","Blue Cross",14,"Not reported","Not reported",4,3,{"v":2834,"d":"$2,834"}]
[981,80,"Male","Black","Not stated","Oct","Alive, disposition not stated",6,"South","300 to 499","Government","44024","8415","Medicare",113,"Not reported","Not reported",2,4,{"v":3607,"d":"$3,607"}]
[982,25,"Male","Black","Not stated","Feb","Routine discharge",5,"South","300 to 499","Government","514--","","Medicaid",87,"Not reported","Not reported",2,3,{"v":2975,"d":"$2,975"}]
[983,59,"Male","White","Not stated","Apr","Alive, disposition not stated",3,"South","300 to 499","Government","5789-","4523","Medicare",174,"Not reported","Not reported",4,2,{"v":1995,"d":"$1,995"}]
[984,8,"Male","White","Not stated","Mar","Routine discharge",5,"South","300 to 499","Government","80122","8703","Other private insurance",30,"Not reported","Not reported",5,3,{"v":3044,"d":"$3,044"}]
[985,21,"Female","White","Not stated","Aug","Routine discharge",4,"South","300 to 499","Government","V270-","741-","Other",371,"Not reported","Not reported",5,2,{"v":1910,"d":"$1,910"}]
[986,19,"Female","Black","Not stated","Nov","Routine discharge",3,"South","300 to 499","Government","V270-","7359","Medicaid",373,"Not reported","Not reported",5,4,{"v":3501,"d":"$3,501"}]
[987,30,"Female","Black","Not stated","Dec","Routine discharge",10,"South","300 to 499","Government","V553-","4652","HMO",152,"Not reported","Not reported",5,4,{"v":3266,"d":"$3,266"}]
[988,58,"Female","White","Separated","Dec","Routine discharge",2,"South","100 to 199","Proprietary","00845","","HMO",182,"Urgent","Emergency room",5,3,{"v":2997,"d":"$2,997"}]
[989,77,"Male","White","Widowed","Oct","Routine discharge",3,"South","100 to 199","Proprietary","4359-","","Medicare",15,"Elective","Physician",2,2,{"v":2085,"d":"$2,085"}]
[990,67,"Female","White","Single","Aug","Routine discharge",2,"South","100 to 199","Proprietary","49121","","Medicare",88,"Elective","Physician",5,2,{"v":2240,"d":"$2,240"}]
[991,77,"Male","White","Single","Oct","Discharged to short-term facility",4,"South","100 to 199","Proprietary","486--","","Medicare",89,"Urgent","Emergency room",3,3,{"v":2979,"d":"$2,979"}]
[992,33,"Male","Black","Single","Mar","Routine discharge",14,"South","6 to 99","Proprietary","30390","9467","Medicare",522,"Elective","Clinic",5,3,{"v":3073,"d":"$3,073"}]
[993,14,"Female","White","Single","Sep","Routine discharge",11,"South","6 to 99","Proprietary","30113","8952","Medicaid",428,"Elective","Clinic",5,3,{"v":2981,"d":"$2,981"}]
[994,51,"Male","White","Married","Sep","Routine discharge",11,"South","6 to 99","Proprietary","30391","9463","Medicare",521,"Not reported","Other",5,2,{"v":2042,"d":"$2,042"}]
[995,32,"Female","White","Divorced","Oct","Routine discharge",1,"South","6 to 99","Proprietary","30490","9467","HMO",522,"Not reported","Physician",5,3,{"v":2742,"d":"$2,742"}]
[996,81,"Female","White","Not stated","Nov","Routine discharge",6,"South","100 to 199","Proprietary","2967-","","Other private insurance",430,"Not reported","Not reported",2,2,{"v":2367,"d":"$2,367"}]
[997,10,"Female","White","Not stated","Jan","Routine discharge",2,"South","200 to 299","Not-for-profit","46611","","Medicaid",98,"Not reported","Not reported",5,2,{"v":2563,"d":"$2,563"}]
[998,19,"Male","White","Not stated","Mar","Routine discharge",23,"South","200 to 299","Not-for-profit","46611","0331","Medicaid",98,"Not reported","Not reported",3,3,{"v":2751,"d":"$2,751"}]
[999,1,"Male","Other","Not stated","Jan","Routine discharge",10,"South","200 to 299","Not-for-profit","7701-","3893","Medicaid",389,"Not reported","Not reported",5,2,{"v":2207,"d":"$2,207"}]
[1000,0,"Male","White","Not stated","May","Routine discharge",4,"West","100 to 199","Not-for-profit","V3001","640-","HMO",391,"Newborn","Other",5,2,{"v":2002,"d":"$2,002"}]

{"sheet":"Hypothesis 1","index":2,"n_rows":1001,"n_cols":17,"rows_kept":1001}
["Patient ID","Gender","Discharge status"]
[1,"Male","Routine discharge"]
[2,"Female","Routine discharge"]
[3,"Male","Discharged to short-term facility"]
[4,"Female","Discharged to short-term facility"]
[5,"Male","Routine discharge"]
[6,"Female","Routine discharge"]
[7,"Female","Routine discharge"]
[8,"Male","Routine discharge"]
[9,"Female","Routine discharge"]
[10,"Female","Routine discharge"]
[11,"Male","Routine discharge"]
[12,"Male","Routine discharge"]
[13,"Female","Routine discharge"]
[14,"Male","Routine discharge"]
[15,"Male","Routine discharge"]
[16,"Male","Alive, disposition not stated"]
[17,"Male","Routine discharge"]
[18,"Female","Routine discharge"]
[19,"Male","Routine discharge"]
[20,"Male","Routine discharge"]
[21,"Male","Routine discharge"]
[22,"Male","Routine discharge",{"$nulls":4},"Count of Patient ID","Column Labels"]
[23,"Male","Routine discharge",{"$nulls":4},"Row Labels","Alive, disposition not stated","Dead","Discharged to long-term facility","Discharged to short-term facility","Left AMA","Not reported","Routine discharge","(blank)","Grand Total"]
[24,"Female","Routine discharge",{"$nulls":4},"Female",31,14,49,13,3,1,483,null,594]
[25,"Female","Routine discharge",{"$nulls":4},"Male",25,15,17,17,3,1,328,null,406]
[26,"Female","Routine discharge",{"$nulls":4},"(blank)"]
[27,"Male","Routine discharge",{"$nulls":4},"Grand Total",56,29,66,30,6,2,811,null,1000]
[28,"Female","Routine discharge"]
[29,"Female","Routine discharge"]
[30,"Male","Routine discharge",{"$nulls":4},"Row Labels","Alive, disposition not stated","Dead","Discharged to long-term facility","Discharged to short-term facility","Left AMA","Not reported","Routine discharge","(blank)","Grand Total"]
[31,"Male","Routine discharge",{"$nulls":4},"Female",31,14,49,13,3,1,483,null,594]
[32,"Female","Routine discharge",{"$nulls":4},"Male",25,15,17,17,3,1,328,null,406]
[33,"Male","Routine discharge",{"$nulls":4},"(blank)"]
[34,"Female","Routine discharge",{"$nulls":4},"Grand Total",56,29,66,30,6,2,811,null,1000]
[35,"Female","Routine discharge"]
[36,"Female","Routine discharge"]
[37,"Female","Routine discharge",{"$nulls":5},{"$f":"$Q32*I$35/$Q$35","v":33.264},{"$f":"$Q32*J$35/$Q$35","v":17.226},{"$f":"$Q32*K$35/$Q$35","v":39.204},17.82,3.564,1.188,481.734]
[38,"Female","Discharged to long-term facility",{"$nulls":5},{"$f":"$Q33*I$35/$Q$35","v":22.736},11.774,26.796,12.18,2.436,0.812,329.266]
[39,"Male","Routine discharge"]
[40,"Male","Routine discharge"]
[41,"Male","Routine discharge"]
[42,"Female","Alive, disposition not stated"]
[43,"Female","Routine discharge"]
[44,"Female","Dead"]
[45,"Female","Discharged to short-term facility",{"$nulls":5},{"$f":"_xlfn.CHISQ.TEST(I32:O33,I38:O39)","v":0.07652934237831252}]
[46,"Female","Routine discharge",{"$nulls":5},"Failed to reject null hypothesis"]
[47,"Female","Dead"]
[48,"Female","Discharged to long-term facility"]
[49,"Female","Routine discharge",{"$nulls":4},"H0:"]
[50,"Female","Routine discharge",{"$nulls":4},"H1:"]
[51,"Male","Alive, disposition not stated"]
[52,"Female","Routine discharge"]
[53,"Female","Routine discharge"]
[54,"Male","Routine discharge"]
[55,"Female","Routine discharge"]
[56,"Male","Discharged to short-term facility"]
[57,"Female","Left AMA"]
[58,"Female","Routine discharge"]
[59,"Male","Routine discharge"]
[60,"Female","Routine discharge"]
[61,"Male","Discharged to long-term facility"]
[62,"Male","Discharged to short-term facility"]
[63,"Male","Routine discharge"]
[64,"Female","Discharged to long-term facility"]
[65,"Male","Routine discharge"]
[66,"Male","Alive, disposition not stated"]
[67,"Female","Routine discharge"]
[68,"Female","Routine discharge"]
[69,"Female","Routine discharge"]
[70,"Female","Routine discharge"]
[71,"Male","Routine discharge"]
[72,"Female","Discharged to long-term facility"]
[73,"Female","Routine discharge"]
[74,"Male","Discharged to long-term facility"]
[75,"Female","Routine discharge"]
[76,"Female","Routine discharge"]
[77,"Male","Routine discharge"]
[78,"Female","Routine discharge"]
[79,"Male","Routine discharge"]
[80,"Male","Discharged to long-term facility"]
[81,"Male","Routine discharge"]
[82,"Female","Routine discharge"]
[83,"Female","Discharged to long-term facility"]
[84,"Female","Routine discharge"]
[85,"Female","Routine discharge"]
[86,"Male","Routine discharge"]
[87,"Female","Routine discharge"]
[88,"Male","Routine discharge"]
[89,"Female","Discharged to long-term facility"]
[90,"Male","Left AMA"]
[91,"Female","Routine discharge"]
[92,"Female","Routine discharge"]
[93,"Male","Routine discharge"]
[94,"Female","Alive, disposition not stated"]
[95,"Male","Routine discharge"]
[96,"Male","Alive, disposition not stated"]
[97,"Female","Routine discharge"]
[98,"Female","Dead"]
[99,"Male","Discharged to short-term facility"]
[100,"Female","Routine discharge"]
[101,"Female","Alive, disposition not stated"]
[102,"Male","Routine discharge"]
[103,"Female","Routine discharge"]
[104,"Female","Routine discharge"]
[105,"Male","Routine discharge"]
[106,"Female","Alive, disposition not stated"]
[107,"Male","Alive, disposition not stated"]
[108,"Female","Routine discharge"]
[109,"Female","Routine discharge"]
[110,"Female","Dead"]
[111,"Male","Routine discharge"]
[112,"Female","Routine discharge"]
[113,"Male","Routine discharge"]
[114,"Female","Routine discharge"]
[115,"Male","Routine discharge"]
[116,"Male","Routine discharge"]
[117,"Female","Routine discharge"]
[118,"Female","Routine discharge"]
[119,"Female","Routine discharge"]
[120,"Female","Routine discharge"]
[121,"Female","Routine discharge"]
[122,"Female","Routine discharge"]
[123,"Female","Routine discharge"]
[124,"Male","Discharged to long-term facility"]
[125,"Female","Routine discharge"]
[126,"Female","Routine discharge"]
[127,"Female","Routine discharge"]
[128,"Female","Routine discharge"]
[129,"Male","Routine discharge"]
[130,"Male","Routine discharge"]
[131,"Female","Discharged to long-term facility"]
[132,"Male","Routine discharge"]
[133,"Male","Routine discharge"]
[134,"Male","Routine discharge"]
[135,"Female","Routine discharge"]
[136,"Female","Routine discharge"]
[137,"Male","Routine discharge"]
[138,"Female","Routine discharge"]
[139,"Female","Routine discharge"]
[140,"Male","Routine discharge"]
[141,"Male","Routine discharge"]
[142,"Female","Routine discharge"]
[143,"Female","Discharged to long-term facility"]
[144,"Female","Discharged to long-term facility"]
[145,"Male","Routine discharge"]
[146,"Male","Alive, disposition not stated"]
[147,"Male","Routine discharge"]
[148,"Female","Routine discharge"]
[149,"Female","Routine discharge"]
[150,"Female","Routine discharge"]
[151,"Male","Routine discharge"]
[152,"Female","Routine discharge"]
[153,"Male","Routine discharge"]
[154,"Male","Routine discharge"]
[155,"Female","Routine discharge"]
[156,"Male","Routine discharge"]
[157,"Female","Routine discharge"]
[158,"Female","Routine discharge"]
[159,"Female","Routine discharge"]
[160,"Female","Routine discharge"]
[161,"Male","Routine discharge"]
[162,"Female","Routine discharge"]
[163,"Male","Routine discharge"]
[164,"Female","Routine discharge"]
[165,"Female","Routine discharge"]
[166,"Female","Routine discharge"]
[167,"Male","Alive, disposition not stated"]
[168,"Female","Routine discharge"]
[169,"Male","Routine discharge"]
[170,"Female","Routine discharge"]
[171,"Male","Routine discharge"]
[172,"Female","Routine discharge"]
[173,"Female","Discharged to long-term facility"]
[174,"Male","Routine discharge"]
[175,"Male","Routine discharge"]
[176,"Male","Routine discharge"]
[177,"Female","Routine discharge"]
[178,"Female","Routine discharge"]
[179,"Male","Routine discharge"]
[180,"Female","Discharged to long-term facility"]
[181,"Male","Routine discharge"]
[182,"Female","Routine discharge"]
[183,"Male","Routine discharge"]
[184,"Female","Routine discharge"]
[185,"Female","Routine discharge"]
[186,"Female","Routine discharge"]
[187,"Female","Dead"]
[188,"Male","Routine discharge"]
[189,"Male","Routine discharge"]
[190,"Female","Routine discharge"]
[191,"Female","Discharged to long-term facility"]
[192,"Male","Routine discharge"]
[193,"Male","Routine discharge"]
[194,"Female","Routine discharge"]
[195,"Male","Routine discharge"]
[196,"Female","Discharged to long-term facility"]
[197,"Male","Routine discharge"]
[198,"Female","Routine discharge"]
[199,"Female","Routine discharge"]
[200,"Female","Routine discharge"]
[201,"Male","Not reported"]
[202,"Female","Routine discharge"]
[203,"Male","Routine discharge"]
[204,"Female","Routine discharge"]
[205,"Male","Dead"]
[206,"Female","Routine discharge"]
[207,"Female","Routine discharge"]
[208,"Female","Routine discharge"]
[209,"Male","Routine discharge"]
[210,"Male","Routine discharge"]
[211,"Female","Routine discharge"]
[212,"Female","Routine discharge"]
[213,"Male","Routine discharge"]
[214,"Female","Discharged to short-term facility"]
[215,"Female","Routine discharge"]
[216,"Female","Routine discharge"]
[217,"Female","Routine discharge"]
[218,"Female","Routine discharge"]
[219,"Male","Routine discharge"]
[220,"Female","Routine discharge"]
[221,"Female","Discharged to long-term facility"]
[222,"Female","Routine discharge"]
[223,"Female","Routine discharge"]
[224,"Male","Routine discharge"]
[225,"Male","Routine discharge"]
[226,"Female","Routine discharge"]
[227,"Male","Routine discharge"]
[228,"Female","Routine discharge"]
[229,"Female","Routine discharge"]
[230,"Female","Discharged to long-term facility"]
[231,"Female","Alive, disposition not stated"]
[232,"Female","Discharged to long-term facility"]
[233,"Female","Routine discharge"]
[234,"Female","Routine discharge"]
[235,"Male","Routine discharge"]
[236,"Male","Routine discharge"]
[237,"Female","Routine discharge"]
[238,"Male","Routine discharge"]
[239,"Female","Routine discharge"]
[240,"Male","Alive, disposition not stated"]
[241,"Female","Routine discharge"]
[242,"Male","Discharged to long-term facility"]
[243,"Female","Routine discharge"]
[244,"Female","Alive, disposition not stated"]
[245,"Female","Routine discharge"]
[246,"Male","Dead"]
[247,"Male","Routine discharge"]
[248,"Female","Routine discharge"]
[249,"Male","Routine discharge"]
[250,"Female","Routine discharge"]
[251,"Male","Routine discharge"]
[252,"Female","Routine discharge"]
[253,"Female","Routine discharge"]
[254,"Female","Routine discharge"]
[255,"Female","Routine discharge"]
[256,"Male","Routine discharge"]
[257,"Female","Discharged to short-term facility"]
[258,"Female","Alive, disposition not stated"]
[259,"Female","Discharged to long-term facility"]
[260,"Male","Routine discharge"]
[261,"Male","Routine discharge"]
[262,"Female","Routine discharge"]
[263,"Male","Routine discharge"]
[264,"Female","Routine discharge"]
[265,"Male","Discharged to long-term facility"]
[266,"Male","Routine discharge"]
[267,"Female","Routine discharge"]
[268,"Female","Routine discharge"]
[269,"Male","Routine discharge"]
[270,"Male","Routine discharge"]
[271,"Male","Routine discharge"]
[272,"Male","Routine discharge"]
[273,"Female","Routine discharge"]
[274,"Female","Routine discharge"]
[275,"Female","Routine discharge"]
[276,"Male","Routine discharge"]
[277,"Male","Discharged to short-term facility"]
[278,"Male","Discharged to short-term facility"]
[279,"Female","Routine discharge"]
[280,"Female","Routine discharge"]
[281,"Male","Routine discharge"]
[282,"Female","Routine discharge"]
[283,"Female","Routine discharge"]
[284,"Female","Routine discharge"]
[285,"Female","Routine discharge"]
[286,"Female","Routine discharge"]
[287,"Female","Discharged to long-term facility"]
[288,"Female","Routine discharge"]
[289,"Male","Routine discharge"]
[290,"Female","Routine discharge"]
[291,"Female","Routine discharge"]
[292,"Female","Routine discharge"]
[293,"Female","Routine discharge"]
[294,"Male","Dead"]
[295,"Female","Discharged to long-term facility"]
[296,"Female","Routine discharge"]
[297,"Female","Routine discharge"]
[298,"Male","Dead"]
[299,"Female","Discharged to long-term facility"]
[300,"Female","Routine discharge"]
[301,"Male","Routine discharge"]
[302,"Female","Routine discharge"]
[303,"Male","Discharged to long-term facility"]
[304,"Male","Discharged to short-term facility"]
[305,"Male","Routine discharge"]
[306,"Male","Routine discharge"]
[307,"Male","Routine discharge"]
[308,"Female","Routine discharge"]
[309,"Male","Alive, disposition not stated"]
[310,"Female","Alive, disposition not stated"]
[311,"Male","Routine discharge"]
[312,"Female","Routine discharge"]
[313,"Male","Routine discharge"]
[314,"Male","Discharged to short-term facility"]
[315,"Female","Routine discharge"]
[316,"Female","Routine discharge"]
[317,"Female","Routine discharge"]
[318,"Male","Routine discharge"]
[319,"Male","Dead"]
[320,"Female","Discharged to long-term facility"]
[321,"Female","Alive, disposition not stated"]
[322,"Male","Routine discharge"]
[323,"Female","Routine discharge"]
[324,"Male","Routine discharge"]
[325,"Male","Alive, disposition not stated"]
[326,"Female","Routine discharge"]
[327,"Male","Routine discharge"]
[328,"Female","Discharged to short-term facility"]
[329,"Male","Discharged to short-term facility"]
[330,"Female","Routine discharge"]
[331,"Female","Routine discharge"]
[332,"Female","Routine discharge"]
[333,"Female","Routine discharge"]
[334,"Male","Routine discharge"]
[335,"Female","Routine discharge"]
[336,"Female","Dead"]
[337,"Female","Routine discharge"]
[338,"Male","Routine discharge"]
[339,"Female","Routine discharge"]
[340,"Female","Routine discharge"]
[341,"Female","Discharged to short-term facility"]
[342,"Female","Routine discharge"]
[343,"Female","Routine discharge"]
[344,"Female","Routine discharge"]
[345,"Male","Routine discharge"]
[346,"Male","Routine discharge"]
[347,"Male","Routine discharge"]
[348,"Male","Discharged to short-term facility"]
[349,"Female","Routine discharge"]
[350,"Female","Routine discharge"]
[351,"Male","Routine discharge"]
[352,"Male","Alive, disposition not stated"]
[353,"Female","Routine discharge"]
[354,"Female","Routine discharge"]
[355,"Female","Routine discharge"]
[356,"Female","Routine discharge"]
[357,"Male","Routine discharge"]
[358,"Male","Alive, disposition not stated"]
[359,"Female","Routine discharge"]
[360,"Male","Routine discharge"]
[361,"Male","Routine discharge"]
[362,"Female","Routine discharge"]
[363,"Male","Routine discharge"]
[364,"Male","Routine discharge"]
[365,"Female","Routine discharge"]
[366,"Female","Discharged to long-term facility"]
[367,"Male","Discharged to short-term facility"]
[368,"Female","Routine discharge"]
[369,"Female","Routine discharge"]
[370,"Female","Routine discharge"]
[371,"Female","Routine discharge"]
[372,"Female","Alive, disposition not stated"]
[373,"Female","Routine discharge"]
[374,"Male","Discharged to long-term facility"]
[375,"Male","Discharged to long-term facility"]
[376,"Female","Routine discharge"]
[377,"Female","Routine discharge"]
[378,"Female","Routine discharge"]
[379,"Female","Routine discharge"]
[380,"Female","Routine discharge"]
[381,"Female","Routine discharge"]
[382,"Female","Routine discharge"]
[383,"Female","Routine discharge"]
[384,"Female","Routine discharge"]
[385,"Male","Routine discharge"]
[386,"Female","Routine discharge"]
[387,"Female","Routine discharge"]
[388,"Male","Routine discharge"]
[389,"Female","Routine discharge"]
[390,"Female","Routine discharge"]
[391,"Male","Routine discharge"]
[392,"Male","Routine discharge"]
[393,"Female","Routine discharge"]
[394,"Male","Routine discharge"]
[395,"Male","Routine discharge"]
[396,"Female","Routine discharge"]
[397,"Male","Routine discharge"]
[398,"Female","Routine discharge"]
[399,"Female","Routine discharge"]
[400,"Male","Dead"]
[401,"Male","Routine discharge"]
[402,"Female","Routine discharge"]
[403,"Female","Routine discharge"]
[404,"Female","Routine discharge"]
[405,"Female","Alive, disposition not stated"]
[406,"Female","Alive, disposition not stated"]
[407,"Female","Routine discharge"]
[408,"Female","Routine discharge"]
[409,"Male","Routine discharge"]
[410,"Female","Routine discharge"]
[411,"Female","Routine discharge"]
[412,"Male","Routine discharge"]
[413,"Female","Discharged to short-term facility"]
[414,"Female","Routine discharge"]
[415,"Male","Routine discharge"]
[416,"Female","Routine discharge"]
[417,"Male","Left AMA"]
[418,"Female","Routine discharge"]
[419,"Male","Routine discharge"]
[420,"Female","Discharged to long-term facility"]
[421,"Female","Routine discharge"]
[422,"Male","Routine discharge"]
[423,"Male","Routine discharge"]
[424,"Male","Routine discharge"]
[425,"Female","Routine discharge"]
[426,"Female","Routine discharge"]
[427,"Male","Routine discharge"]
[428,"Female","Routine discharge"]
[429,"Male","Routine discharge"]
[430,"Male","Routine discharge"]
[431,"Male","Alive, disposition not stated"]
[432,"Female","Routine discharge"]
[433,"Male","Routine discharge"]
[434,"Female","Routine discharge"]
[435,"Female","Routine discharge"]
[436,"Female","Routine discharge"]
[437,"Male","Routine discharge"]
[438,"Female","Routine discharge"]
[439,"Female","Discharged to short-term facility"]
[440,"Female","Routine discharge"]
[441,"Female","Routine discharge"]
[442,"Female","Routine discharge"]
[443,"Female","Routine discharge"]
[444,"Female","Routine discharge"]
[445,"Female","Routine discharge"]
[446,"Female","Routine discharge"]
[447,"Female","Routine discharge"]
[448,"Female","Routine discharge"]
[449,"Male","Routine discharge"]
[450,"Male","Routine discharge"]
[451,"Male","Routine discharge"]
[452,"Female","Routine discharge"]
[453,"Female","Routine discharge"]
[454,"Male","Routine discharge"]
[455,"Male","Routine discharge"]
[456,"Female","Routine discharge"]
[457,"Male","Routine discharge"]
[458,"Male","Routine discharge"]
[459,"Female","Routine discharge"]
[460,"Female","Routine discharge"]
[461,"Male","Routine discharge"]
[462,"Male","Routine discharge"]
[463,"Male","Routine discharge"]
[464,"Female","Routine discharge"]
[465,"Male","Routine discharge"]
[466,"Male","Routine discharge"]
[467,"Male","Discharged to long-term facility"]
[468,"Female","Routine discharge"]
[469,"Female","Routine discharge"]
[470,"Female","Routine discharge"]
[471,"Female","Routine discharge"]
[472,"Female","Routine discharge"]
[473,"Female","Routine discharge"]
[474,"Male","Routine discharge"]
[475,"Female","Routine discharge"]
[476,"Female","Routine discharge"]
[477,"Female","Alive, disposition not stated"]
[478,"Male","Routine discharge"]
[479,"Female","Routine discharge"]
[480,"Male","Routine discharge"]
[481,"Female","Routine discharge"]
[482,"Female","Routine discharge"]
[483,"Female","Routine discharge"]
[484,"Female","Routine discharge"]
[485,"Male","Routine discharge"]
[486,"Male","Routine discharge"]
[487,"Male","Routine discharge"]
[488,"Male","Discharged to short-term facility"]
[489,"Male","Routine discharge"]
[490,"Male","Routine discharge"]
[491,"Male","Routine discharge"]
[492,"Female","Routine discharge"]
[493,"Female","Routine discharge"]
[494,"Female","Routine discharge"]
[495,"Female","Routine discharge"]
[496,"Male","Routine discharge"]
[497,"Male","Routine discharge"]
[498,"Female","Discharged to long-term facility"]
[499,"Female","Routine discharge"]
[500,"Female","Routine discharge"]
[501,"Female","Routine discharge"]
[502,"Male","Routine discharge"]
[503,"Male","Routine discharge"]
[504,"Male","Routine discharge"]
[505,"Male","Routine discharge"]
[506,"Male","Alive, disposition not stated"]
[507,"Female","Routine discharge"]
[508,"Female","Routine discharge"]
[509,"Female","Routine discharge"]
[510,"Female","Discharged to long-term facility"]
[511,"Male","Routine discharge"]
[512,"Male","Routine discharge"]
[513,"Female","Routine discharge"]
[514,"Male","Routine discharge"]
[515,"Female","Routine discharge"]
[516,"Female","Routine discharge"]
[517,"Female","Discharged to long-term facility"]
[518,"Male","Discharged to long-term facility"]
[519,"Female","Routine discharge"]
[520,"Female","Routine discharge"]
[521,"Female","Dead"]
[522,"Male","Routine discharge"]
[523,"Male","Routine discharge"]
[524,"Female","Routine discharge"]
[525,"Male","Routine discharge"]
[526,"Female","Routine discharge"]
[527,"Male","Alive, disposition not stated"]
[528,"Male","Dead"]
[529,"Female","Discharged to long-term facility"]
[530,"Female","Routine discharge"]
[531,"Male","Routine discharge"]
[532,"Female","Routine discharge"]
[533,"Female","Routine discharge"]
[534,"Male","Routine discharge"]
[535,"Male","Routine discharge"]
[536,"Female","Routine discharge"]
[537,"Female","Routine discharge"]
[538,"Female","Routine discharge"]
[539,"Male","Routine discharge"]
[540,"Female","Routine discharge"]
[541,"Female","Routine discharge"]
[542,"Female","Routine discharge"]
[543,"Male","Alive, disposition not stated"]
[544,"Female","Routine discharge"]
[545,"Male","Routine discharge"]
[546,"Male","Discharged to short-term facility"]
[547,"Male","Routine discharge"]
[548,"Female","Routine discharge"]
[549,"Female","Routine discharge"]
[550,"Female","Routine discharge"]
[551,"Male","Routine discharge"]
[552,"Male","Routine discharge"]
[553,"Female","Routine discharge"]
[554,"Male","Routine discharge"]
[555,"Male","Routine discharge"]
[556,"Female","Dead"]
[557,"Female","Routine discharge"]
[558,"Female","Dead"]
[559,"Female","Routine discharge"]
[560,"Male","Routine discharge"]
[561,"Female","Routine discharge"]
[562,"Female","Routine discharge"]
[563,"Male","Routine discharge"]
[564,"Female","Routine discharge"]
[565,"Female","Alive, disposition not stated"]
[566,"Female","Alive, disposition not stated"]
[567,"Female","Discharged to long-term facility"]
[568,"Male","Routine discharge"]
[569,"Male","Alive, disposition not stated"]
[570,"Female","Discharged to long-term facility"]
[571,"Female","Routine discharge"]
[572,"Male","Routine discharge"]
[573,"Female","Routine discharge"]
[574,"Female","Routine discharge"]
[575,"Male","Routine discharge"]
[576,"Male","Routine discharge"]
[577,"Female","Routine discharge"]
[578,"Male","Routine discharge"]
[579,"Male","Routine discharge"]
[580,"Female","Routine discharge"]
[581,"Male","Routine discharge"]
[582,"Male","Routine discharge"]
[583,"Female","Routine discharge"]
[584,"Female","Routine discharge"]
[585,"Female","Routine discharge"]
[586,"Male","Routine discharge"]
[587,"Male","Routine discharge"]
[588,"Male","Routine discharge"]
[589,"Female","Dead"]
[590,"Male","Routine discharge"]
[591,"Female","Routine discharge"]
[592,"Male","Routine discharge"]
[593,"Male","Routine discharge"]
[594,"Female","Routine discharge"]
[595,"Female","Routine discharge"]
[596,"Male","Routine discharge"]
[597,"Male","Routine discharge"]
[598,"Female","Discharged to long-term facility"]
[599,"Female","Routine discharge"]
[600,"Male","Routine discharge"]
[601,"Female","Routine discharge"]
[602,"Female","Routine discharge"]
[603,"Female","Not reported"]
[604,"Male","Routine discharge"]
[605,"Female","Routine discharge"]
[606,"Female","Routine discharge"]
[607,"Female","Routine discharge"]
[608,"Female","Routine discharge"]
[609,"Male","Dead"]
[610,"Female","Routine discharge"]
[611,"Male","Discharged to long-term facility"]
[612,"Male","Routine discharge"]
[613,"Male","Routine discharge"]
[614,"Male","Routine discharge"]
[615,"Male","Routine discharge"]
[616,"Female","Routine discharge"]
[617,"Female","Routine discharge"]
[618,"Female","Routine discharge"]
[619,"Female","Routine discharge"]
[620,"Female","Routine discharge"]
[621,"Female","Dead"]
[622,"Female","Routine discharge"]
[623,"Female","Alive, disposition not stated"]
[624,"Female","Routine discharge"]
[625,"Female","Routine discharge"]
[626,"Female","Routine discharge"]
[627,"Female","Routine discharge"]
[628,"Male","Routine discharge"]
[629,"Male","Routine discharge"]
[630,"Female","Routine discharge"]
[631,"Female","Routine discharge"]
[632,"Male","Routine discharge"]
[633,"Male","Routine discharge"]
[634,"Female","Routine discharge"]
[635,"Female","Routine discharge"]
[636,"Male","Routine discharge"]
[637,"Female","Routine discharge"]
[638,"Female","Alive, disposition not stated"]
[639,"Female","Routine discharge"]
[640,"Female","Routine discharge"]
[641,"Female","Discharged to long-term facility"]
[642,"Male","Routine discharge"]
[643,"Male","Routine discharge"]
[644,"Male","Routine discharge"]
[645,"Female","Routine discharge"]
[646,"Female","Routine discharge"]
[647,"Female","Routine discharge"]
[648,"Female","Routine discharge"]
[649,"Female","Alive, disposition not stated"]
[650,"Female","Routine discharge"]
[651,"Female","Alive, disposition not stated"]
[652,"Male","Routine discharge"]
[653,"Female","Routine discharge"]
[654,"Female","Routine discharge"]
[655,"Female","Alive, disposition not stated"]
[656,"Female","Routine discharge"]
[657,"Female","Routine discharge"]
[658,"Female","Alive, disposition not stated"]
[659,"Female","Routine discharge"]
[660,"Male","Routine discharge"]
[661,"Male","Routine discharge"]
[662,"Male","Routine discharge"]
[663,"Male","Dead"]
[664,"Female","Alive, disposition not stated"]
[665,"Female","Routine discharge"]
[666,"Male","Routine discharge"]
[667,"Male","Routine discharge"]
[668,"Male","Routine discharge"]
[669,"Female","Routine discharge"]
[670,"Male","Routine discharge"]
[671,"Female","Routine discharge"]
[672,"Male","Discharged to long-term facility"]
[673,"Female","Routine discharge"]
[674,"Male","Routine discharge"]
[675,"Female","Alive, disposition not stated"]
[676,"Female","Routine discharge"]
[677,"Male","Routine discharge"]
[678,"Female","Routine discharge"]
[679,"Female","Routine discharge"]
[680,"Female","Routine discharge"]
[681,"Female","Routine discharge"]
[682,"Female","Routine discharge"]
[683,"Male","Routine discharge"]
[684,"Female","Routine discharge"]
[685,"Female","Discharged to long-term facility"]
[686,"Female","Discharged to long-term facility"]
[687,"Female","Routine discharge"]
[688,"Male","Routine discharge"]
[689,"Female","Routine discharge"]
[690,"Male","Routine discharge"]
[691,"Female","Routine discharge"]
[692,"Female","Routine discharge"]
[693,"Female","Routine discharge"]
[694,"Female","Routine discharge"]
[695,"Male","Discharged to short-term facility"]
[696,"Female","Routine discharge"]
[697,"Female","Routine discharge"]
[698,"Female","Routine discharge"]
[699,"Male","Routine discharge"]
[700,"Male","Routine discharge"]
[701,"Male","Routine discharge"]
[702,"Female","Routine discharge"]
[703,"Female","Routine discharge"]
[704,"Male","Routine discharge"]
[705,"Male","Routine discharge"]
[706,"Female","Routine discharge"]
[707,"Male","Routine discharge"]
[708,"Female","Routine discharge"]
[709,"Male","Routine discharge"]
[710,"Male","Routine discharge"]
[711,"Female","Discharged to long-term facility"]
[712,"Female","Routine discharge"]
[713,"Male","Routine discharge"]
[714,"Male","Routine discharge"]
[715,"Male","Routine discharge"]
[716,"Male","Routine discharge"]
[717,"Male","Routine discharge"]
[718,"Female","Alive, disposition not stated"]
[719,"Female","Discharged to long-term facility"]
[720,"Female","Routine discharge"]
[721,"Male","Routine discharge"]
[722,"Female","Routine discharge"]
[723,"Female","Routine discharge"]
[724,"Male","Routine discharge"]
[725,"Female","Routine discharge"]
[726,"Male","Routine discharge"]
[727,"Female","Routine discharge"]
[728,"Male","Routine discharge"]
[729,"Female","Routine discharge"]
[730,"Female","Routine discharge"]
[731,"Female","Routine discharge"]
[732,"Male","Routine discharge"]
[733,"Female","Discharged to short-term facility"]
[734,"Female","Routine discharge"]
[735,"Female","Routine discharge"]
[736,"Female","Routine discharge"]
[737,"Female","Routine discharge"]
[738,"Female","Routine discharge"]
[739,"Female","Routine discharge"]
[740,"Female","Routine discharge"]
[741,"Female","Routine discharge"]
[742,"Female","Routine discharge"]
[743,"Male","Left AMA"]
[744,"Female","Routine discharge"]
[745,"Female","Routine discharge"]
[746,"Female","Discharged to short-term facility"]
[747,"Female","Dead"]
[748,"Male","Dead"]
[749,"Female","Routine discharge"]
[750,"Male","Routine discharge"]
[751,"Female","Discharged to long-term facility"]
[752,"Female","Routine discharge"]
[753,"Male","Routine discharge"]
[754,"Female","Routine discharge"]
[755,"Female","Routine discharge"]
[756,"Female","Routine discharge"]
[757,"Female","Routine discharge"]
[758,"Male","Routine discharge"]
[759,"Male","Routine discharge"]
[760,"Male","Dead"]
[761,"Female","Routine discharge"]
[762,"Male","Routine discharge"]
[763,"Female","Routine discharge"]
[764,"Female","Routine discharge"]
[765,"Female","Left AMA"]
[766,"Female","Routine discharge"]
[767,"Female","Discharged to long-term facility"]
[768,"Male","Alive, disposition not stated"]
[769,"Male","Routine discharge"]
[770,"Female","Alive, disposition not stated"]
[771,"Female","Routine discharge"]
[772,"Male","Routine discharge"]
[773,"Female","Routine discharge"]
[774,"Male","Routine discharge"]
[775,"Female","Routine discharge"]
[776,"Female","Routine discharge"]
[777,"Female","Discharged to long-term facility"]
[778,"Male","Routine discharge"]
[779,"Female","Routine discharge"]
[780,"Male","Routine discharge"]
[781,"Male","Routine discharge"]
[782,"Male","Routine discharge"]
[783,"Female","Routine discharge"]
[784,"Male","Routine discharge"]
[785,"Male","Routine discharge"]
[786,"Male","Routine discharge"]
[787,"Male","Routine discharge"]
[788,"Female","Routine discharge"]
[789,"Female","Routine discharge"]
[790,"Female","Alive, disposition not stated"]
[791,"Female","Alive, disposition not stated"]
[792,"Female","Discharged to long-term facility"]
[793,"Male","Routine discharge"]
[794,"Male","Discharged to long-term facility"]
[795,"Female","Routine discharge"]
[796,"Male","Routine discharge"]
[797,"Male","Routine discharge"]
[798,"Female","Routine discharge"]
[799,"Male","Routine discharge"]
[800,"Male","Dead"]
[801,"Male","Alive, disposition not stated"]
[802,"Male","Routine discharge"]
[803,"Female","Routine discharge"]
[804,"Female","Discharged to long-term facility"]
[805,"Male","Routine discharge"]
[806,"Male","Dead"]
[807,"Female","Routine discharge"]
[808,"Female","Routine discharge"]
[809,"Female","Routine discharge"]
[810,"Male","Routine discharge"]
[811,"Male","Routine discharge"]
[812,"Female","Routine discharge"]
[813,"Female","Routine discharge"]
[814,"Female","Routine discharge"]
[815,"Female","Routine discharge"]
[816,"Female","Routine discharge"]
[817,"Male","Routine discharge"]
[818,"Female","Routine discharge"]
[819,"Male","Routine discharge"]
[820,"Female","Dead"]
[821,"Male","Routine discharge"]
[822,"Male","Routine discharge"]
[823,"Male","Routine discharge"]
[824,"Male","Routine discharge"]
[825,"Female","Discharged to long-term facility"]
[826,"Male","Dead"]
[827,"Female","Discharged to long-term facility"]
[828,"Male","Routine discharge"]
[829,"Male","Routine discharge"]
[830,"Male","Routine discharge"]
[831,"Female","Discharged to long-term facility"]
[832,"Female","Routine discharge"]
[833,"Female","Routine discharge"]
[834,"Female","Routine discharge"]
[835,"Male","Routine discharge"]
[836,"Female","Routine discharge"]
[837,"Male","Routine discharge"]
[838,"Female","Routine discharge"]
[839,"Female","Routine discharge"]
[840,"Female","Dead"]
[841,"Male","Routine discharge"]
[842,"Male","Routine discharge"]
[843,"Female","Routine discharge"]
[844,"Female","Routine discharge"]
[845,"Female","Routine discharge"]
[846,"Male","Routine discharge"]
[847,"Male","Routine discharge"]
[848,"Female","Routine discharge"]
[849,"Female","Routine discharge"]
[850,"Male","Routine discharge"]
[851,"Male","Routine discharge"]
[852,"Male","Routine discharge"]
[853,"Female","Routine discharge"]
[854,"Female","Routine discharge"]
[855,"Female","Discharged to short-term facility"]
[856,"Female","Routine discharge"]
[857,"Female","Routine discharge"]
[858,"Female","Routine discharge"]
[859,"Female","Routine discharge"]
[860,"Female","Routine discharge"]
[861,"Female","Routine discharge"]
[862,"Female","Routine discharge"]
[863,"Female","Routine discharge"]
[864,"Female","Routine discharge"]
[865,"Female","Routine discharge"]
[866,"Male","Routine discharge"]
[867,"Male","Routine discharge"]
[868,"Female","Routine discharge"]
[869,"Female","Routine discharge"]
[870,"Female","Routine discharge"]
[871,"Male","Routine discharge"]
[872,"Female","Routine discharge"]
[873,"Female","Routine discharge"]
[874,"Female","Discharged to long-term facility"]
[875,"Female","Routine discharge"]
[876,"Female","Routine discharge"]
[877,"Male","Routine discharge"]
[878,"Female","Routine discharge"]
[879,"Male","Routine discharge"]
[880,"Male","Routine discharge"]
[881,"Male","Routine discharge"]
[882,"Female","Routine discharge"]
[883,"Female","Discharged to long-term facility"]
[884,"Male","Routine discharge"]
[885,"Male","Discharged to short-term facility"]
[886,"Female","Discharged to long-term facility"]
[887,"Male","Routine discharge"]
[888,"Male","Routine discharge"]
[889,"Female","Routine discharge"]
[890,"Male","Routine discharge"]
[891,"Male","Discharged to short-term facility"]
[892,"Female","Routine discharge"]
[893,"Female","Routine discharge"]
[894,"Female","Routine discharge"]
[895,"Female","Routine discharge"]
[896,"Female","Routine discharge"]
[897,"Male","Discharged to long-term facility"]
[898,"Female","Routine discharge"]
[899,"Female","Routine discharge"]
[900,"Male","Routine discharge"]
[901,"Female","Routine discharge"]
[902,"Male","Routine discharge"]
[903,"Male","Routine discharge"]
[904,"Female","Routine discharge"]
[905,"Female","Routine discharge"]
[906,"Female","Discharged to short-term facility"]
[907,"Female","Discharged to short-term facility"]
[908,"Female","Routine discharge"]
[909,"Male","Routine discharge"]
[910,"Female","Routine discharge"]
[911,"Female","Alive, disposition not stated"]
[912,"Female","Routine discharge"]
[913,"Male","Routine discharge"]
[914,"Female","Routine discharge"]
[915,"Male","Routine discharge"]
[916,"Female","Routine discharge"]
[917,"Female","Routine discharge"]
[918,"Female","Routine discharge"]
[919,"Female","Routine discharge"]
[920,"Female","Routine discharge"]
[921,"Female","Left AMA"]
[922,"Female","Routine discharge"]
[923,"Female","Discharged to long-term facility"]
[924,"Female","Routine discharge"]
[925,"Male","Alive, disposition not stated"]
[926,"Female","Routine discharge"]
[927,"Male","Routine discharge"]
[928,"Female","Routine discharge"]
[929,"Female","Routine discharge"]
[930,"Male","Alive, disposition not stated"]
[931,"Male","Routine discharge"]
[932,"Male","Alive, disposition not stated"]
[933,"Female","Routine discharge"]
[934,"Male","Routine discharge"]
[935,"Female","Routine discharge"]
[936,"Female","Routine discharge"]
[937,"Female","Alive, disposition not stated"]
[938,"Female","Routine discharge"]
[939,"Female","Routine discharge"]
[940,"Female","Discharged to long-term facility"]
[941,"Male","Routine discharge"]
[942,"Female","Routine discharge"]
[943,"Male","Routine discharge"]
[944,"Female","Routine discharge"]
[945,"Female","Routine discharge"]
[946,"Female","Routine discharge"]
[947,"Male","Routine discharge"]
[948,"Female","Routine discharge"]
[949,"Female","Discharged to long-term facility"]
[950,"Male","Routine discharge"]
[951,"Male","Routine discharge"]
[952,"Female","Routine discharge"]
[953,"Female","Alive, disposition not stated"]
[954,"Male","Routine discharge"]
[955,"Female","Routine discharge"]
[956,"Female","Routine discharge"]
[957,"Female","Routine discharge"]
[958,"Male","Routine discharge"]
[959,"Female","Routine discharge"]
[960,"Female","Routine discharge"]
[961,"Female","Routine discharge"]
[962,"Female","Alive, disposition not stated"]
[963,"Female","Routine discharge"]
[964,"Male","Routine discharge"]
[965,"Male","Routine discharge"]
[966,"Female","Routine discharge"]
[967,"Male","Routine discharge"]
[968,"Male","Routine discharge"]
[969,"Male","Routine discharge"]
[970,"Male","Routine discharge"]
[971,"Female","Routine discharge"]
[972,"Male","Discharged to long-term facility"]
[973,"Male","Routine discharge"]
[974,"Male","Routine discharge"]
[975,"Male","Routine discharge"]
[976,"Male","Routine discharge"]
[977,"Male","Discharged to long-term facility"]
[978,"Male","Dead"]
[979,"Female","Routine discharge"]
[980,"Male","Alive, disposition not stated"]
[981,"Male","Alive, disposition not stated"]
[982,"Male","Routine discharge"]
[983,"Male","Alive, disposition not stated"]
[984,"Male","Routine discharge"]
[985,"Female","Routine discharge"]
[986,"Female","Routine discharge"]
[987,"Female","Routine discharge"]
[988,"Female","Routine discharge"]
[989,"Male","Routine discharge"]
[990,"Female","Routine discharge"]
[991,"Male","Discharged to short-term facility"]
[992,"Male","Routine discharge"]
[993,"Female","Routine discharge"]
[994,"Male","Routine discharge"]
[995,"Female","Routine discharge"]
[996,"Female","Routine discharge"]
[997,"Female","Routine discharge"]
[998,"Male","Routine discharge"]
[999,"Male","Routine discharge"]
[1000,"Male","Routine discharge"]

{"sheet":"Hypothesis 2","index":3,"n_rows":1001,"n_cols":20,"rows_kept":1001}
["Patient ID","Region","Principal payer"]
[1,"Northeast","Workers Comp"]
[2,"Northeast","HMO"]
[3,"Northeast","Medicare"]
[4,"Northeast","HMO"]
[5,"Northeast","Medicaid"]
[6,"Northeast","HMO"]
[7,"Northeast","Other private insurance"]
[8,"Northeast","Medicaid"]
[9,"Northeast","Medicare"]
[10,"Northeast","Medicaid"]
[11,"Northeast","Self pay"]
[12,"Northeast","Medicare"]
[13,"Northeast","HMO"]
[14,"Northeast","Medicare"]
[15,"Northeast","HMO"]
[16,"Northeast","Other private insurance"]
[17,"Midwest","Medicaid"]
[18,"Midwest","Medicare"]
[19,"Midwest","HMO"]
[20,"Midwest","Blue Cross"]
[21,"Midwest","HMO"]
[22,"South","No charge"]
[23,"South","HMO",{"$nulls":3},"Count of Patient ID","Column Labels"]
[24,"South","Medicaid",{"$nulls":3},"Row Labels","Blue Cross","HMO","Medicaid","Medicare","No charge","Not stated","Other","Other government","Other private insurance","Self pay","Workers Comp","(blank)","Grand Total"]
[25,"South","Medicare",{"$nulls":3},"Midwest",20,56,37,112,null,3,null,2,51,8,null,null,289]
[26,"South","HMO",{"$nulls":3},"Northeast",34,41,36,75,2,1,4,null,28,11,2,null,234]
[27,"South","Medicaid",{"$nulls":3},"South",35,67,52,105,1,13,11,6,30,16,2,null,338]
[28,"South","Medicare",{"$nulls":3},"West",8,51,21,32,null,null,3,4,13,5,2,null,139]
[29,"South","Medicare",{"$nulls":3},"(blank)"]
[30,"South","HMO",{"$nulls":3},"Grand Total",97,215,146,324,3,17,18,12,122,40,6,null,1000]
[31,"South","Medicaid"]
[32,"South","HMO"]
[33,"West","Medicaid"]
[34,"West","Self pay",{"$nulls":3},"Row Labels","Blue Cross","HMO","Medicaid","Medicare","No charge","Not stated","Other","Other government","Other private insurance","Self pay","Workers Comp","(blank)","Grand Total"]
[35,"South","Medicare",{"$nulls":3},"Midwest",20,56,37,112,null,3,null,2,51,8,null,null,289]
[36,"South","Medicaid",{"$nulls":3},"Northeast",34,41,36,75,2,1,4,null,28,11,2,null,234]
[37,"West","Self pay",{"$nulls":3},"South",35,67,52,105,1,13,11,6,30,16,2,null,338]
[38,"Northeast","Medicare",{"$nulls":3},"West",8,51,21,32,null,null,3,4,13,5,2,null,139]
[39,"South","Medicare",{"$nulls":3},"(blank)"]
[40,"Midwest","HMO",{"$nulls":3},"Grand Total",97,215,146,324,3,17,18,12,122,40,6,null,1000]
[41,"Midwest","Medicare"]
[42,"Midwest","Medicare"]
[43,"Midwest","Medicare",{"$nulls":4},{"$f":"$T36*H$41/$T$41","v":28.033},{"$f":"$T36*I$41/$T$41","v":62.135},42.194,93.636,0.867,4.913,5.202,3.468,35.258,11.56,1.734]
[44,"South","Other private insurance",{"$nulls":4},{"$f":"$T37*H$41/$T$41","v":22.698},50.31,34.164,75.816,0.702,3.978,4.212,2.808,28.548,9.36,1.404]
[45,"South","Medicare",{"$nulls":4},{"$f":"$T38*H$41/$T$41","v":32.786},72.67,49.348,109.512,1.014,5.746,6.084,4.056,41.236,13.52,2.028]
[46,"South","Medicaid",{"$nulls":4},{"$f":"$T39*H$41/$T$41","v":13.483},29.885,20.294,45.036,0.417,2.363,2.502,1.668,16.958,5.56,0.834]
[47,"South","Medicare"]
[48,"Northeast","Medicare"]
[49,"Northeast","Medicaid"]
[50,"Northeast","Blue Cross"]
[51,"Northeast","Medicare",{"$nulls":3},{"$f":"_xlfn.CHISQ.TEST(H26:R29,H44:R47)","v":1.1077526349908013E-5}]
[52,"Midwest","Other private insurance"]
[53,"Midwest","Medicare",{"$nulls":3},"less than .05"]
[54,"Midwest","Medicare",{"$nulls":3},"Reject null hypothesis"]
[55,"Midwest","Medicare"]
[56,"Midwest","Blue Cross"]
[57,"Midwest","Medicare"]
[58,"West","Other private insurance"]
[59,"West","Medicare"]
[60,"West","Other"]
[61,"West","Medicaid"]
[62,"West","Other"]
[63,"South","Other private insurance"]
[64,"South","Medicare"]
[65,"South","Medicare"]
[66,"South","Medicare"]
[67,"South","Self pay"]
[68,"South","Medicare"]
[69,"South","Medicaid"]
[70,"South","HMO"]
[71,"Midwest","HMO"]
[72,"Northeast","Medicare"]
[73,"South","Medicaid"]
[74,"South","Medicare"]
[75,"South","Medicaid"]
[76,"South","HMO"]
[77,"Midwest","Other private insurance"]
[78,"Midwest","Medicaid"]
[79,"Midwest","Other private insurance"]
[80,"Midwest","Medicare"]
[81,"Midwest","Medicare"]
[82,"Midwest","Medicaid"]
[83,"Midwest","Medicare"]
[84,"Midwest","Medicaid"]
[85,"West","Other government"]
[86,"South","Other government"]
[87,"South","Other"]
[88,"South","Medicaid"]
[89,"Northeast","Medicare"]
[90,"Northeast","Medicaid"]
[91,"Northeast","Medicaid"]
[92,"Northeast","Medicare"]
[93,"Northeast","Medicare"]
[94,"Northeast","Medicare"]
[95,"Northeast","Blue Cross"]
[96,"Northeast","Medicaid"]
[97,"Northeast","Medicaid"]
[98,"Northeast","Medicare"]
[99,"Northeast","Blue Cross"]
[100,"Northeast","Medicare"]
[101,"Northeast","Blue Cross"]
[102,"Northeast","Medicare"]
[103,"Northeast","Medicaid"]
[104,"Northeast","Other private insurance"]
[105,"Northeast","Other private insurance"]
[106,"Northeast","Medicare"]
[107,"Northeast","HMO"]
[108,"Northeast","HMO"]
[109,"Northeast","HMO"]
[110,"Northeast","Medicare"]
[111,"Northeast","Medicare"]
[112,"Northeast","HMO"]
[113,"Northeast","HMO"]
[114,"Northeast","Medicare"]
[115,"Northeast","Other"]
[116,"Northeast","Medicare"]
[117,"Northeast","Blue Cross"]
[118,"Northeast","HMO"]
[119,"Northeast","Self pay"]
[120,"Northeast","Blue Cross"]
[121,"Northeast","HMO"]
[122,"Northeast","HMO"]
[123,"Northeast","Medicaid"]
[124,"Northeast","Blue Cross"]
[125,"Northeast","Medicare"]
[126,"Northeast","Blue Cross"]
[127,"Northeast","HMO"]
[128,"Northeast","Blue Cross"]
[129,"Northeast","Blue Cross"]
[130,"Northeast","Blue Cross"]
[131,"Northeast","Medicare"]
[132,"Northeast","Other private insurance"]
[133,"Northeast","HMO"]
[134,"Northeast","Other private insurance"]
[135,"Northeast","HMO"]
[136,"Northeast","Medicare"]
[137,"Northeast","Other private insurance"]
[138,"Northeast","Medicare"]
[139,"Northeast","No charge"]
[140,"Northeast","Blue Cross"]
[141,"Northeast","Medicare"]
[142,"Northeast","Medicaid"]
[143,"Northeast","Medicare"]
[144,"Northeast","Medicaid"]
[145,"Northeast","Self pay"]
[146,"Northeast","Other private insurance"]
[147,"Northeast","Medicare"]
[148,"Northeast","Other private insurance"]
[149,"Northeast","Other private insurance"]
[150,"Northeast","Other private insurance"]
[151,"Northeast","Blue Cross"]
[152,"Northeast","Blue Cross"]
[153,"Northeast","HMO"]
[154,"Northeast","HMO"]
[155,"Northeast","Other private insurance"]
[156,"Northeast","Blue Cross"]
[157,"Northeast","HMO"]
[158,"Northeast","Self pay"]
[159,"Northeast","HMO"]
[160,"Northeast","Blue Cross"]
[161,"Northeast","Blue Cross"]
[162,"Northeast","Other private insurance"]
[163,"Northeast","No charge"]
[164,"Northeast","Other private insurance"]
[165,"Northeast","Other private insurance"]
[166,"Northeast","Blue Cross"]
[167,"Northeast","Medicare"]
[168,"Northeast","Medicaid"]
[169,"Northeast","Medicare"]
[170,"Northeast","Medicare"]
[171,"Northeast","Self pay"]
[172,"Northeast","Medicare"]
[173,"Northeast","Medicare"]
[174,"Northeast","Medicare"]
[175,"Northeast","Medicare"]
[176,"Northeast","Medicaid"]
[177,"Northeast","Blue Cross"]
[178,"Northeast","HMO"]
[179,"Northeast","Medicaid"]
[180,"Northeast","Medicare"]
[181,"Northeast","Medicare"]
[182,"Northeast","Medicaid"]
[183,"Northeast","Medicaid"]
[184,"Northeast","Other private insurance"]
[185,"Northeast","Medicaid"]
[186,"Northeast","Medicaid"]
[187,"Northeast","Medicaid"]
[188,"Northeast","Medicare"]
[189,"Northeast","HMO"]
[190,"Northeast","HMO"]
[191,"Northeast","Blue Cross"]
[192,"Northeast","Medicare"]
[193,"Northeast","Self pay"]
[194,"Northeast","Medicaid"]
[195,"Northeast","Medicare"]
[196,"Northeast","Medicare"]
[197,"Northeast","Medicare"]
[198,"Northeast","Medicare"]
[199,"Northeast","Medicare"]
[200,"Northeast","Medicare"]
[201,"Northeast","Medicare"]
[202,"Northeast","Self pay"]
[203,"Northeast","Self pay"]
[204,"Northeast","Medicare"]
[205,"Northeast","Medicare"]
[206,"Northeast","Medicaid"]
[207,"Northeast","Medicaid"]
[208,"Northeast","Other private insurance"]
[209,"Northeast","Medicaid"]
[210,"Northeast","Medicare"]
[211,"Northeast","Medicaid"]
[212,"Northeast","Self pay"]
[213,"Northeast","Medicaid"]
[214,"Northeast","Medicaid"]
[215,"Northeast","HMO"]
[216,"Northeast","Blue Cross"]
[217,"Northeast","HMO"]
[218,"Northeast","Blue Cross"]
[219,"Northeast","HMO"]
[220,"Northeast","HMO"]
[221,"Northeast","Medicare"]
[222,"Northeast","Self pay"]
[223,"Northeast","Medicare"]
[224,"Northeast","Medicare"]
[225,"Northeast","Blue Cross"]
[226,"Northeast","Medicare"]
[227,"Northeast","Other"]
[228,"Northeast","Blue Cross"]
[229,"Northeast","Blue Cross"]
[230,"Northeast","HMO"]
[231,"Northeast","Medicare"]
[232,"Northeast","Medicare"]
[233,"Northeast","HMO"]
[234,"Northeast","Other private insurance"]
[235,"Northeast","Other private insurance"]
[236,"Northeast","Other"]
[237,"Northeast","Blue Cross"]
[238,"Northeast","Not stated"]
[239,"Northeast","Other"]
[240,"Northeast","Medicare"]
[241,"Northeast","HMO"]
[242,"Northeast","Medicare"]
[243,"Northeast","Self pay"]
[244,"Northeast","Blue Cross"]
[245,"Northeast","HMO"]
[246,"Midwest","Medicare"]
[247,"Midwest","Medicaid"]
[248,"Midwest","Blue Cross"]
[249,"Midwest","Self pay"]
[250,"Midwest","HMO"]
[251,"Midwest","Medicaid"]
[252,"Midwest","Other private insurance"]
[253,"Midwest","Blue Cross"]
[254,"Midwest","Blue Cross"]
[255,"Midwest","Other private insurance"]
[256,"Midwest","Other private insurance"]
[257,"Midwest","Medicare"]
[258,"Midwest","Medicare"]
[259,"Midwest","Medicare"]
[260,"Midwest","HMO"]
[261,"Midwest","Medicaid"]
[262,"Midwest","Medicare"]
[263,"Midwest","Medicare"]
[264,"Midwest","Medicare"]
[265,"Midwest","Medicare"]
[266,"Midwest","Other private insurance"]
[267,"Midwest","Medicare"]
[268,"Midwest","Medicare"]
[269,"Midwest","Medicare"]
[270,"Midwest","Other private insurance"]
[271,"Midwest","Medicare"]
[272,"Midwest","Self pay"]
[273,"Midwest","Other private insurance"]
[274,"Midwest","Medicare"]
[275,"Midwest","HMO"]
[276,"Midwest","Medicare"]
[277,"Midwest","Self pay"]
[278,"Midwest","Medicare"]
[279,"Midwest","Other private insurance"]
[280,"Midwest","Other private insurance"]
[281,"Midwest","HMO"]
[282,"Midwest","Medicare"]
[283,"Midwest","Medicare"]
[284,"Midwest","HMO"]
[285,"Midwest","Medicare"]
[286,"Midwest","Other private insurance"]
[287,"Midwest","Medicare"]
[288,"Midwest","Blue Cross"]
[289,"Midwest","Other private insurance"]
[290,"Midwest","Blue Cross"]
[291,"Midwest","Blue Cross"]
[292,"Midwest","Medicare"]
[293,"Midwest","Not stated"]
[294,"Midwest","Medicare"]
[295,"Midwest","Not stated"]
[296,"Midwest","Other private insurance"]
[297,"Midwest","Medicare"]
[298,"Midwest","Medicare"]
[299,"Midwest","HMO"]
[300,"Midwest","Other private insurance"]
[301,"Midwest","Medicare"]
[302,"Midwest","Other private insurance"]
[303,"Midwest","Medicare"]
[304,"Midwest","Medicare"]
[305,"Midwest","Medicare"]
[306,"Midwest","Medicaid"]
[307,"Midwest","HMO"]
[308,"Midwest","HMO"]
[309,"Midwest","Blue Cross"]
[310,"Midwest","Medicare"]
[311,"Midwest","Medicare"]
[312,"Midwest","Medicare"]
[313,"Midwest","Medicare"]
[314,"Midwest","HMO"]
[315,"Midwest","Medicare"]
[316,"Midwest","HMO"]
[317,"Midwest","HMO"]
[318,"Midwest","HMO"]
[319,"Midwest","Medicare"]
[320,"Midwest","Medicare"]
[321,"Midwest","Medicare"]
[322,"Midwest","HMO"]
[323,"Midwest","HMO"]
[324,"Midwest","Medicare"]
[325,"Midwest","HMO"]
[326,"Midwest","Medicare"]
[327,"Midwest","HMO"]
[328,"Midwest","HMO"]
[329,"Midwest","Medicare"]
[330,"Midwest","Medicare"]
[331,"Midwest","Other private insurance"]
[332,"Midwest","Medicare"]
[333,"Midwest","Self pay"]
[334,"Midwest","Medicaid"]
[335,"Midwest","HMO"]
[336,"Midwest","Other private insurance"]
[337,"Midwest","HMO"]
[338,"Midwest","HMO"]
[339,"Midwest","Medicare"]
[340,"Midwest","Medicare"]
[341,"Midwest","Medicare"]
[342,"Midwest","Medicare"]
[343,"South","HMO"]
[344,"South","HMO"]
[345,"South","Medicaid"]
[346,"South","HMO"]
[347,"South","Self pay"]
[348,"South","HMO"]
[349,"South","Medicare"]
[350,"South","Medicaid"]
[351,"South","HMO"]
[352,"South","Medicare"]
[353,"South","HMO"]
[354,"South","HMO"]
[355,"South","Blue Cross"]
[356,"South","Blue Cross"]
[357,"South","Blue Cross"]
[358,"South","Other private insurance"]
[359,"South","Other private insurance"]
[360,"South","Blue Cross"]
[361,"South","Blue Cross"]
[362,"South","Medicare"]
[363,"South","Medicare"]
[364,"South","Blue Cross"]
[365,"South","Not stated"]
[366,"South","Medicare"]
[367,"South","HMO"]
[368,"South","Medicaid"]
[369,"South","HMO"]
[370,"South","Blue Cross"]
[371,"South","HMO"]
[372,"South","Medicare"]
[373,"South","Blue Cross"]
[374,"South","Medicare"]
[375,"South","Medicare"]
[376,"South","Medicaid"]
[377,"South","Medicare"]
[378,"South","Self pay"]
[379,"South","Medicare"]
[380,"South","Self pay"]
[381,"South","Medicaid"]
[382,"South","Medicaid"]
[383,"South","Medicaid"]
[384,"South","HMO"]
[385,"South","Other government"]
[386,"South","Other private insurance"]
[387,"South","HMO"]
[388,"South","HMO"]
[389,"South","Medicaid"]
[390,"South","Medicaid"]
[391,"South","HMO"]
[392,"South","Medicaid"]
[393,"South","Other government"]
[394,"South","Medicaid"]
[395,"South","Other government"]
[396,"South","HMO"]
[397,"South","HMO"]
[398,"South","Other government"]
[399,"South","HMO"]
[400,"South","Other"]
[401,"South","HMO"]
[402,"South","Medicare"]
[403,"South","Other private insurance"]
[404,"South","Medicare"]
[405,"South","Other private insurance"]
[406,"South","Medicare"]
[407,"South","HMO"]
[408,"South","Medicaid"]
[409,"South","Medicaid"]
[410,"South","Medicaid"]
[411,"South","Medicaid"]
[412,"South","Other private insurance"]
[413,"South","Medicare"]
[414,"South","Medicaid"]
[415,"South","Blue Cross"]
[416,"South","Other private insurance"]
[417,"South","Medicaid"]
[418,"South","Medicare"]
[419,"South","Medicare"]
[420,"South","Medicare"]
[421,"South","Other private insurance"]
[422,"South","Medicare"]
[423,"South","Medicare"]
[424,"South","Blue Cross"]
[425,"South","Blue Cross"]
[426,"South","Blue Cross"]
[427,"South","HMO"]
[428,"South","Medicare"]
[429,"South","HMO"]
[430,"South","Blue Cross"]
[431,"South","HMO"]
[432,"South","Blue Cross"]
[433,"South","Other private insurance"]
[434,"South","Self pay"]
[435,"South","HMO"]
[436,"South","HMO"]
[437,"South","Other private insurance"]
[438,"South","Blue Cross"]
[439,"South","Blue Cross"]
[440,"South","Medicaid"]
[441,"South","HMO"]
[442,"South","HMO"]
[443,"South","HMO"]
[444,"South","HMO"]
[445,"South","Blue Cross"]
[446,"South","Other"]
[447,"South","Medicaid"]
[448,"South","Medicare"]
[449,"South","Other"]
[450,"South","Other"]
[451,"South","Blue Cross"]
[452,"South","Medicare"]
[453,"South","Medicaid"]
[454,"South","Medicare"]
[455,"South","Medicaid"]
[456,"South","HMO"]
[457,"South","Other"]
[458,"South","Other"]
[459,"South","Other"]
[460,"South","Other"]
[461,"South","Other"]
[462,"South","Medicaid"]
[463,"South","HMO"]
[464,"South","HMO"]
[465,"South","Self pay"]
[466,"South","Medicare"]
[467,"South","Medicare"]
[468,"South","Medicare"]
[469,"South","HMO"]
[470,"South","Medicaid"]
[471,"South","HMO"]
[472,"South","Medicare"]
[473,"South","Medicare"]
[474,"South","HMO"]
[475,"South","HMO"]
[476,"South","Medicare"]
[477,"South","Medicare"]
[478,"South","Medicare"]
[479,"South","Self pay"]
[480,"South","Workers Comp"]
[481,"West","Medicaid"]
[482,"West","Medicaid"]
[483,"West","Medicare"]
[484,"West","Medicaid"]
[485,"West","Other private insurance"]
[486,"West","HMO"]
[487,"West","HMO"]
[488,"West","Medicare"]
[489,"West","HMO"]
[490,"West","HMO"]
[491,"West","HMO"]
[492,"West","HMO"]
[493,"West","HMO"]
[494,"West","HMO"]
[495,"West","HMO"]
[496,"West","HMO"]
[497,"West","Workers Comp"]
[498,"West","HMO"]
[499,"West","HMO"]
[500,"West","Medicare"]
[501,"West","Blue Cross"]
[502,"West","Medicaid"]
[503,"West","Medicaid"]
[504,"West","Medicare"]
[505,"West","Medicare"]
[506,"West","Medicare"]
[507,"West","Medicaid"]
[508,"West","Medicaid"]
[509,"West","Medicare"]
[510,"West","Medicaid"]
[511,"West","HMO"]
[512,"West","Medicaid"]
[513,"West","Other private insurance"]
[514,"South","Not stated"]
[515,"South","Not stated"]
[516,"South","Not stated"]
[517,"South","Not stated"]
[518,"Northeast","Medicare"]
[519,"South","Medicare"]
[520,"South","Other government"]
[521,"South","Medicare"]
[522,"South","HMO"]
[523,"South","Blue Cross"]
[524,"South","Medicaid"]
[525,"South","Other private insurance"]
[526,"South","HMO"]
[527,"South","Self pay"]
[528,"South","HMO"]
[529,"South","Medicare"]
[530,"South","Medicaid"]
[531,"South","HMO"]
[532,"South","HMO"]
[533,"South","Other private insurance"]
[534,"South","Medicare"]
[535,"Northeast","Medicaid"]
[536,"Northeast","HMO"]
[537,"Northeast","HMO"]
[538,"Northeast","Medicaid"]
[539,"Northeast","HMO"]
[540,"Northeast","HMO"]
[541,"Northeast","Other private insurance"]
[542,"Northeast","HMO"]
[543,"Northeast","Medicaid"]
[544,"Northeast","Medicare"]
[545,"Northeast","Other private insurance"]
[546,"Northeast","Other private insurance"]
[547,"Northeast","Medicare"]
[548,"Northeast","Medicare"]
[549,"Northeast","Medicare"]
[550,"Northeast","Medicare"]
[551,"Northeast","Medicare"]
[552,"Northeast","Other private insurance"]
[553,"Northeast","HMO"]
[554,"Northeast","Blue Cross"]
[555,"Northeast","Medicaid"]
[556,"Northeast","Medicaid"]
[557,"Northeast","Other private insurance"]
[558,"Northeast","Medicare"]
[559,"Northeast","Other private insurance"]
[560,"Northeast","Blue Cross"]
[561,"Northeast","Blue Cross"]
[562,"Northeast","Other private insurance"]
[563,"Northeast","Blue Cross"]
[564,"Northeast","HMO"]
[565,"Northeast","Medicare"]
[566,"Northeast","Blue Cross"]
[567,"Northeast","Medicare"]
[568,"Northeast","Medicare"]
[569,"Northeast","Medicaid"]
[570,"Northeast","Medicare"]
[571,"Midwest","Other private insurance"]
[572,"Midwest","Other private insurance"]
[573,"Midwest","Other private insurance"]
[574,"Midwest","Other private insurance"]
[575,"Midwest","Other private insurance"]
[576,"Midwest","Other private insurance"]
[577,"Midwest","Medicare"]
[578,"Midwest","Other private insurance"]
[579,"Midwest","Medicare"]
[580,"Midwest","Self pay"]
[581,"Midwest","Other private insurance"]
[582,"Midwest","HMO"]
[583,"Midwest","HMO"]
[584,"Midwest","HMO"]
[585,"Midwest","Medicaid"]
[586,"Midwest","Self pay"]
[587,"Midwest","HMO"]
[588,"Midwest","HMO"]
[589,"Midwest","Medicare"]
[590,"Midwest","Medicare"]
[591,"Midwest","Medicaid"]
[592,"Midwest","HMO"]
[593,"Midwest","HMO"]
[594,"Midwest","HMO"]
[595,"Midwest","HMO"]
[596,"Midwest","HMO"]
[597,"Midwest","Medicaid"]
[598,"Midwest","Medicare"]
[599,"Midwest","HMO"]
[600,"Midwest","Medicare"]
[601,"Midwest","HMO"]
[602,"Midwest","Medicaid"]
[603,"Midwest","Medicaid"]
[604,"Midwest","Medicare"]
[605,"Midwest","Medicare"]
[606,"Midwest","Medicaid"]
[607,"Midwest","Medicaid"]
[608,"Midwest","HMO"]
[609,"Midwest","HMO"]
[610,"Midwest","Medicare"]
[611,"Midwest","Other government"]
[612,"South","Medicare"]
[613,"South","Medicare"]
[614,"South","Self pay"]
[615,"South","HMO"]
[616,"South","Blue Cross"]
[617,"South","Medicare"]
[618,"South","Medicare"]
[619,"South","Medicare"]
[620,"South","Medicaid"]
[621,"South","Self pay"]
[622,"South","HMO"]
[623,"South","HMO"]
[624,"South","HMO"]
[625,"South","HMO"]
[626,"South","HMO"]
[627,"South","HMO"]
[628,"South","Not stated"]
[629,"South","Not stated"]
[630,"South","Not stated"]
[631,"South","Not stated"]
[632,"South","Not stated"]
[633,"South","Not stated"]
[634,"South","Not stated"]
[635,"South","Other private insurance"]
[636,"South","Other private insurance"]
[637,"South","Medicare"]
[638,"South","Medicare"]
[639,"South","Blue Cross"]
[640,"South","Other private insurance"]
[641,"South","Medicare"]
[642,"South","Medicare"]
[643,"South","Blue Cross"]
[644,"South","Other private insurance"]
[645,"South","Medicare"]
[646,"South","Medicaid"]
[647,"South","Medicaid"]
[648,"South","Medicare"]
[649,"South","Medicare"]
[650,"South","Medicare"]
[651,"South","Blue Cross"]
[652,"South","Other private insurance"]
[653,"South","Other private insurance"]
[654,"South","Medicare"]
[655,"South","HMO"]
[656,"South","Blue Cross"]
[657,"South","HMO"]
[658,"South","Medicare"]
[659,"South","Medicare"]
[660,"South","Medicare"]
[661,"South","HMO"]
[662,"South","Medicare"]
[663,"South","Medicare"]
[664,"South","Medicare"]
[665,"South","Medicaid"]
[666,"South","Blue Cross"]
[667,"South","Medicaid"]
[668,"South","Self pay"]
[669,"South","Medicare"]
[670,"South","Medicare"]
[671,"South","Medicare"]
[672,"South","Blue Cross"]
[673,"South","Blue Cross"]
[674,"South","Blue Cross"]
[675,"South","Medicare"]
[676,"South","Medicare"]
[677,"South","Medicare"]
[678,"South","Medicare"]
[679,"South","Other private insurance"]
[680,"South","HMO"]
[681,"South","Other private insurance"]
[682,"South","Medicare"]
[683,"South","HMO"]
[684,"South","Medicare"]
[685,"South","Medicare"]
[686,"South","Medicare"]
[687,"South","Medicare"]
[688,"South","Medicare"]
[689,"West","Other"]
[690,"West","HMO"]
[691,"West","Medicaid"]
[692,"West","HMO"]
[693,"West","Medicare"]
[694,"West","Medicare"]
[695,"West","Medicaid"]
[696,"West","HMO"]
[697,"West","HMO"]
[698,"West","Blue Cross"]
[699,"West","Medicaid"]
[700,"West","HMO"]
[701,"West","HMO"]
[702,"West","HMO"]
[703,"West","Other private insurance"]
[704,"West","HMO"]
[705,"West","Medicare"]
[706,"West","Medicare"]
[707,"West","HMO"]
[708,"West","HMO"]
[709,"West","Other private insurance"]
[710,"West","HMO"]
[711,"West","HMO"]
[712,"West","Blue Cross"]
[713,"West","Medicare"]
[714,"West","Blue Cross"]
[715,"West","Blue Cross"]
[716,"West","Medicare"]
[717,"West","Blue Cross"]
[718,"West","Medicaid"]
[719,"West","Medicare"]
[720,"West","Blue Cross"]
[721,"South","Blue Cross"]
[722,"Midwest","Medicare"]
[723,"Midwest","Medicaid"]
[724,"Midwest","Medicare"]
[725,"Midwest","Other private insurance"]
[726,"Midwest","Medicaid"]
[727,"Midwest","HMO"]
[728,"Midwest","HMO"]
[729,"Midwest","Not stated"]
[730,"Midwest","Medicare"]
[731,"Midwest","HMO"]
[732,"Midwest","Medicare"]
[733,"Midwest","Medicare"]
[734,"Midwest","HMO"]
[735,"Midwest","HMO"]
[736,"Midwest","Blue Cross"]
[737,"Midwest","HMO"]
[738,"Midwest","Blue Cross"]
[739,"Midwest","Medicaid"]
[740,"Midwest","HMO"]
[741,"Midwest","HMO"]
[742,"Midwest","HMO"]
[743,"Midwest","Medicaid"]
[744,"Midwest","HMO"]
[745,"Midwest","HMO"]
[746,"South","Medicare"]
[747,"South","Medicare"]
[748,"Midwest","Medicare"]
[749,"Midwest","Medicare"]
[750,"Midwest","HMO"]
[751,"Midwest","Medicare"]
[752,"Midwest","Other private insurance"]
[753,"Midwest","HMO"]
[754,"Midwest","HMO"]
[755,"Midwest","HMO"]
[756,"Midwest","Medicare"]
[757,"Midwest","HMO"]
[758,"Midwest","Other private insurance"]
[759,"Midwest","Medicare"]
[760,"West","Medicare"]
[761,"West","Medicare"]
[762,"West","HMO"]
[763,"West","HMO"]
[764,"West","HMO"]
[765,"West","Self pay"]
[766,"West","Blue Cross"]
[767,"West","Medicare"]
[768,"South","Medicare"]
[769,"South","Medicare"]
[770,"South","Medicare"]
[771,"South","Workers Comp"]
[772,"West","HMO"]
[773,"West","HMO"]
[774,"West","Medicare"]
[775,"West","Medicare"]
[776,"West","HMO"]
[777,"West","Medicare"]
[778,"West","HMO"]
[779,"West","HMO"]
[780,"West","Medicare"]
[781,"West","Medicare"]
[782,"West","Medicare"]
[783,"West","HMO"]
[784,"Midwest","Blue Cross"]
[785,"Midwest","Blue Cross"]
[786,"Midwest","Self pay"]
[787,"Midwest","Medicare"]
[788,"Midwest","Medicaid"]
[789,"Midwest","Other private insurance"]
[790,"Midwest","Other private insurance"]
[791,"Midwest","Medicare"]
[792,"Midwest","Medicare"]
[793,"Midwest","Medicare"]
[794,"Northeast","Medicare"]
[795,"Midwest","Medicaid"]
[796,"Midwest","Other private insurance"]
[797,"Midwest","Other government"]
[798,"Midwest","Medicaid"]
[799,"South","Medicare"]
[800,"South","Medicare"]
[801,"South","Medicare"]
[802,"South","HMO"]
[803,"South","Medicaid"]
[804,"South","Medicare"]
[805,"South","Other private insurance"]
[806,"South","Self pay"]
[807,"Northeast","HMO"]
[808,"Northeast","Medicare"]
[809,"Northeast","Medicaid"]
[810,"West","Other private insurance"]
[811,"West","Other private insurance"]
[812,"West","Other private insurance"]
[813,"West","Medicare"]
[814,"West","Other private insurance"]
[815,"West","Other private insurance"]
[816,"West","Other private insurance"]
[817,"Midwest","Medicare"]
[818,"South","HMO"]
[819,"South","Medicare"]
[820,"South","Medicare"]
[821,"South","Blue Cross"]
[822,"South","Medicare"]
[823,"Midwest","Medicaid"]
[824,"Midwest","Other private insurance"]
[825,"Midwest","Medicaid"]
[826,"Midwest","Medicaid"]
[827,"Midwest","Medicare"]
[828,"Midwest","Medicare"]
[829,"West","Other private insurance"]
[830,"West","Medicare"]
[831,"West","Medicare"]
[832,"West","Medicare"]
[833,"South","Medicaid"]
[834,"South","Blue Cross"]
[835,"South","Blue Cross"]
[836,"South","HMO"]
[837,"South","Self pay"]
[838,"South","HMO"]
[839,"South","Self pay"]
[840,"South","Medicare"]
[841,"South","Medicaid"]
[842,"West","HMO"]
[843,"West","Medicaid"]
[844,"West","Medicaid"]
[845,"West","Medicare"]
[846,"West","Medicare"]
[847,"West","Medicaid"]
[848,"West","HMO"]
[849,"West","Other government"]
[850,"West","HMO"]
[851,"West","HMO"]
[852,"West","HMO"]
[853,"West","Self pay"]
[854,"West","HMO"]
[855,"West","HMO"]
[856,"West","HMO"]
[857,"West","HMO"]
[858,"West","HMO"]
[859,"West","Other government"]
[860,"West","HMO"]
[861,"West","Other government"]
[862,"West","HMO"]
[863,"West","HMO"]
[864,"West","HMO"]
[865,"West","Medicaid"]
[866,"West","Medicare"]
[867,"West","Self pay"]
[868,"West","HMO"]
[869,"West","Medicare"]
[870,"West","HMO"]
[871,"West","Workers Comp"]
[872,"West","Other private insurance"]
[873,"West","Medicaid"]
[874,"South","Medicare"]
[875,"Midwest","Medicare"]
[876,"Midwest","Medicare"]
[877,"Midwest","Medicare"]
[878,"Midwest","Medicare"]
[879,"Midwest","Self pay"]
[880,"Midwest","Medicare"]
[881,"Midwest","Medicare"]
[882,"Midwest","Medicaid"]
[883,"Midwest","Medicare"]
[884,"Midwest","Other private insurance"]
[885,"Midwest","Other private insurance"]
[886,"Midwest","Other private insurance"]
[887,"Midwest","Other private insurance"]
[888,"Midwest","Other private insurance"]
[889,"Midwest","Other private insurance"]
[890,"Midwest","Other private insurance"]
[891,"Midwest","Other private insurance"]
[892,"Midwest","Other private insurance"]
[893,"Midwest","Other private insurance"]
[894,"Midwest","Blue Cross"]
[895,"Midwest","Medicare"]
[896,"Midwest","Medicare"]
[897,"Midwest","Other private insurance"]
[898,"Midwest","Medicaid"]
[899,"Midwest","Blue Cross"]
[900,"Midwest","Medicare"]
[901,"Midwest","Medicare"]
[902,"South","Medicaid"]
[903,"South","Other private insurance"]
[904,"South","Medicare"]
[905,"South","Medicaid"]
[906,"Northeast","Medicare"]
[907,"Northeast","Medicare"]
[908,"Midwest","Medicare"]
[909,"Midwest","Blue Cross"]
[910,"Midwest","Medicare"]
[911,"Midwest","Medicare"]
[912,"Midwest","Medicare"]
[913,"Midwest","Medicare"]
[914,"Midwest","Medicare"]
[915,"Midwest","Medicaid"]
[916,"Midwest","HMO"]
[917,"Midwest","Blue Cross"]
[918,"Midwest","Medicare"]
[919,"Midwest","HMO"]
[920,"Midwest","Medicare"]
[921,"Midwest","Medicaid"]
[922,"Midwest","Medicaid"]
[923,"Midwest","Medicare"]
[924,"Midwest","Medicare"]
[925,"Midwest","Medicare"]
[926,"Midwest","Blue Cross"]
[927,"Midwest","Medicare"]
[928,"Midwest","Medicare"]
[929,"Midwest","Medicaid"]
[930,"Midwest","Medicaid"]
[931,"Midwest","Other private insurance"]
[932,"Midwest","Other private insurance"]
[933,"Midwest","Other private insurance"]
[934,"Midwest","Other private insurance"]
[935,"Midwest","Medicare"]
[936,"Midwest","Medicaid"]
[937,"Midwest","Medicare"]
[938,"Midwest","Medicaid"]
[939,"Midwest","Medicare"]
[940,"Midwest","Medicare"]
[941,"Midwest","Medicare"]
[942,"Northeast","Other private insurance"]
[943,"Northeast","Other private insurance"]
[944,"Northeast","Medicare"]
[945,"Northeast","Blue Cross"]
[946,"Northeast","Medicaid"]
[947,"Northeast","Blue Cross"]
[948,"Northeast","Medicare"]
[949,"Northeast","Medicare"]
[950,"Northeast","Workers Comp"]
[951,"Midwest","Blue Cross"]
[952,"Midwest","Blue Cross"]
[953,"Midwest","Medicaid"]
[954,"Midwest","Other private insurance"]
[955,"Midwest","Other private insurance"]
[956,"Midwest","Medicaid"]
[957,"Midwest","Medicare"]
[958,"Midwest","Other private insurance"]
[959,"South","Not stated"]
[960,"Northeast","HMO"]
[961,"Northeast","HMO"]
[962,"Northeast","Medicaid"]
[963,"South","Other private insurance"]
[964,"South","Self pay"]
[965,"South","HMO"]
[966,"South","Medicaid"]
[967,"South","Self pay"]
[968,"South","Other private insurance"]
[969,"South","Medicaid"]
[970,"South","Blue Cross"]
[971,"West","Medicaid"]
[972,"Midwest","Medicare"]
[973,"South","Other private insurance"]
[974,"South","Blue Cross"]
[975,"South","Other private insurance"]
[976,"South","Medicare"]
[977,"South","Medicare"]
[978,"South","Medicare"]
[979,"South","HMO"]
[980,"South","Blue Cross"]
[981,"South","Medicare"]
[982,"South","Medicaid"]
[983,"South","Medicare"]
[984,"South","Other private insurance"]
[985,"South","Other"]
[986,"South","Medicaid"]
[987,"South","HMO"]
[988,"South","HMO"]
[989,"South","Medicare"]
[990,"South","Medicare"]
[991,"South","Medicare"]
[992,"South","Medicare"]
[993,"South","Medicaid"]
[994,"South","Medicare"]
[995,"South","HMO"]
[996,"South","Other private insurance"]
[997,"South","Medicaid"]
[998,"South","Medicaid"]
[999,"South","Medicaid"]
[1000,"West","HMO"]